Workbook

Sheet Tran
A6: Republic of the Philippines | AB6: Republic of the Philippines
A7: Department of Education | AB7: Department of Education
A8: Region VII, Central Visayas | AB8: Region VII, Central Visayas
A9: DIVISION OF LAPU-LAPU CITY | AB9: DIVISION OF LAPU-LAPU CITY
A10: MARIGONDON ELEMENTARY SCHOOL | AB10: MARIGONDON ELEMENTARY SCHOOL
A11: Marigondon, Lapu-Lapu City | AB11: Marigondon, Lapu-Lapu City
A12: OFFICE OF THE PRINCIPAL | AB12: OFFICE OF THE PRINCIPAL
Q14: 2018-01-10 | AR14: 2018-02-25
A15: DR. MARILYN S. ANDALES
A16: Schools Division Superintendent
A17: Division of Lapu-Lapu City | AB17: DR. MARILYN S. ANDALES, CESO VI
A18: B.M. Dimataga St., Lapu-Lapu City | AB18: Schools Division Superintendent
AB19: Division of Lapu-Lapu City
AB20: B.M. Dimataga St., Lapu-Lapu City
A21: Madam:
C23: Greetings! | AB23: Madam:
C25: I would like to request your good office for the release of JANUARY 2018 MOOE allocation of this | AD25: Greetings!
A26: ="school in the amount of "&SpellNumber(W49)&" (P "&"280,000"&"). The said amount will be used to pay the following: " -> school in the amount of One Hundred Ninety Thousand Four Hundred Sixty Six Pesos Only (P 280,000). The said amount will be used to pay the following:
AB27: =" I would like to submit herewith the Liquidation Report for "&CDR!G16&" MOOE Fund in the amount of "&SpellNumber(217666)&" (P "&"217,666.00"&"). The following were the transactions of the said MOOE Fund:" -> I would like to submit herewith the Liquidation Report for JANUARY 2020 MOOE Fund in the amount of Two Hundred Seventeen Thousand Six Hundred Sixty Six Pesos Only (P 217,666.00). The following were the transactions of the said MOOE Fund:
C29: Item Description | P29: Unit | R29: Qty | T29: Estimated Amount | W29: Total Amount
C31: Electricity (Meco) | R31: 1 | T31: =53422+127.13 -> 53549.13 | W31: =T31*R31 -> 53549.13 | AD31: Date | AG31: DV No. | AJ31: Payee | AS31: Amount
C32: Security Guards | R32: 4 | T32: 8500 | W32: =T32*R32 -> 34000 | AD32: =RD!A17 -> 2018-02-06 | AG32: =RD!E17 -> 2001001 | AJ32: =RD!M17 -> Mactan Electric Company (MECO) | AS32: =RD!AA17 -> 53422.05
C33: Repair and Maintenance (Program of Work) | R33: 1 | T33: =P!AA46 -> 89891.875 | W33: =T33*R33 -> 89891.875 | AD33: =RD!A18 -> 2018-02-06 | AG33: =RD!E18 -> 2001002 | AJ33: =RD!M18 -> High Security Agency | AS33: =RD!AA18 -> 34000
C34: Globe (Innove) | R34: 1 | T34: 3000 | W34: =T34*R34 -> 3000 | AD34: =RD!A19 -> 2018-02-06 | AG34: =RD!E19 -> 2001003 | AJ34: =RD!M19 -> Globe | AS34: =RD!AA19 -> 3000
C35: Fedelity Bond | R35: 1 | T35: 1500 | W35: =T35*R35 -> 1500 | AD35: =RD!A20 -> 2020-01-28 | AG35: =RD!E20 -> 2001004 | AJ35: =RD!M20 -> ROY ENTERPRISES | AS35: =RD!AA20 -> 20660.5
C36: Office Supplies | AD36: =RD!A21 -> 2018-02-10 | AG36: =RD!E21 -> 2001005 | AJ36: =RD!M21 -> SAVER DEPOT | AS36: =RD!AA21 -> 10250
D37: Bondpaper Long, Sub 20 | P37: ream | R37: 20 | T37: 159 | W37: =T37*R37 -> 3180 | AD37: =RD!A22 -> 2018-02-08 | AG37: =RD!E22 -> 2001006 | AJ37: =RD!M22 -> Duane & Dwight | AS37: =RD!AA22 -> 5335
D38: White board pen, (black, blue & red) | P38: pcs | R38: 10 | T38: 35 | W38: =T38*R38 -> 350 | AD38: =RD!A23 -> 2018-02-10 | AG38: =RD!E23 -> 2001007 | AJ38: =RD!M23 -> Savers Depot | AS38: =RD!AA23 -> 10328
D39: Printer, CMYK | P39: unit | R39: 1 | T39: 4995 | W39: =T39*R39 -> 4995 | AD39: =RD!A24 -> 2018-02-08 | AG39: =RD!E24 -> 2001008 | AJ39: =RD!M24 -> La Nueva Supermarket | AS39: =RD!AA24 -> 3607.5
W40: =T40*R40 -> 0 | AD40: =RD!A25 -> 2018-02-10 | AG40: =RD!E25 -> 2001009 | AJ40: =RD!M25 -> Vannix Computers | AS40: =RD!AA25 -> 4995
W41: =T41*R41 -> 0 | AD41: =RD!A26 -> 2018-02-25 | AG41: =RD!E26 -> 2001010 | AJ41: =RD!M26 -> Ko-Jack E. Ibaño | AS41: =RD!AA26 -> 753
W42: =T42*R42 -> 0 | AD42: =RD!A27 -> 2018-02-11 | AG42: =RD!E27 -> 2001011 | AJ42: =RD!M27 -> Northern Septic Tank Services | AS42: =RD!AA27 -> 27200
W43: 0 | AD43: =RD!A28 -> 2018-02-11 | AG43: =RD!E28 -> 2001012 | AJ43: =RD!M28 -> Onecall Marketing | AS43: =RD!AA28 -> 28380
W44: 0 | AD44: =RD!A29 -> 2018-02-13 | AG44: =RD!E29 -> 2001013 | AJ44: =RD!M29 -> Jonathan D. Pioquinto | AS44: =RD!AA29 -> 24750
W45: 0
W46: 0 | AJ46: TOTAL | AS46: =SUM(AS32:AV45) -> 226681.05
W47: 0
W48: 0
C49: Total Amount | W49: =SUM(W31:Z48) -> 190466.005 | AD49: Thank you very much and more power.
A52: Approval Recommended:
C53: Your approval on this request is highly appreciated. | AR53: Very truly yours,
R54: Very truly yours,
C55: More power and God bless you. | AU55: =U57 -> SUSAN R. OBIEDO
AT56: Principal I
U57: SUSAN R. OBIEDO
T58: Principal I
D59: MADIELINE M. EPONDULAN | AB59: Inspected by: (South District Internal Control Committee)
D60: Administrative Officer V
AH61: VALENTINA A. ABING | AP61: MA. MARIZA A. MAGLANGIT
AH62: Principal II | AP62: PSDS-District 5&6
I63: Approved:
N65: MARILYN S. ANDALES, Ed.D., CESO VI
N66: Schools Division Superintendent
E71: Address: Marigondon, Lapu-Lapu City | AF71: Address: Marigondon, Lapu-Lapu City
E72: Telephone no: (32) 495-6265 | AF72: Telephone no: (32) 495-6265

Sheet P
I1: (15) BREAKDOWN OF ESTIMATED EXPENDITURES | O1: % of Total | P1: Amount | R1: BREAKDOWN OF MATERIALS
I2: (15.1) ESTIMATED CONTRACT COST
J3: A. Direct Cost | R3: Name and Location of Project | Y3: Date Allotment: | Z3: =P!B22 -> 2018-01-09
K4: 1. Mobilization/Demobilization | R4: =A27 -> I. Installation of Floodlight (Spotlight) in 5 buildings. II. Replacement of Tiles in SEF (Grade 4 Building). III. Repair & Installation of additional CCTV.
K5: 2. Materials | O5: =P5/P26 -> 0.7202263831 | P5: =G40+G43+G46 -> 64742.5
A6: =Tran!A6 -> Republic of the Philippines | L6: 2.1. Supply/Delivery | R6: ITEM | X6: Unit | Y6: Quantity | Z6: Estimated Cost | AA6: Total Amount
A7: =Tran!A7 -> Department of Education | L7: 2.2. Testing of Materials | R7: No. | S7: Description
A8: Region VII, Central Visayas | S8: I. | T8: Electrical | AA8: =SUM(AA9:AA18) -> 14952.5
A9: DIVISION OF LAPU-LAPU CITY | K9: 3. Labor | O9: =P9/P26 -> 0.2797736169 | P9: =G51 -> 25149.375 | T9: Loomex wire, #12 | X9: roll | Y9: 1 | Z9: 2560 | AA9: =Y9*Z9 -> 2560
A10: MARIGONDON ELEMENTARY SCHOOL | L10: 3.1. Direct Labor | T10: Staple wire # 1,concrete | X10: box | Y10: 4 | Z10: 45 | AA10: 180
A11: Marigondon, Lapu-Lapu City | L11: 3.2. Leaves | T11: Safety breaker, Surface type (15amp) | X11: pcs | Y11: 5 | Z11: 387.5 | AA11: 1937.5
A12: OFFICE OF THE PRINCIPAL | L12: 3.3. SSS/GSIS | T12: Flood light, Led 30w | X12: set | Y12: 3 | Z12: 1350 | AA12: 4050
L13: 3.4. Medicare | T13: Flood light, Led 50w | X13: set | Y13: 2 | Z13: 3000 | AA13: 6000
A14: INDIVIDUAL PROJECT PROGRAM OF WORK | L14: 3.5. State Insurance | T14: Electrical Tape, Big | X14: roll | Y14: 5 | Z14: 45 | AA14: 225
E15: (1) Date | F15: 2018-01-09 | AA15: 0
K16: 4. Equipment Expenses | AA16: 0
C17: (2)Agency | D17: DepEd | K17: 5. Supervision | AA17: 0
C18: (3) Region | D18: VII | K18: 6. Miscellaneous | AA18: =Y18*Z18 -> 0
C19: (4) District/City | D19: South District/LLC | S19: I. | T19: Carpentry/Masonry | AA19: =SUM(AA20:AA25) -> 23595
J20: B. Indirect Cost | T20: Tiles, 60 x 60 | X20: pcs | Y20: 100 | Z20: 169 | AA20: 16900
A21: (5) Name/Location of Project | B21: (7) Source of Funds | E21: (8) Issued Obligated | G21: (9) Released | K21: 1. Profit (10% to 15% of A1 to A6) | T21: Adhesive | X21: bag | Y21: 15 | Z21: 235 | AA21: 3525
A22: Repair and Maintenance | B22: =F15 -> 2018-01-09 | E22: Authority | G22: CDO | K22: 2. Tax (3% of A1 to B1) | T22: Cement | X22: bag | Y22: 16 | Z22: 190 | AA22: 3040
L23: 0.9224 | T23: Tile Grout | X23: bag | Y23: 2 | Z23: 65 | AA23: 130
AA24: 0
A25: (6) Plan Set No. | AA25: 0
A26: (10) Project Description | C26: (11) Calendar Days to Complete | I26: SUB-TOTAL | O26: 1 | P26: =SUM(P2:P25) -> 89891.875 | S26: II. | T26: Installation of CCTV Cameras | AA26: =SUM(AA27:AA38) -> 26195
A27: I. Installation of Floodlight (Spotlight) in 5 buildings. II. Replacement of Tiles in SEF (Grade 4 Building). III. Repair & Installation of additional CCTV. | C27: 10 | I27: (15.2) II. ESTIMATED GOVERNMENT EXPENSES | T27: Coaxial Cable | X27: roll | Y27: 1.5 | Z27: 8000 | AA27: =Y27*Z27 -> 12000
K28: 1. ROW/ Site Acquisition | T28: DC Adapter 12v, 5A | X28: pcs | Y28: 1 | Z28: 580 | AA28: 580
K29: 2. Soil Exploration | T29: Camera | X29: pcs | Y29: 5 | Z29: 1570 | AA29: 7850
C30: (13) Equipment to be used | K30: 3. Project Management (Up tile grout 5% of | T30: BNC Cable, 30m | X30: pcs | Y30: 3 | Z30: 390 | AA30: 1170
A31: (12) Technical Personnel Required | C31: Carpentry, Masonry & Electrical Tools | L31: Estimated Contract Cost) | T31: BNC, Adaptor, Male | X31: pcs | Y31: 15 | Z31: 45 | AA31: 675
A32: Carpenter/Painter/Electrician | T32: BNC, Adaptor, Female | X32: pcs | Y32: 15 | Z32: 45 | AA32: 675
C33: IMPLEMENTATION PROCEDURE: ADM./CONTRACT | K33: 4. Materials to be furnished by the Government | T33: BNC, Barrel | X33: pcs | Y33: 15 | Z33: 35 | AA33: =Y33*Z33 -> 525
A34: (14) Estimated Cost by Item of Work (Materials and Labor Only) | T34: Coaxial cable, 20m | X34: roll | Y34: 4 | Z34: 290 | AA34: 1160
I35: SUB-TOTAL | O35: 0 | T35: Coaxial cable, 30m | X35: roll | Y35: 4 | Z35: 390 | AA35: 1560
A36: (14.1) Scope of Work to be done Item | C36: (14.2) % of Total | D36: (14.3) Unit | E36: (14.4) Quantity | F36: (14.5) Unit Price | G36: (14.6) Total Amount | I36: (15.3) III CONTINGENCIES | AA36: 0
J37: A. PHYSICAL CONTINGENCIES (Up to 15% of the | AA37: 0
L38: Estimated Contract Cost) | AA38: 0
J39: B. PRICE CONTINGENCIES (Up to 10% of 15.I.A and 15.1B | S39: A. Sub-Total (Materials) | AA39: =AA8+AA26+AA19 -> 64742.5
A40: =S8&" "&T8 -> I. Electrical | C40: =G40/$G$59 -> 0.1663387264 | G40: =AA8 -> 14952.5
I41: TOTAL ESTIMATED PROJECT COST | O41: 1 | P41: =SUM(P5:P9) -> 89891.875 | S41: III | T41: Labor | V41: =AA41/AA39 -> 0.3884523304 | AA41: =SUM(AA42:AA45) -> 25149.375 | AB41: =Tran!T49 -> 
T42: =S8&" "&T8 -> I. Electrical | AA42: =AA8*0.35 -> 5233.375
A43: =S19&" "&T19 -> I. Carpentry/Masonry | C43: =G43/$G$59 -> 0.2624820096 | G43: =AA19 -> 23595 | I43: Prepared by: | M43: Checked by: | O43: Submitted by: | T43: =S19&" "&T19 -> I. Carpentry/Masonry | AA43: =AA19*0.4 -> 9438
T44: =S26&" "&T26 -> II. Installation of CCTV Cameras | AA44: =AA26*0.4 -> 10478
I45: ZIGMUND JESS J. CID | N45: JONAS Y. JACALAN | P45: =Tran!U57 -> SUSAN R. OBIEDO
A46: =S26&" "&T26 -> II. Installation of CCTV Cameras | C46: =G46/$G$59 -> 0.2914056471 | G46: =AA26 -> 26195 | I46: Teacher I, Property Custodian | N46: ENGINNER - III | P46: =Tran!T58 -> Principal I | S46: GRAND TOTAL | AA46: =AA41+AA39 -> 89891.875
AB47: =AB8*0.39 -> 0
I48: Approval Recommended: | M48: Approved: | O48: Date: | V48: Recommended by: | Y48: Approved by: | AB48: =AB24*0.4 -> 0
I50: =N45 -> JONAS Y. JACALAN | N50: MARILYN S. ANDALES, Ed.D., CESO VI | P50: ____________
A51: =S41&". "&T41 -> III. Labor | C51: =G51/$G$59 -> 0.2797736169 | G51: =AA41 -> 25149.375 | I51: =N46 -> ENGINNER - III | N51: Schools Division Superintendent | T51: ZIGMUND JESS J. CID | W51: =N45 -> JONAS Y. JACALAN | Z51: =N50 -> MARILYN S. ANDALES, Ed.D., CESO VI
T52: Teacher I, Property Custodian | W52: =N46 -> ENGINNER - III | Z52: =N51 -> Schools Division Superintendent
A59: GRAND TOTAL | C59: =SUM(C38:C58) -> 1 | G59: =SUM(G39:G58) -> 89891.875

Sheet CDR
A6: =Tran!A6 -> Republic of the Philippines
A7: =Tran!A7 -> Department of Education
A8: =Tran!A8 -> Region VII, Central Visayas
A9: =Tran!A9 -> DIVISION OF LAPU-LAPU CITY
A10: =Tran!A10 -> MARIGONDON ELEMENTARY SCHOOL
A11: =Tran!A11 -> Marigondon, Lapu-Lapu City
A12: =Tran!A12 -> OFFICE OF THE PRINCIPAL
A15: CASH DISBURSEMENT REGISTER
F16: FOR THE PERIOD | G16: JANUARY 2020
A18: ="TYPE OF WORKING FUND: "&G16 -> TYPE OF WORKING FUND: JANUARY 2020
A19: Date | B19: Reference (OR/RER/ Check #) | C19: Payee/ Particulars | D19: Cash Advance | G19: Breakdown of Payments
D20: Amount Received | E20: Payments | F20: Balance | G20: Travel Expenses | H20: Training Expenses | I20: Office Supplies Expenses | J20: Repair and Maintenance of School Building | K20: Other Accounts
K21: Account Name | L21: Acount Code | M21: Amount
A22: [1] | B22: [2] | C22: [3] | D22: [4] | E22: [5] | F22: [6] | G22: [7] | H22: [8] | I22: [9] | J22: [10] | K22: [11] | L22: [12] | M22: [13]
A23: =CheqDetail!C20 -> 2018-02-02 | C23: REBECCA P. TORING | D23: 150000 | F23: =D23 -> 150000 | P23: 22033.99
A24: =RD!A17 -> 2018-02-06 | B24: 3859851-52 | C24: =RD!M17 -> Mactan Electric Company (MECO) | E24: =IF(RD!AA17=0,0,RD!AA17) -> 53422.05 | F24: =IF(E24=0,"",F23+D24-E24) -> 96577.95 | K24: Electricity | L24: 767 | M24: =E24 -> 53422.05 | P24: 12600
A25: =RD!A18 -> 2018-02-06 | B25: 150 | C25: =RD!M18 -> High Security Agency | E25: =IF(RD!AA18=0,0,RD!AA18) -> 34000 | F25: 62577.95 | K25: Security Services | L25: 797 | M25: =E25 -> 34000 | P25: 2519.65
A26: =RD!A19 -> 2018-02-06 | B26: 11287478144531-20 | C26: =RD!M19 -> Globe | E26: =IF(RD!AA19=0,0,RD!AA19) -> 3000 | F26: 59577.95 | K26: Telephone with Internet | L26: 774 | M26: =E26 -> 3000 | P26: 4474
A27: =RD!A20 -> 2020-01-28 | B27: 202289 | C27: =RD!M20 -> ROY ENTERPRISES | E27: =IF(RD!AA20=0,0,RD!AA20) -> 20660.5 | F27: 38917.45 | K27: Fidelity Bond | L27: 892 | M27: =E27 -> 20660.5 | P27: 4900
A28: =RD!A21 -> 2018-02-10 | B28: 173566 | C28: =RD!M21 -> SAVER DEPOT | E28: =IF(RD!AA21=0,0,RD!AA21) -> 10250 | F28: 28667.45 | J28: =E28 -> 10250 | P28: 1600
A29: =RD!A22 -> 2018-02-08 | B29: 12561 | C29: =RD!M22 -> Duane & Dwight | E29: =IF(RD!AA22=0,0,RD!AA22) -> 5335 | F29: 23332.45 | J29: =E29 -> 5335
A30: =RD!A23 -> 2018-02-10 | B30: 60699 | C30: =RD!M23 -> Savers Depot | E30: =IF(RD!AA23=0,0,RD!AA23) -> 10328 | F30: 13004.45 | J30: =E30 -> 10328
A31: =RD!A24 -> 2018-02-08 | B31: 1239659 | C31: =RD!M24 -> La Nueva Supermarket | E31: =IF(RD!AA24=0,0,RD!AA24) -> 3607.5 | F31: 9396.95 | I31: =E31 -> 3607.5
A32: =RD!A25 -> 2018-02-10 | B32: 2126 | C32: =RD!M25 -> Vannix Computers | E32: =IF(RD!AA25=0,0,RD!AA25) -> 4995 | F32: 4401.95 | I32: =E32 -> 4995
A33: =RD!A26 -> 2018-02-25 | C33: =RD!M26 -> Ko-Jack E. Ibaño | E33: =IF(RD!AA26=0,0,RD!AA26) -> 753 | F33: 3648.95 | G33: =E33 -> 753 | P33: 1540
A34: =RD!A27 -> 2018-02-11 | B34: 4162 | C34: =RD!M27 -> Northern Septic Tank Services | E34: =IF(RD!AA27=0,0,RD!AA27) -> 27200 | F34: -23551.05 | J34: =E34 -> 27200 | P34: =SUM(P23:P33) -> 49667.64
A35: =RD!A28 -> 2018-02-11 | C35: =RD!M28 -> Onecall Marketing | E35: =IF(RD!AA28=0,0,RD!AA28) -> 28380 | F35: -51931.05 | J35: =E35 -> 28380 | R35: 1601015
A36: =RD!A29 -> 2018-02-13 | C36: =RD!M29 -> Jonathan D. Pioquinto | E36: =IF(RD!AA29=0,0,RD!AA29) -> 24750 | F36: -76681.05 | J36: =E36 -> 24750
C37: Total | D37: =SUM(D23:D36) -> 150000 | E37: =SUM(E23:E36) -> 226681.05 | F37: =D37-E37 -> -76681.05 | G37: =SUM(G23:G36) -> 753 | H37: =SUM(H23:H36) -> 0 | I37: =SUM(I23:I36) -> 8602.5 | J37: =SUM(J23:J36) -> 106243 | M37: =SUM(M24:M36) -> 111082.55 | Q37: 100
A38: Certified Correct | E38: Certified: Supporting Documents Complete | Q38: 25
Q39: 80
A40: REBECCA P. TORING | E40: MA. GLACEL L. TISOY | I40: MARILYN S. ANDALES, Ed.D., CESO VI | Q40: 38.5
A41: Principal I | E41: Accountant III | I41: Schools Division Superintendent | Q41: 45
Q42: 52
A43: Date | B43: 2018-02-10 | E43: Date | I43: Date | Q43: =SUM(Q37:Q42) -> 340.5
Q44: =#REF!-Q43 -> 

Sheet RD
A6: =Tran!A6 -> Republic of the Philippines
A7: =Tran!A7 -> Department of Education
A8: =Tran!A8 -> Region VII, Central Visayas
A9: =Tran!A9 -> DIVISION OF LAPU-LAPU CITY
A10: =Tran!A10 -> MARIGONDON ELEMENTARY SCHOOL
A12: REPORT OF DISBURSEMENT
Y13: Report No.: | AB13: =E17 -> 2001001
A14: Period Covered: | E14: =PODate1 -> 2020-01-27 | Y14: Sheet No.: | AB14: 1
A16: Date | E16: DV/Payroll No. | I16: Responsibility Center Code | M16: Payee | T16: Nature of Payment | AA16: Amount
A17: =IF(M17=0,"",DVDate1) -> 2018-02-06 | E17: =IF(M17=0,"",DVNo1) -> 2001001 | M17: =DV_1 -> Mactan Electric Company (MECO) | T17: =IF(M17=0,"","CASH") -> CASH | AA17: =DVAmount1 -> 53422.05 | AI17: =AA21 -> 10250
A18: =IF(M18=0,"",DVDate2) -> 2018-02-06 | E18: =IF(M18=0,"",E17+1) -> 2001002 | M18: =DV_2 -> High Security Agency | T18: CASH | AA18: =DVAmount2 -> 34000 | AI18: =AA22 -> 5335
A19: =IF(M19=0,"",DVDate3) -> 2018-02-06 | E19: =IF(M19=0,"",E18+1) -> 2001003 | M19: =DV_3 -> Globe | T19: CASH | AA19: =DVAmount3 -> 3000 | AI19: =AA23 -> 10328
A20: =IF(M20=0,"",DVDate4) -> 2020-01-28 | E20: 2001004 | M20: =DV_4 -> ROY ENTERPRISES | T20: CASH | AA20: =DVAmount4 -> 20660.5 | AI20: =AA28 -> 28380
A21: =IF(M21=0,"",DVDate5) -> 2018-02-10 | E21: 2001005 | M21: =DV_5 -> SAVER DEPOT | T21: =IF(M21=0,"","CASH") -> CASH | AA21: =DVAmount5 -> 10250 | AI21: =SUM(AI17:AI20) -> 54293 | AJ21: =AI21*0.4 -> 21717.2
A22: =IF(M22=0,"",DVDate6) -> 2018-02-08 | E22: 2001006 | M22: =DV_6 -> Duane & Dwight | T22: CASH | AA22: =DVAmount6 -> 5335
A23: =IF(M23=0,"",DVDate7) -> 2018-02-10 | E23: 2001007 | M23: =DV_7 -> Savers Depot | T23: CASH | AA23: =DVAmount7 -> 10328
A24: =IF(M24=0,"",DVDate8) -> 2018-02-08 | E24: 2001008 | M24: =DV_8 -> La Nueva Supermarket | T24: CASH | AA24: =DVAmount8 -> 3607.5
A25: =IF(M25=0,"",DVDate9) -> 2018-02-10 | E25: 2001009 | M25: =DV_9 -> Vannix Computers | T25: CASH | AA25: =DVAmount9 -> 4995 | AJ25: =AI20*0.4 -> 11352
A26: =IF(M26=0,"",DVDate10) -> 2018-02-25 | E26: 2001010 | M26: =DV_10 -> Ko-Jack E. Ibaño | T26: CASH | AA26: =DVAmount10 -> 753
A27: =IF(M27=0,"",DVDate11) -> 2018-02-11 | E27: 2001011 | M27: =DV_11 -> Northern Septic Tank Services | T27: CASH | AA27: =DVAmount11 -> 27200
A28: =IF(M28=0,"",DVDate12) -> 2018-02-11 | E28: 2001012 | M28: =DV_12 -> Onecall Marketing | T28: =IF(M28=0,"","CASH") -> CASH | AA28: =DVAmount12 -> 28380 | AI28: =AA28-175.03 -> 28204.97
A29: 2018-02-13 | E29: 2001013 | M29: =DV_13 -> Jonathan D. Pioquinto | T29: =IF(M29=0,"","CASH") -> CASH | AA29: ='P1'!N30 -> 24750
T30: Total | AA30: =SUM(AA17:AF29) -> 226681.05
A31: CERTIFICATION
C33: I hereby certify that this Report of Disbursement in | P33: 1 | S33: sheet is a full, true and correct statement of the
C34: disbursements made by me and that this is in liquidation of the cash advance granted last | W34: =CheqDetail!C12 -> 2018-01-31 | AH34: =217666-AA30 -> -9015.05
C35: in the amount of | G35: =CheqDetail!C13 -> 217666 | L35: per check no. | P35: =CheqDetail!C11 -> 123516 | U35: dated | W35: =W34 -> 2018-01-31
K37: ='7DV'!D46 -> KO-JACK E. IBAÑO | S37: =CDR!B43 -> 2018-02-10
K38: ='7DV'!D47 -> Teacher III, School Bookkeeper-Designate | V38: Date | AA38: =G35-AA30 -> -9015.05

Sheet Form2 (hidden)
Q1: Republic of the Philippines
Q2: Department of Education
Q3: SOCIAL EXPENDITURE MANAGEMENT PROJECT
Q5: Form 2
Q6: School Liquidation Report
Q7: Period Covered: School Year 2019-2020
A9: School | D9: Marigondon Elementary School | AB9: Date: | AC9: 2017-02-14
A10: School Address | D10: Marigondon, Lapu-Lapu City | AB10: MOOE Cash Advance: | AC10: =CheqDetail!C13 -> 217666
A11: Division | D11: Lapu-Lapu City | AB11: Check No.: | AC11: =CheqDetail!C11 -> 123516
A12: District | D12: South District | AB12: Date of Check: | AC12: =CheqDetail!C12 -> 2018-01-31
A14: No | B14: Description of Work | I14: Estimated Cost | L14: ACTUAL SCHEDULE | R14: ACTUAL COST (PESOS) | Z14: Remarks | AD14: Supporting Documents Attached
L15: Date Started | N15: Date Completed | P15: No. of Days | R15: Materials | T15: Contract | V15: Labor | X15: Total
B16: (1) | I16: (2) | L16: (3) | N16: (4) | P16: (5) | R16: (6) | T16: (7) | V16: (8) | X16: (6+7+8=9) | Z16: (11) | AD16: (12)
A17: 1 | B17: =P!R4 -> I. Installation of Floodlight (Spotlight) in 5 buildings. II. Replacement of Tiles in SEF (Grade 4 Building). III. Repair & Installation of additional CCTV. | I17: =P!AA46 -> 89891.875 | L17: ='P1'!F10 -> 2018-02-10 | N17: ='P1'!G10 -> 2018-02-23 | P17: 15 | R17: =RD!AI21 -> 54293 | V17: ='P1'!N30 -> 24750 | X17: =SUM(R17:W17) -> 79043 | AD17: Receipts and Payroll
A18: 2 | AL18: 34000
A19: 3 | AL19: 41290.89
A20: Prepared by: | M20: CETIFIED TRUE AND CORRECT: | AL20: 3000
AK21: 88484.25 | AL21: 78290.89
F22: ='1PR'!C40 -> EVELYN S. ONGCO | Q22: CHONA A. OBREGON | AA22: REBECCA P. TORING
F23: ='1PR'!C41 -> Teacher IIII, Property Custodian | Q23: Master Teacher II | AA23: Principal I
A25: TO BE FILLED UP BY PFSED/SEMP-PMO | T25: INSPECTED BY:
A26: FINDINGS:
S28: GERMINIANO A. ENECUELA
S29: Education Supervisor I, TLE and Physical Facilities Coordinator

Sheet 7DV
A5: =RD!A6 -> Republic of the Philippines | O5: =A5 -> Republic of the Philippines | AB5: =A5 -> Republic of the Philippines | AP5: =A5 -> Republic of the Philippines | BC5: =A5 -> Republic of the Philippines | BQ5: =A5 -> Republic of the Philippines | CE5: =A5 -> Republic of the Philippines | CS5: =A5 -> Republic of the Philippines | DF5: =A5 -> Republic of the Philippines | DT5: =DF5 -> Republic of the Philippines | EH5: =DT5 -> Republic of the Philippines | EV5: =EH5 -> Republic of the Philippines | FI5: =EV5 -> Republic of the Philippines | FV5: =FI5 -> Republic of the Philippines | GI5: =FV5 -> Republic of the Philippines | GV5: =GI5 -> Republic of the Philippines
A6: =RD!A7 -> Department of Education | O6: =A6 -> Department of Education | AB6: =A6 -> Department of Education | AP6: =A6 -> Department of Education | BC6: =A6 -> Department of Education | BQ6: =A6 -> Department of Education | CE6: =A6 -> Department of Education | CS6: =A6 -> Department of Education | DF6: =A6 -> Department of Education | DT6: =DF6 -> Department of Education | EH6: =DT6 -> Department of Education | EV6: =EH6 -> Department of Education | FI6: =EV6 -> Department of Education | FV6: =FI6 -> Department of Education | GI6: =FV6 -> Department of Education | GV6: =GI6 -> Department of Education
A7: =RD!A8 -> Region VII, Central Visayas | O7: Region VII, Central Visayas | AB7: =A7 -> Region VII, Central Visayas | AP7: =A7 -> Region VII, Central Visayas | BC7: =A7 -> Region VII, Central Visayas | BQ7: =A7 -> Region VII, Central Visayas | CE7: =A7 -> Region VII, Central Visayas | CS7: =A7 -> Region VII, Central Visayas | DF7: =A7 -> Region VII, Central Visayas | DT7: Region VII, Central Visayas | EH7: Region VII, Central Visayas | EV7: Region VII, Central Visayas | FI7: Region VII, Central Visayas | FV7: Region VII, Central Visayas | GI7: Region VII, Central Visayas | GV7: Region VII, Central Visayas
A8: =RD!A9 -> DIVISION OF LAPU-LAPU CITY | O8: DIVISION OF LAPU-LAPU CITY | AB8: =A8 -> DIVISION OF LAPU-LAPU CITY | AP8: =A8 -> DIVISION OF LAPU-LAPU CITY | BC8: =A8 -> DIVISION OF LAPU-LAPU CITY | BQ8: =A8 -> DIVISION OF LAPU-LAPU CITY | CE8: =A8 -> DIVISION OF LAPU-LAPU CITY | CS8: =A8 -> DIVISION OF LAPU-LAPU CITY | DF8: =A8 -> DIVISION OF LAPU-LAPU CITY | DT8: DIVISION OF LAPU-LAPU CITY | EH8: DIVISION OF LAPU-LAPU CITY | EV8: DIVISION OF LAPU-LAPU CITY | FI8: DIVISION OF LAPU-LAPU CITY | FV8: DIVISION OF LAPU-LAPU CITY | GI8: DIVISION OF LAPU-LAPU CITY | GV8: DIVISION OF LAPU-LAPU CITY
A9: =RD!A10 -> MARIGONDON ELEMENTARY SCHOOL | O9: MARIGONDON ELEMENTARY SCHOOL | AB9: =A9 -> MARIGONDON ELEMENTARY SCHOOL | AP9: =A9 -> MARIGONDON ELEMENTARY SCHOOL | BC9: =A9 -> MARIGONDON ELEMENTARY SCHOOL | BQ9: =A9 -> MARIGONDON ELEMENTARY SCHOOL | CE9: =A9 -> MARIGONDON ELEMENTARY SCHOOL | CS9: =A9 -> MARIGONDON ELEMENTARY SCHOOL | DF9: =A9 -> MARIGONDON ELEMENTARY SCHOOL | DT9: MARIGONDON ELEMENTARY SCHOOL | EH9: =DT9 -> MARIGONDON ELEMENTARY SCHOOL | EV9: =EH9 -> MARIGONDON ELEMENTARY SCHOOL | FI9: MARIGONDON ELEMENTARY SCHOOL | FV9: MARIGONDON ELEMENTARY SCHOOL | GI9: MARIGONDON ELEMENTARY SCHOOL | GV9: MARIGONDON ELEMENTARY SCHOOL
A11: DISBURSEMENT VOUCHER | O11: DISBURSEMENT VOUCHER | AB11: DISBURSEMENT VOUCHER | AP11: DISBURSEMENT VOUCHER | BC11: DISBURSEMENT VOUCHER | BQ11: DISBURSEMENT VOUCHER | CE11: DISBURSEMENT VOUCHER | CS11: DISBURSEMENT VOUCHER | DF11: DISBURSEMENT VOUCHER | DT11: DISBURSEMENT VOUCHER | EH11: DISBURSEMENT VOUCHER | EV11: DISBURSEMENT VOUCHER | FI11: DISBURSEMENT VOUCHER | FV11: DISBURSEMENT VOUCHER | GI11: DISBURSEMENT VOUCHER | GV11: DISBURSEMENT VOUCHER
A12: MODE OF PAYMENT | I12: No.: | J12: 2001001 | O12: MODE OF PAYMENT | W12: No.: | X12: =J12+1 -> 2001002 | AB12: MODE OF PAYMENT | AJ12: No.: | AK12: =X12+1 -> 2001003 | AP12: MODE OF PAYMENT | AX12: No.: | AY12: =AK12+1 -> 2001004 | BC12: MODE OF PAYMENT | BK12: No.: | BL12: =AY12+1 -> 2001005 | BQ12: MODE OF PAYMENT | BY12: No.: | BZ12: =BL12+1 -> 2001006 | CE12: MODE OF PAYMENT | CM12: No.: | CN12: =BZ12+1 -> 2001007 | CS12: MODE OF PAYMENT | DA12: No.: | DB12: =CN12+1 -> 2001008 | DF12: MODE OF PAYMENT | DN12: No.: | DO12: =DB12+1 -> 2001009 | DT12: MODE OF PAYMENT | EB12: No.: | EC12: =DO12+1 -> 2001010 | EH12: MODE OF PAYMENT | EP12: No.: | EQ12: =EC12+1 -> 2001011 | EV12: MODE OF PAYMENT | FD12: No.: | FE12: =EQ12+1 -> 2001012 | FI12: MODE OF PAYMENT | FQ12: No.: | FR12: =FE12+1 -> 2001013 | FV12: MODE OF PAYMENT | GD12: No.: | GE12: =FR12+1 -> 2001014 | GI12: MODE OF PAYMENT | GQ12: No.: | GR12: =GE12+1 -> 2001015 | GV12: MODE OF PAYMENT | HD12: No.: | HE12: =GR12+1 -> 2001016
A13: o MDS Check o Commercial Check o ADA o Others | I13: Date: | J13: 2018-02-06 | O13: o MDS Check o Commercial Check o ADA o Others | W13: Date: | X13: 2018-02-06 | AB13: o MDS Check o Commercial Check o ADA o Others | AJ13: Date: | AK13: 2018-02-06 | AP13: o MDS Check o Commercial Check o ADA o Others | AX13: Date: | AY13: 2020-01-28 | BC13: o MDS Check o Commercial Check o ADA o Others | BK13: Date: | BL13: 2018-02-10 | BQ13: o MDS Check o Commercial Check o ADA o Others | BY13: Date: | BZ13: 2018-02-08 | CE13: o MDS Check o Commercial Check o ADA o Others | CM13: Date: | CN13: 2018-02-10 | CS13: o MDS Check o Commercial Check o ADA o Others | DA13: Date: | DB13: 2018-02-08 | DF13: o MDS Check o Commercial Check o ADA o Others | DN13: Date: | DO13: 2018-02-10 | DT13: o MDS Check o Commercial Check o ADA o Others | EB13: Date: | EC13: 2018-02-25 | EH13: o MDS Check o Commercial Check o ADA o Others | EP13: Date: | EQ13: 2018-02-11 | EV13: o MDS Check o Commercial Check o ADA o Others | FD13: Date: | FE13: 2018-02-11 | FI13: o MDS Check o Commercial Check o ADA o Others | FQ13: Date: | FR13: 2018-02-11 | FV13: o MDS Check o Commercial Check o ADA o Others | GD13: Date: | GE13: 2017-01-24 | GI13: o MDS Check o Commercial Check o ADA o Others | GQ13: Date: | GR13: 2017-07-05 | GV13: o MDS Check o Commercial Check o ADA o Others | HD13: Date: | HE13: 2017-07-05
A14: Payee/Office: | G14: TIN/Employe No. | K14: OS/BUS. No.: | O14: Payee/Office: | U14: TIN/Employe No. | Y14: OS/BUS. No.: | AB14: Payee/Office: | AH14: TIN/Employe No. | AL14: OS/BUS. No.: | AP14: Payee/Office: | AV14: TIN/Employe No. | AZ14: OS/BUS. No.: | BC14: Payee/Office: | BI14: TIN/Employe No. | BM14: OS/BUS. No.: | BQ14: Payee/Office: | BW14: TIN/Employe No. | CA14: OS/BUS. No.: | CE14: Payee/Office: | CK14: TIN/Employe No. | CO14: OS/BUS. No.: | CS14: Payee/Office: | CY14: TIN/Employe No. | DC14: OS/BUS. No.: | DF14: Payee/Office: | DL14: TIN/Employe No. | DP14: OS/BUS. No.: | DT14: Payee/Office: | DZ14: TIN/Employe No. | ED14: OS/BUS. No.: | EH14: Payee/Office: | EN14: TIN/Employe No. | ER14: OS/BUS. No.: | EV14: Payee/Office: | FB14: TIN/Employe No. | FF14: OS/BUS. No.: | FI14: Payee/Office: | FO14: TIN/Employe No. | FS14: OS/BUS. No.: | FV14: Payee/Office: | GB14: TIN/Employe No. | GF14: OS/BUS. No.: | GI14: Payee/Office: | GO14: TIN/Employe No. | GS14: OS/BUS. No.: | GV14: Payee/Office: | HB14: TIN/Employe No. | HF14: OS/BUS. No.:
A15: Mactan Electric Company (MECO) | O15: High Security Agency | AB15: Globe | AP15: =POName1 -> ROY ENTERPRISES | BC15: =POName2 -> SAVER DEPOT | BQ15: =POName3 -> Duane & Dwight | CE15: =POName4 -> Savers Depot | CS15: =POName5 -> La Nueva Supermarket | DF15: =POName6 -> Vannix Computers | DT15: Ko-Jack E. Ibaño | EH15: =POName8 -> Northern Septic Tank Services | EV15: =POName7 -> Onecall Marketing | FI15: Jonathan D. Pioquinto | FV15: Ellein Mae Castillo | GI15: Billy Kid Ochea | GV15: Ko-Jack E. Ibaño
A16: Address: | G16: Responsibility Center:340-2916 | O16: Address: | U16: Responsibility Center: | AB16: Address: | AH16: Responsibility Center: | AP16: Address: | AV16: Responsibility Center: | BC16: Address: | BI16: Responsibility Center: | BQ16: Address: | BW16: Responsibility Center: | CE16: Address: | CK16: Responsibility Center: | CS16: Address: | CY16: Responsibility Center: | DF16: Address: | DL16: Responsibility Center: | DT16: Address: | DZ16: Responsibility Center: | EH16: Address: | EN16: Responsibility Center: | EV16: Address: | FB16: Responsibility Center: | FI16: Address: | FO16: Responsibility Center: | FV16: Address: | GB16: Responsibility Center: | GI16: Address: | GO16: Responsibility Center: | GV16: Address: | HB16: Responsibility Center:
A17: Pajo, Lapu-Lapu City, Tel. No. 340-8134 | G17: Title: | K17: Code: | O17: Mandaue City | U17: Title: | Y17: Code: | AB17: Gaisano Island Mall, Pusok Lapu-Lapu City | AH17: Title: | AL17: Code: | AP17: =POAdd1 -> Pajo, Lapu-Lapu City | AV17: Title: | AZ17: Code: | BC17: =POAdd2 -> Sudtunggan, Lapu-Lapu City | BI17: Title: | BM17: Code: | BQ17: =POAdd3 -> Marigondon LLC | BW17: Title: | CA17: Code: | CE17: =POAdd4 -> Basak, Lapu-Lapu City | CK17: Title: | CO17: Code: | CS17: =POAdd5 -> Pajo, Lapu-Lapu City | CY17: Title: | DC17: Code: | DF17: =POAdd6 -> A.C. Cortes Ave. Mandaue City | DL17: Title: | DP17: Code: | DT17: Marigondon, Lapu-lapu city | DZ17: Title: | ED17: Code: | EH17: =POAdd8 -> Poblacion, Mandaue City | EN17: Title: | ER17: Code: | EV17: =POAdd7 -> 7 Molave St, Brgy Camputhaw, Cebu City | FB17: Title: | FF17: Code: | FI17: Bankal Acacia, Lapu-Lapu City | FO17: Title: | FS17: Code: | FV17: =POAdd9 -> 0 | GB17: Title: | GF17: Code: | GI17: =POAdd9 -> 0 | GO17: Title: | GS17: Code: | GV17: =POAdd9 -> 0 | HB17: Title: | HF17: Code:
A18: PARTICULARS | J18: Amount | L18: Remarks | O18: PARTICULARS | X18: Amount | Z18: Remarks | AB18: PARTICULARS | AK18: Amount | AM18: Remarks | AP18: PARTICULARS | AY18: Amount | BA18: Remarks | BC18: PARTICULARS | BL18: Amount | BN18: Remarks | BQ18: PARTICULARS | BZ18: Amount | CB18: Remarks | CE18: PARTICULARS | CN18: Amount | CP18: Remarks | CS18: PARTICULARS | DB18: Amount | DD18: Remarks | DF18: PARTICULARS | DO18: Amount | DQ18: Remarks | DT18: PARTICULARS | EC18: Amount | EE18: Remarks | EH18: PARTICULARS | EQ18: Amount | ES18: Remarks | EV18: PARTICULARS | FE18: Amount | FG18: Remarks | FI18: PARTICULARS | FR18: Amount | FT18: Remarks | FV18: PARTICULARS | GE18: Amount | GG18: Remarks | GI18: PARTICULARS | GR18: Amount | GT18: Remarks | GV18: PARTICULARS | HE18: Amount | HG18: Remarks
A20: To payment for electricity (MECO) of Marigondon Elementary School in the amount of . . . . . . . . . . . | O20: To payment for the services of four (4) security guards of Marigondon Elem School for the month of January 2018 in the amount of . . . . | AB20: To payment for the telephone w/ Internet bill of Marigondon Elementary School in the amount of . . . . | AP20: To payment for supplies and materials of Marigondon Elem School in the amount of . . . . . . . | BC20: To payment for supplies and materials of Marigondon Elem School in the amount of . . . . . . . | BQ20: To payment for the Food and Snacks of Marigondon Elem School teachers in the amount of . . . . . . . | CE20: To payment for office supplies of Marigondon Elem School in the amount of . . . . . . . . | CS20: To payment for office supplies of Marigondon Elem School in the amount of . . . . . . . . | DF20: To payment for Ink Toner of Marigondon Elem School in the amount of . . . . . . . | DT20: To payment for the Travelling Expenses of Mr. Ko-Jack E. Ibaño of Marigondon Elementary School in the amount of . . . . . . . . | EH20: To payment for Septic vault suction for Marigondon Elem School in the amount of . . . . . . . | EV20: To payment for Ink Office Supply of Marigondon Elem School in the amount of . . . . . . . | FI20: To payment for the labor I. Installation of Floodlight (Spotlight) in 5 buildings. II. Replacement of Tiles in SEF (Grade 4 Building). III. Repair & Installation of additional CCTV. of Marigondon Elem School in the amount of . . . . . . . | FV20: To payment for Registration Kindergarten Festival of Talent (Regional Level) of Marigondon Elem School in the amount of . . . . . . . | GI20: To payment for Labor Repair & Maintanance of Marigondon Elem School in the amount of . . . . . . . | GV20: To payment for Labor Repair & Maintanance of Marigondon Elem School in the amount of . . . . . . .
J23: =F31 -> 53422.05 | X23: 34000 | AK23: =AG30 -> 3000 | AY23: =POAmount1 -> 20660.5 | BL23: =POAmount2 -> 10250 | BZ23: =POAmount3 -> 5335 | CN23: =POAmount4 -> 10328 | DB23: =POamount5 -> 3607.5 | DO23: =POAmount6 -> 4995 | EC23: 753 | EQ23: =POAmount8 -> 27200 | FE23: =POAmount7 -> 28380 | FR23: ='P1'!N30 -> 24750 | GR23: ='P1'!N30 -> 24750 | HE23: 753
AC25: Account No | AE25: Period Covered | AG25: Amount
AE26: From | AF26: To
B27: Account No | D27: Period Covered | F27: Amount | AC27: 832167748 | AE27: 2018-01-03 | AF27: 2018-02-03 | AG27: 1000
D28: From | E28: To | AC28: 867218102 | AE28: 2018-01-03 | AF28: 2018-02-03 | AG28: 2000
B29: 26400104 | D29: 2018-11-28 | E29: 2018-12-28 | F29: 42442.27
B30: 26400631 | D30: 2018-11-28 | E30: 2018-12-28 | F30: 10979.78 | AC30: Total | AG30: =SUM(AG27:AH29) -> 3000
B31: Total | F31: =SUM(F29:G30) -> 53422.05
A37: Amount in Words: | O37: Amount in Words: | AB37: Amount in Words: | AP37: Amount in Words: | BC37: Amount in Words: | BQ37: Amount in Words: | CE37: Amount in Words: | CS37: Amount in Words: | DF37: Amount in Words: | DT37: Amount in Words: | EH37: Amount in Words: | EV37: Amount in Words: | FI37: Amount in Words: | FV37: Amount in Words: | GI37: Amount in Words: | GV37: Amount in Words:
A38: =SpellNumber(J23) -> Fifty Three Thousand Four Hundred Twenty Two Pesos and Five Centavos Only | O38: =SpellNumber(X23) -> Thirty Four Thousand Pesos Only | AB38: =SpellNumber(AK23) -> Three Thousand Pesos Only | AP38: =SpellNumber(AY40) -> Twenty Thousand Six Hundred Sixty Pesos and Fifty Centavos Only | BC38: =SpellNumber(BL23) -> Ten Thousand Two Hundred Fifty Pesos Only | BQ38: =SpellNumber(BZ23) -> Five Thousand Three Hundred Thirty Five Pesos Only | CE38: =SpellNumber(CN23) -> Ten Thousand Three Hundred Twenty Eight Pesos Only | CS38: =SpellNumber(DB40) -> Three Thousand Six Hundred Seven Pesos and Fifty Centavos Only | DF38: =SpellNumber(DO23) -> Four Thousand Nine Hundred Ninety Five Pesos Only | DT38: =SpellNumber(EC23) -> Seven Hundred Fifty Three Pesos Only | EH38: =SpellNumber(EQ23) -> Twenty Seven Thousand Two Hundred Pesos Only | EV38: =SpellNumber(FE40) -> Twenty Eight Thousand Three Hundred Eighty Pesos Only | FI38: =SpellNumber(FR40) -> Twenty Four Thousand Seven Hundred Fifty Pesos Only | FV38: =SpellNumber(GE40) -> Pesos Only | GI38: =SpellNumber(GR40) -> Twenty Four Thousand Seven Hundred Fifty Pesos Only | GV38: =SpellNumber(HE40) -> Seven Hundred Fifty Three Pesos Only
A40: AMOUNT DUE ==> | J40: =J23 -> 53422.05 | O40: AMOUNT DUE ==> | X40: =X23 -> 34000 | AB40: AMOUNT DUE ==> | AK40: =AK23 -> 3000 | AP40: AMOUNT DUE ==> | AY40: =AY23 -> 20660.5 | BC40: AMOUNT DUE ==> | BL40: =BL23 -> 10250 | BQ40: AMOUNT DUE ==> | BZ40: =BZ23 -> 5335 | CE40: AMOUNT DUE ==> | CN40: =CN23 -> 10328 | CS40: AMOUNT DUE ==> | DB40: =DB23 -> 3607.5 | DF40: AMOUNT DUE ==> | DO40: =DO23 -> 4995 | DT40: AMOUNT DUE ==> | EC40: =EC23 -> 753 | EH40: AMOUNT DUE ==> | EQ40: =EQ23 -> 27200 | EV40: AMOUNT DUE ==> | FE40: =FE23 -> 28380 | FI40: AMOUNT DUE ==> | FR40: =FR23 -> 24750 | FV40: AMOUNT DUE ==> | GE40: =GE23 -> 0 | GI40: AMOUNT DUE ==> | GR40: =GR23 -> 24750 | GV40: AMOUNT DUE ==> | HE40: =HE23 -> 753
A41: A. Certified: | H41: B. Approved for Payment: | O41: A. Certified: | V41: B. Approved for Payment: | AB41: A. Certified: | AI41: B. Approved for Payment: | AP41: A. Certified: | AW41: B. Approved for Payment: | BC41: A. Certified: | BJ41: B. Approved for Payment: | BQ41: A. Certified: | BX41: B. Approved for Payment: | CE41: A. Certified: | CL41: B. Approved for Payment: | CS41: A. Certified: | CZ41: B. Approved for Payment: | DF41: A. Certified: | DM41: B. Approved for Payment: | DT41: A. Certified: | EA41: B. Approved for Payment: | EH41: A. Certified: | EO41: B. Approved for Payment: | EV41: A. Certified: | FC41: B. Approved for Payment: | FI41: A. Certified: | FP41: B. Approved for Payment: | FV41: A. Certified: | GC41: B. Approved for Payment: | GI41: A. Certified: | GP41: B. Approved for Payment: | GV41: A. Certified: | HC41: B. Approved for Payment:
B42: o Supporting Documents complete and proper | P42: o Supporting Documents complete and proper | AC42: o Supporting Documents complete and proper | AQ42: o Supporting Documents complete and proper | BD42: o Supporting Documents complete and proper | BR42: o Supporting Documents complete and proper | CF42: o Supporting Documents complete and proper | CT42: o Supporting Documents complete and proper | DG42: o Supporting Documents complete and proper | DU42: o Supporting Documents complete and proper | EI42: o Supporting Documents complete and proper | EW42: o Supporting Documents complete and proper | FJ42: o Supporting Documents complete and proper | FW42: o Supporting Documents complete and proper | GJ42: o Supporting Documents complete and proper | GW42: o Supporting Documents complete and proper
B43: o Cash Advance | P43: o Cash Advance | AC43: o Cash Advance | AQ43: o Cash Advance | BD43: o Cash Advance | BR43: o Cash Advance | CF43: o Cash Advance | CT43: o Cash Advance | DG43: o Cash Advance | DU43: o Cash Advance | EI43: o Cash Advance | EW43: o Cash Advance | FJ43: o Cash Advance | FW43: o Cash Advance | GJ43: o Cash Advance | GW43: o Cash Advance
B44: o Subject to ADA (where applicable) | P44: o Subject to ADA (where applicable) | AC44: o Subject to ADA (where applicable) | AQ44: o Subject to ADA (where applicable) | BD44: o Subject to ADA (where applicable) | BR44: o Subject to ADA (where applicable) | CF44: o Subject to ADA (where applicable) | CT44: o Subject to ADA (where applicable) | DG44: o Subject to ADA (where applicable) | DU44: o Subject to ADA (where applicable) | EI44: o Subject to ADA (where applicable) | EW44: o Subject to ADA (where applicable) | FJ44: o Subject to ADA (where applicable) | FW44: o Subject to ADA (where applicable) | GJ44: o Subject to ADA (where applicable) | GW44: o Subject to ADA (where applicable)
D46: KO-JACK E. IBAÑO | H46: REBECCA P. TORING | R46: =$D$46 -> KO-JACK E. IBAÑO | V46: REBECCA P. TORING | AE46: =$D$46 -> KO-JACK E. IBAÑO | AI46: REBECCA P. TORING | AS46: =$D$46 -> KO-JACK E. IBAÑO | AW46: REBECCA P. TORING | BF46: KO-JACK E. IBAÑO | BJ46: REBECCA P. TORING | BT46: =$D$46 -> KO-JACK E. IBAÑO | BX46: REBECCA P. TORING | CH46: =$D$46 -> KO-JACK E. IBAÑO | CL46: REBECCA P. TORING | CV46: =$D$46 -> KO-JACK E. IBAÑO | CZ46: REBECCA P. TORING | DI46: KO-JACK E. IBAÑO | DM46: REBECCA P. TORING | DW46: =$D$46 -> KO-JACK E. IBAÑO | EA46: REBECCA P. TORING | EK46: =$D$46 -> KO-JACK E. IBAÑO | EO46: REBECCA P. TORING | EY46: =$D$46 -> KO-JACK E. IBAÑO | FC46: REBECCA P. TORING | FL46: =$D$46 -> KO-JACK E. IBAÑO | FP46: REBECCA P. TORING | FY46: =$D$46 -> KO-JACK E. IBAÑO | GC46: REBECCA P. TORING | GL46: =$D$46 -> KO-JACK E. IBAÑO | GP46: REBECCA P. TORING | GY46: =$D$46 -> KO-JACK E. IBAÑO | HC46: REBECCA P. TORING
D47: Teacher III, School Bookkeeper-Designate | H47: Principal I | R47: =$D$47 -> Teacher III, School Bookkeeper-Designate | V47: Principal I | AE47: =$D$47 -> Teacher III, School Bookkeeper-Designate | AI47: Principal I | AS47: =$D$47 -> Teacher III, School Bookkeeper-Designate | AW47: Principal I | BF47: Teacher I, School Bookkeeper-Designate | BJ47: Principal I | BT47: =$D$47 -> Teacher III, School Bookkeeper-Designate | BX47: Principal I | CH47: =$D$47 -> Teacher III, School Bookkeeper-Designate | CL47: Principal I | CV47: =$D$47 -> Teacher III, School Bookkeeper-Designate | CZ47: Principal I | DI47: Teacher I, School Bookkeeper-Designate | DM47: Principal I | DW47: =$D$47 -> Teacher III, School Bookkeeper-Designate | EA47: Principal I | EK47: =$D$47 -> Teacher III, School Bookkeeper-Designate | EO47: Principal I | EY47: =$D$47 -> Teacher III, School Bookkeeper-Designate | FC47: Principal I | FL47: =$D$47 -> Teacher III, School Bookkeeper-Designate | FP47: Principal I | FY47: =$D$47 -> Teacher III, School Bookkeeper-Designate | GC47: Principal I | GL47: =$D$47 -> Teacher III, School Bookkeeper-Designate | GP47: Principal I | GY47: =$D$47 -> Teacher III, School Bookkeeper-Designate | HC47: Principal I
B48: Date: | C48: =J13 -> 2018-02-06 | I48: Date: | J48: =C48 -> 2018-02-06 | P48: Date: | Q48: =X13 -> 2018-02-06 | W48: Date: | X48: =X13 -> 2018-02-06 | AC48: Date: | AD48: =AK13 -> 2018-02-06 | AJ48: Date: | AK48: =AK13 -> 2018-02-06 | AQ48: Date: | AR48: =AY13 -> 2020-01-28 | AX48: Date: | AY48: =AY13 -> 2020-01-28 | BD48: Date: | BE48: =BL13 -> 2018-02-10 | BK48: Date: | BL48: =BE48 -> 2018-02-10 | BR48: Date: | BS48: =BZ13 -> 2018-02-08 | BY48: Date: | BZ48: =BZ13 -> 2018-02-08 | CF48: Date: | CG48: =CN13 -> 2018-02-10 | CM48: Date: | CN48: =CN13 -> 2018-02-10 | CT48: Date: | CU48: =DB13 -> 2018-02-08 | DA48: Date: | DB48: =DB13 -> 2018-02-08 | DG48: Date: | DH48: =DO13 -> 2018-02-10 | DN48: Date: | DO48: =DH48 -> 2018-02-10 | DU48: Date: | DV48: =EC13 -> 2018-02-25 | EB48: Date: | EC48: =EC13 -> 2018-02-25 | EI48: Date: | EJ48: =EQ13 -> 2018-02-11 | EP48: Date: | EQ48: =EQ13 -> 2018-02-11 | EW48: Date: | EX48: =FE13 -> 2018-02-11 | FD48: Date: | FE48: =FE13 -> 2018-02-11 | FJ48: Date: | FK48: =FR13 -> 2018-02-11 | FQ48: Date: | FR48: =FR13 -> 2018-02-11 | FW48: Date: | FX48: =GE13 -> 2017-01-24 | GD48: Date: | GE48: =GE13 -> 2017-01-24 | GJ48: Date: | GK48: =GR13 -> 2017-07-05 | GQ48: Date: | GR48: =GR13 -> 2017-07-05 | GW48: Date: | GX48: =HE13 -> 2017-07-05 | HD48: Date: | HE48: =HE13 -> 2017-07-05
A49: C. Received Payment: | H49: D. Journal Entry Payment: | O49: C. Received Payment: | V49: D. Journal Entry Payment: | AB49: C. Received Payment: | AI49: D. Journal Entry Payment: | AP49: C. Received Payment: | AW49: D. Journal Entry Payment: | BC49: C. Received Payment: | BJ49: D. Journal Entry Payment: | BQ49: C. Received Payment: | BX49: D. Journal Entry Payment: | CE49: C. Received Payment: | CL49: D. Journal Entry Payment: | CS49: C. Received Payment: | CZ49: D. Journal Entry Payment: | DF49: C. Received Payment: | DM49: D. Journal Entry Payment: | DT49: C. Received Payment: | EA49: D. Journal Entry Payment: | EH49: C. Received Payment: | EO49: D. Journal Entry Payment: | EV49: C. Received Payment: | FC49: D. Journal Entry Payment: | FI49: C. Received Payment: | FP49: D. Journal Entry Payment: | FV49: C. Received Payment: | GC49: D. Journal Entry Payment: | GI49: C. Received Payment: | GP49: D. Journal Entry Payment: | GV49: C. Received Payment: | HC49: D. Journal Entry Payment:
F51: Date: _____________ | H51: No.: | I51: =RIGHT(DVNo1,1) -> 1 | T51: Date: _____________ | V51: No.: | W51: =I51+1 -> 2 | AG51: Date: _____________ | AI51: No.: | AJ51: =W51+1 -> 3 | AU51: Date: _____________ | AW51: No.: | AX51: =AJ51+1 -> 4 | BH51: Date: _____________ | BJ51: No.: | BK51: =AX51+1 -> 5 | BV51: Date: _____________ | BX51: No.: | BY51: =BK51+1 -> 6 | CJ51: Date: _____________ | CL51: No.: | CM51: =BY51+1 -> 7 | CX51: Date: _____________ | CZ51: No.: | DA51: =CM51+1 -> 8 | DK51: Date: _____________ | DM51: No.: | DN51: =DA51+1 -> 9 | DY51: Date: _____________ | EA51: No.: | EM51: Date: _____________ | EO51: No.: | FA51: Date: _____________ | FC51: No.: | FN51: Date: _____________ | FP51: No.: | GA51: Date: _____________ | GC51: No.: | GN51: Date: _____________ | GP51: No.: | HA51: Date: _____________ | HC51: No.:
A52: Signature: ______________ | D52: Date: | F52: Bank Name: _______ | H52: Date: | I52: =DVDate1 -> 2018-02-06 | O52: Signature: ______________ | R52: Date: | T52: Bank Name: _______ | V52: Date: | W52: =DVDate2 -> 2018-02-06 | AB52: Signature: ______________ | AE52: Date: | AG52: Bank Name: _______ | AI52: Date: | AJ52: =DVDate3 -> 2018-02-06 | AP52: Signature: ______________ | AS52: Date: | AU52: Bank Name: _______ | AW52: Date: | AX52: =DVDate4 -> 2020-01-28 | BC52: Signature: ______________ | BF52: Date: | BH52: Bank Name: _______ | BJ52: Date: | BK52: =DVDate4 -> 2020-01-28 | BQ52: Signature: ______________ | BT52: Date: | BV52: Bank Name: _______ | BX52: Date: | BY52: =DVDate6 -> 2018-02-08 | CE52: Signature: ______________ | CH52: Date: | CJ52: Bank Name: _______ | CL52: Date: | CM52: =DVDate7 -> 2018-02-10 | CS52: Signature: ______________ | CV52: Date: | CX52: Bank Name: _______ | CZ52: Date: | DA52: =DVDate8 -> 2018-02-08 | DF52: Signature: ______________ | DI52: Date: | DK52: Bank Name: _______ | DM52: Date: | DN52: =DVDate9 -> 2018-02-10 | DT52: Signature: ______________ | DW52: Date: | DY52: Bank Name: _______ | EA52: Date: | EH52: Signature: ______________ | EK52: Date: | EM52: Bank Name: _______ | EO52: Date: | EV52: Signature: ______________ | EY52: Date: | FA52: Bank Name: _______ | FC52: Date: | FI52: Signature: ______________ | FL52: Date: | FN52: Bank Name: _______ | FP52: Date: | FV52: Signature: ______________ | FY52: Date: | GA52: Bank Name: _______ | GC52: Date: | GI52: Signature: ______________ | GL52: Date: | GN52: Bank Name: _______ | GP52: Date: | GV52: Signature: ______________ | GY52: Date: | HA52: Bank Name: _______ | HC52: Date:
A53: Printed Name: | F53: OR #/ relevant | O53: Printed Name: | T53: OR #/ relevant | AB53: Printed Name: | AG53: OR #/ relevant | AP53: Printed Name: | AU53: OR #/ relevant | BC53: Printed Name: | BH53: OR #/ relevant | BQ53: Printed Name: | BV53: OR #/ relevant | CE53: Printed Name: | CJ53: OR #/ relevant | CS53: Printed Name: | CX53: OR #/ relevant | DF53: Printed Name: | DK53: OR #/ relevant | DT53: Printed Name: | DY53: OR #/ relevant | EH53: Printed Name: | EM53: OR #/ relevant | EV53: Printed Name: | FA53: OR #/ relevant | FI53: Printed Name: | FN53: OR #/ relevant | FV53: Printed Name: | GA53: OR #/ relevant | GI53: Printed Name: | GN53: OR #/ relevant | GV53: Printed Name: | HA53: OR #/ relevant
F54: Document issued | T54: Document issued | AG54: Document issued | AU54: Document issued | BH54: Document issued | BV54: Document issued | CJ54: Document issued | CX54: Document issued | DK54: Document issued | DY54: Document issued | EM54: Document issued | FA54: Document issued | FN54: Document issued | GA54: Document issued | GN54: Document issued | HA54: Document issued
A55: 7 | O55: 7 | AB55: 7 | AP55: 7 | BC55: 7 | BQ55: 7 | CE55: 7 | CS55: 7 | DF55: 7 | DT55: 7 | EH55: 7 | EV55: 7 | FI55: 7 | FV55: 7 | GI55: 7 | GV55: 7

Sheet 5Ins
A1: INSPECTION AND ACCEPTANCE REPORT | L1: INSPECTION AND ACCEPTANCE REPORT | W1: INSPECTION AND ACCEPTANCE REPORT | AH1: INSPECTION AND ACCEPTANCE REPORT | AS1: INSPECTION AND ACCEPTANCE REPORT | BD1: INSPECTION AND ACCEPTANCE REPORT | BO1: INSPECTION AND ACCEPTANCE REPORT | BZ1: INSPECTION AND ACCEPTANCE REPORT | CK1: INSPECTION AND ACCEPTANCE REPORT
A2: MARIGONDON ELEMENTARY SCHOOL | L2: MARIGONDON ELEMENTARY SCHOOL | W2: MARIGONDON ELEMENTARY SCHOOL | AH2: MARIGONDON ELEMENTARY SCHOOL | AS2: MARIGONDON ELEMENTARY SCHOOL | BD2: MARIGONDON ELEMENTARY SCHOOL | BO2: MARIGONDON ELEMENTARY SCHOOL | BZ2: MARIGONDON ELEMENTARY SCHOOL | CK2: MARIGONDON ELEMENTARY SCHOOL
A4: Supplier: | B4: ='4PO'!B15 -> ROY ENTERPRISES | I4: AR No. | J4: ='1PR'!G4 -> 2001001 | L4: Supplier: | M4: ='4PO'!K15 -> SAVER DEPOT | T4: AR No. | U4: =J4+1 -> 2001002 | W4: Supplier: | X4: ='4PO'!T15 -> Duane & Dwight | AE4: AR No. | AF4: =U4+1 -> 2001003 | AH4: Supplier: | AI4: ='4PO'!AC15 -> Savers Depot | AP4: AR No. | AQ4: =AF4+1 -> 2001004 | AS4: Supplier: | AT4: =POName5 -> La Nueva Supermarket | BA4: AR No. | BB4: =AQ4+1 -> 2001005 | BD4: Supplier: | BE4: ='4PO'!AU15 -> Vannix Computers | BL4: AR No. | BM4: =BB4+1 -> 2001006 | BO4: Supplier: | BP4: =POName7 -> Onecall Marketing | BW4: AR No. | BX4: =BM4+1 -> 2001007 | BZ4: Supplier: | CA4: =POName8 -> Northern Septic Tank Services | CH4: AR No. | CI4: =BX4+1 -> 2001008 | CK4: Supplier: | CL4: =POName9 -> 0 | CS4: AR No. | CT4: =CI4+1 -> 2001009
A5: PO No.: | B5: ='4PO'!H15 -> 2001001 | C5: Date: | D5: =PODate1 -> 2020-01-27 | F5: Invoice No.: | I5: Date: | L5: PO No.: | M5: ='4PO'!Q15 -> 2001002 | N5: Date: | O5: =PODate2 -> 2020-01-27 | Q5: Invoice No.: | T5: Date: | W5: PO No.: | X5: ='4PO'!Z15 -> 2001003 | Y5: Date: | Z5: ='4PO'!Z16 -> 2018-01-11 | AB5: Invoice No.: | AE5: Date: | AH5: PO No.: | AI5: =X5+1 -> 2001004 | AJ5: Date: | AK5: ='4PO'!AI16 -> 2018-01-11 | AM5: Invoice No.: | AP5: Date: | AS5: PO No.: | AT5: =AI5+1 -> 2001005 | AU5: Date: | AV5: =PODate5 -> 2018-01-11 | AX5: Invoice No.: | BA5: Date: | BD5: PO No.: | BE5: =AT5+1 -> 2001006 | BF5: Date: | BG5: ='4PO'!BA16 -> 2018-01-11 | BI5: Invoice No.: | BL5: Date: | BO5: PO No.: | BP5: =BE5+1 -> 2001007 | BQ5: Date: | BR5: =PODate7 -> 2018-01-11 | BT5: Invoice No.: | BW5: Date: | BZ5: PO No.: | CA5: =BP5+1 -> 2001008 | CB5: Date: | CC5: =PODate8 -> 2018-01-15 | CE5: Invoice No.: | CH5: Date: | CK5: PO No.: | CL5: =CA5+1 -> 2001009 | CM5: Date: | CN5: =PODate8 -> 2018-01-15 | CP5: Invoice No.: | CS5: Date:
A6: Requisitioning Officer:/Dept: | L6: Requisitioning Officer:/Dept: | W6: Requisitioning Officer:/Dept: | AH6: Requisitioning Officer:/Dept: | AS6: Requisitioning Officer:/Dept: | BD6: Requisitioning Officer:/Dept: | BO6: Requisitioning Officer:/Dept: | BZ6: Requisitioning Officer:/Dept: | CK6: Requisitioning Officer:/Dept:
C7: ZIGMUND JESS J. CID | N7: =$C$7 -> ZIGMUND JESS J. CID | Y7: =$C$7 -> ZIGMUND JESS J. CID | AJ7: =$C$7 -> ZIGMUND JESS J. CID | AU7: =$C$7 -> ZIGMUND JESS J. CID | BF7: =$C$7 -> ZIGMUND JESS J. CID | BQ7: =$C$7 -> ZIGMUND JESS J. CID | CB7: =$C$7 -> ZIGMUND JESS J. CID | CM7: =$C$7 -> ZIGMUND JESS J. CID
C8: Teacher I, Property Custodian | N8: =$C$8 -> Teacher I, Property Custodian | Y8: =$C$8 -> Teacher I, Property Custodian | AJ8: =$C$8 -> Teacher I, Property Custodian | AU8: =$C$8 -> Teacher I, Property Custodian | BF8: =$C$8 -> Teacher I, Property Custodian | BQ8: =$C$8 -> Teacher I, Property Custodian | CB8: =$C$8 -> Teacher I, Property Custodian | CM8: =$C$8 -> Teacher I, Property Custodian
A10: Item No. | B10: Unit | C10: Description | K10: Quantity | L10: Item No. | M10: Unit | N10: Description | V10: Quantity | W10: Item No. | X10: Unit | Y10: Description | AG10: Quantity | AH10: Item No. | AI10: Unit | AJ10: Description | AR10: Quantity | AS10: Item No. | AT10: Unit | AU10: Description | BC10: Quantity | BD10: Item No. | BE10: Unit | BF10: Description | BN10: Quantity | BO10: Item No. | BP10: Unit | BQ10: Description | BY10: Quantity | BZ10: Item No. | CA10: Unit | CB10: Description | CJ10: Quantity | CK10: Item No. | CL10: Unit | CM10: Description | CU10: Quantity
A11: ='4PO'!A27 -> 1 | B11: ='4PO'!B27 -> roll | C11: ='4PO'!C27 -> Loomex wire, #12 | K11: ='4PO'!G27 -> 1 | L11: ='4PO'!J27 -> 3 | M11: ='4PO'!K27 -> set | N11: ='4PO'!L27 -> Flood light, Led 30w | V11: ='4PO'!P27 -> 3 | W11: ='4PO'!S27 -> 8 | X11: ='4PO'!T27 -> bag | Y11: ='4PO'!U27 -> Adhesive | AG11: ='4PO'!Y27 -> 13 | AH11: ='4PO'!AB27 -> 4 | AI11: ='4PO'!AC27 -> set | AJ11: ='4PO'!AD27 -> Flood light, Led 30w | AR11: ='4PO'!AH27 -> 3 | AS11: ='4PO'!AK27 -> 1 | AT11: ='4PO'!AL27 -> ream | AU11: ='4PO'!AM27 -> Bondpaper Long, Sub 20 | BC11: ='4PO'!AQ27 -> 20 | BD11: ='4PO'!AT27 -> 1 | BE11: ='4PO'!AU27 -> set | BF11: ='4PO'!AV27 -> Printer, CMYK | BN11: ='4PO'!AZ27 -> 1 | BO11: ='4PO'!BC27 -> 1 | BP11: ='4PO'!BD27 -> roll | BQ11: ='4PO'!BE27 -> Coaxial Cable | BY11: ='4PO'!BI27 -> 1.5 | BZ11: ='4PO'!AK27 -> 1 | CA11: ='4PO'!BM27 -> tl | CB11: ='4PO'!BN27 -> Septic vault suction | CJ11: ='4PO'!BR27 -> 8 | CK11: ='4PO'!AT27 -> 1 | CL11: ='4PO'!AU27 -> set | CM11: ='4PO'!AV27 -> Printer, CMYK | CU11: ='4PO'!AZ27 -> 1
A12: ='4PO'!A28 -> 2 | B12: ='4PO'!B28 -> pcs | C12: ='4PO'!C28 -> Safety breaker, Surface type (15amp) | K12: ='4PO'!G28 -> 5 | L12: ='4PO'!J28 -> 4 | M12: ='4PO'!K28 -> set | N12: ='4PO'!L28 -> Flood light, Led 50w | V12: ='4PO'!P28 -> 2 | W12: ='4PO'!S28 -> 9 | X12: ='4PO'!T28 -> bag | Y12: ='4PO'!U28 -> Cement | AG12: ='4PO'!Y28 -> 12 | AH12: ='4PO'!AB28 -> 5 | AI12: ='4PO'!AC28 -> set | AJ12: ='4PO'!AD28 -> Flood light, Led 50w | AR12: ='4PO'!AH28 -> 2 | AS12: ='4PO'!AK28 -> 2 | AT12: ='4PO'!AL28 -> pcs | AU12: ='4PO'!AM28 -> White board pen, (black, blue & red) | BC12: ='4PO'!AQ28 -> 9 | BD12: ='4PO'!AT28 -> 0 | BE12: ='4PO'!AU28 -> 0 | BF12: ='4PO'!AV28 -> 0 | BN12: ='4PO'!AZ28 -> 0 | BO12: ='4PO'!BC28 -> 2 | BP12: ='4PO'!BD28 -> pcs | BQ12: ='4PO'!BE28 -> DC Adapter 12v, 5A | BY12: ='4PO'!BI28 -> 1 | BZ12: ='4PO'!BL28 -> 0 | CA12: ='4PO'!BM28 -> 0 | CB12: ='4PO'!BN28 -> 0 | CJ12: ='4PO'!BR28 -> 0 | CK12: ='4PO'!BW28 -> 0 | CL12: ='4PO'!BX28 -> 0 | CM12: ='4PO'!BY28 -> 0 | CU12: ='4PO'!CC28 -> 0
A13: ='4PO'!A29 -> 5 | B13: ='4PO'!B29 -> roll | C13: ='4PO'!C29 -> Electrical Tape, Big | K13: ='4PO'!G29 -> 5 | L13: ='4PO'!J29 -> 10 | M13: ='4PO'!K29 -> pck | N13: ='4PO'!L29 -> Staple wire, Concrete | V13: ='4PO'!P29 -> 1 | W13: ='4PO'!S29 -> 0 | X13: ='4PO'!T29 -> 0 | Y13: ='4PO'!U29 -> 0 | AG13: ='4PO'!Y29 -> 0 | AH13: ='4PO'!AB29 -> 6 | AI13: ='4PO'!AC29 -> pc | AJ13: ='4PO'!AD29 -> Allen Wrench | AR13: ='4PO'!AH29 -> 1 | AS13: ='4PO'!AK29 -> 0 | AT13: ='4PO'!AL29 -> 0 | AU13: ='4PO'!AM29 -> 0 | BC13: ='4PO'!AQ29 -> 0 | BD13: ='4PO'!AT29 -> 0 | BE13: ='4PO'!AU29 -> 0 | BF13: ='4PO'!AV29 -> 0 | BN13: ='4PO'!AZ29 -> 0 | BO13: ='4PO'!BC29 -> 3 | BP13: ='4PO'!BD29 -> pcs | BQ13: ='4PO'!BE29 -> Camera | BY13: ='4PO'!BI29 -> 5 | BZ13: ='4PO'!BL29 -> 0 | CA13: ='4PO'!BM29 -> 0 | CB13: ='4PO'!BN29 -> 0 | CJ13: ='4PO'!BR29 -> 0 | CK13: ='4PO'!BW29 -> 0 | CL13: ='4PO'!BX29 -> 0 | CM13: ='4PO'!BY29 -> 0 | CU13: ='4PO'!CC29 -> 0
A14: ='4PO'!A30 -> 6 | B14: ='4PO'!B30 -> pcs | C14: ='4PO'!C30 -> Tiles, 60 x 60 | K14: ='4PO'!G30 -> 100 | L14: ='4PO'!J30 -> 11 | M14: ='4PO'!K30 -> pck | N14: ='4PO'!L30 -> Tox w/ screw | V14: ='4PO'!P30 -> 1 | W14: ='4PO'!S30 -> 0 | X14: ='4PO'!T30 -> 0 | Y14: ='4PO'!U30 -> 0 | AG14: ='4PO'!Y30 -> 0 | AH14: ='4PO'!AB30 -> 7 | AI14: ='4PO'!AC30 -> pc | AJ14: ='4PO'!AD30 -> Soldering Iron | AR14: ='4PO'!AH30 -> 1 | AS14: ='4PO'!AK30 -> 0 | AT14: ='4PO'!AL30 -> 0 | AU14: ='4PO'!AM30 -> 0 | BC14: ='4PO'!AQ30 -> 0 | BD14: ='4PO'!AT30 -> 0 | BE14: ='4PO'!AU30 -> 0 | BF14: ='4PO'!AV30 -> 0 | BN14: ='4PO'!AZ30 -> 0 | BO14: ='4PO'!BC30 -> 4 | BP14: ='4PO'!BD30 -> pcs | BQ14: ='4PO'!BE30 -> BNC Cable, 30m | BY14: ='4PO'!BI30 -> 3 | BZ14: ='4PO'!BL30 -> 0 | CA14: ='4PO'!BM30 -> 0 | CB14: ='4PO'!BN30 -> 0 | CJ14: ='4PO'!BR30 -> 0 | CK14: ='4PO'!BW30 -> 0 | CL14: ='4PO'!BX30 -> 0 | CM14: ='4PO'!BY30 -> 0 | CU14: ='4PO'!CC30 -> 0
A15: ='4PO'!A31 -> 9 | B15: ='4PO'!B31 -> bag | C15: ='4PO'!C31 -> Tile Grout | K15: ='4PO'!G31 -> 2 | L15: ='4PO'!J31 -> 12 | M15: ='4PO'!K31 -> pck | N15: ='4PO'!L31 -> Stainless, Plain washer 1/4 | V15: ='4PO'!P31 -> 1 | W15: ='4PO'!S31 -> 0 | X15: ='4PO'!T31 -> 0 | Y15: ='4PO'!U31 -> 0 | AG15: ='4PO'!Y31 -> 0 | AH15: ='4PO'!AB31 -> 8 | AI15: ='4PO'!AC31 -> pck | AJ15: ='4PO'!AD31 -> Staple wire, Concrete | AR15: ='4PO'!AH31 -> 1 | AS15: ='4PO'!AK31 -> 0 | AT15: ='4PO'!AL31 -> 0 | AU15: ='4PO'!AM31 -> 0 | BC15: ='4PO'!AQ31 -> 0 | BD15: ='4PO'!AT31 -> 0 | BE15: ='4PO'!AU31 -> 0 | BF15: ='4PO'!AV31 -> 0 | BN15: ='4PO'!AZ31 -> 0 | BO15: ='4PO'!BC31 -> 5 | BP15: ='4PO'!BD31 -> pcs | BQ15: ='4PO'!BE31 -> BNC, Adaptor, Male | BY15: ='4PO'!BI31 -> 19 | BZ15: ='4PO'!BL31 -> 0 | CA15: ='4PO'!BM31 -> 0 | CB15: ='4PO'!BN31 -> 0 | CJ15: ='4PO'!BR31 -> 0 | CK15: ='4PO'!BW31 -> 0 | CL15: ='4PO'!BX31 -> 0 | CM15: ='4PO'!BY31 -> 0 | CU15: ='4PO'!CC31 -> 0
A16: ='4PO'!A32 -> 13 | B16: ='4PO'!B32 -> pcs | C16: ='4PO'!C32 -> Switch flush typew, 1 gang | K16: ='4PO'!G32 -> 1 | L16: ='4PO'!J32 -> 0 | M16: ='4PO'!K32 -> 0 | N16: ='4PO'!L32 -> 0 | V16: ='4PO'!P32 -> 0 | W16: ='4PO'!S32 -> 0 | X16: ='4PO'!T32 -> 0 | Y16: ='4PO'!U32 -> 0 | AG16: ='4PO'!Y32 -> 0 | AH16: ='4PO'!AB32 -> 9 | AI16: ='4PO'!AC32 -> pck | AJ16: ='4PO'!AD32 -> Tox w/ screw | AR16: ='4PO'!AH32 -> 1 | AS16: ='4PO'!AK32 -> 0 | AT16: ='4PO'!AL32 -> 0 | AU16: ='4PO'!AM32 -> 0 | BC16: ='4PO'!AQ32 -> 0 | BD16: ='4PO'!AT32 -> 0 | BE16: ='4PO'!AU32 -> 0 | BF16: ='4PO'!AV32 -> 0 | BN16: ='4PO'!AZ32 -> 0 | BO16: ='4PO'!BC32 -> 6 | BP16: ='4PO'!BD32 -> pcs | BQ16: ='4PO'!BE32 -> BNC, Adaptor, Female | BY16: ='4PO'!BI32 -> 19 | BZ16: ='4PO'!BL32 -> 0 | CA16: ='4PO'!BM32 -> 0 | CB16: ='4PO'!BN32 -> 0 | CJ16: ='4PO'!BR32 -> 0 | CK16: ='4PO'!BW32 -> 0 | CL16: ='4PO'!BX32 -> 0 | CM16: ='4PO'!BY32 -> 0 | CU16: ='4PO'!CC32 -> 0
A17: ='4PO'!A33 -> 14 | B17: ='4PO'!B33 -> pcs | C17: ='4PO'!C33 -> Floor drain | K17: ='4PO'!G33 -> 1 | L17: ='4PO'!J33 -> 0 | M17: ='4PO'!K33 -> 0 | N17: ='4PO'!L33 -> 0 | V17: ='4PO'!P33 -> 0 | W17: ='4PO'!S33 -> 0 | X17: ='4PO'!T33 -> 0 | Y17: ='4PO'!U33 -> 0 | AG17: ='4PO'!Y33 -> 0 | AH17: ='4PO'!AB33 -> 10 | AI17: ='4PO'!AC33 -> pck | AJ17: ='4PO'!AC44 -> 0 | AR17: ='4PO'!AH33 -> 1 | AS17: ='4PO'!AK33 -> 0 | AT17: ='4PO'!AL33 -> 0 | AU17: ='4PO'!AM33 -> 0 | BC17: ='4PO'!AQ33 -> 0 | BD17: ='4PO'!AT33 -> 0 | BE17: ='4PO'!AU33 -> 0 | BF17: ='4PO'!AV33 -> 0 | BN17: ='4PO'!AZ33 -> 0 | BO17: ='4PO'!BC33 -> 7 | BP17: ='4PO'!BD33 -> pcs | BQ17: ='4PO'!BE33 -> BNC, Barrel | BY17: ='4PO'!BI33 -> 19 | BZ17: ='4PO'!BL33 -> 0 | CA17: ='4PO'!BM33 -> 0 | CB17: ='4PO'!BN33 -> 0 | CJ17: ='4PO'!BR33 -> 0 | CK17: ='4PO'!BW33 -> 0 | CL17: ='4PO'!BX33 -> 0 | CM17: ='4PO'!BY33 -> 0 | CU17: ='4PO'!CC33 -> 0
A18: ='4PO'!A34 -> 15 | B18: ='4PO'!B34 -> pcs | C18: ='4PO'!C34 -> Diamond cutting wheel | K18: ='4PO'!G34 -> 2 | L18: ='4PO'!J34 -> 0 | M18: ='4PO'!K34 -> 0 | N18: ='4PO'!L34 -> 0 | V18: ='4PO'!P34 -> 0 | W18: ='4PO'!S34 -> 0 | X18: ='4PO'!T34 -> 0 | Y18: ='4PO'!U34 -> 0 | AG18: ='4PO'!Y34 -> 0 | AH18: ='4PO'!AB39 -> 0 | AI18: ='4PO'!AC39 -> 0 | AJ18: ='4PO'!AC45 -> 0 | AR18: ='4PO'!AH39 -> 0 | AS18: ='4PO'!AK34 -> 0 | AT18: ='4PO'!AL34 -> 0 | AU18: ='4PO'!AM34 -> 0 | BC18: ='4PO'!AQ34 -> 0 | BD18: ='4PO'!AT34 -> 0 | BE18: ='4PO'!AU34 -> 0 | BF18: ='4PO'!AV34 -> 0 | BN18: ='4PO'!AZ34 -> 0 | BO18: ='4PO'!BC34 -> 8 | BP18: ='4PO'!BD34 -> roll | BQ18: ='4PO'!BE34 -> Coaxial cable, 20m | BY18: ='4PO'!BI34 -> 3 | BZ18: ='4PO'!BL34 -> 0 | CA18: ='4PO'!BM34 -> 0 | CB18: ='4PO'!BN34 -> 0 | CJ18: ='4PO'!BR34 -> 0 | CK18: ='4PO'!BW34 -> 0 | CL18: ='4PO'!BX34 -> 0 | CM18: ='4PO'!BY34 -> 0 | CU18: ='4PO'!CC34 -> 0
A19: ='4PO'!A35 -> 0 | B19: ='4PO'!B35 -> 0 | C19: ='4PO'!C35 -> 0 | K19: ='4PO'!G35 -> 0 | L19: ='4PO'!J35 -> 0 | M19: ='4PO'!K35 -> 0 | N19: ='4PO'!L35 -> 0 | V19: ='4PO'!P35 -> 0 | AH19: ='4PO'!AB40 -> 0 | AI19: ='4PO'!AC40 -> 0 | AJ19: ='4PO'!AC46 -> 0 | AR19: ='4PO'!AH40 -> 0 | AS19: ='4PO'!AK35 -> 0 | AT19: ='4PO'!AL35 -> 0 | AU19: ='4PO'!AM35 -> 0 | BC19: ='4PO'!AQ35 -> 0 | BD19: ='4PO'!AT44 -> 0 | BE19: ='4PO'!AU44 -> 0 | BF19: ='4PO'!AV44 -> 0 | BN19: ='4PO'!AZ44 -> 0 | BO19: ='4PO'!BC35 -> 9 | BP19: ='4PO'!BD35 -> roll | BQ19: ='4PO'!BE35 -> Coaxial cable, 30m | BY19: ='4PO'!BI35 -> 4 | BZ19: ='4PO'!BL35 -> 0 | CA19: ='4PO'!BM35 -> 0 | CB19: ='4PO'!BN35 -> 0 | CJ19: ='4PO'!BR35 -> 0 | CK19: ='4PO'!BW44 -> 0 | CL19: ='4PO'!BX44 -> 0 | CM19: ='4PO'!BY44 -> 0 | CU19: ='4PO'!CC44 -> 0
A20: ='4PO'!A36 -> 0 | B20: ='4PO'!B36 -> 0 | C20: ='4PO'!C36 -> 0 | K20: ='4PO'!G36 -> 0 | L20: ='4PO'!J36 -> 0 | M20: ='4PO'!K36 -> 0 | N20: ='4PO'!L36 -> 0 | V20: ='4PO'!P36 -> 0 | AH20: ='4PO'!AB41 -> 0 | AI20: ='4PO'!AC41 -> 0 | AJ20: ='4PO'!AD41 -> 0 | AR20: ='4PO'!AH41 -> 0 | AS20: ='4PO'!AK36 -> 0 | AT20: ='4PO'!AL36 -> 0 | AU20: ='4PO'!AM36 -> 0 | BC20: ='4PO'!AQ36 -> 0 | BD20: ='4PO'!AT45 -> 0 | BE20: ='4PO'!AU45 -> 0 | BF20: ='4PO'!AV45 -> 0 | BN20: ='4PO'!AZ45 -> 0 | BO20: ='4PO'!BC36 -> 0 | BP20: ='4PO'!BD36 -> 0 | BQ20: ='4PO'!BE36 -> 0 | BY20: ='4PO'!BI36 -> 0 | BZ20: ='4PO'!BL36 -> 0 | CA20: ='4PO'!BM36 -> 0 | CB20: ='4PO'!BN36 -> 0 | CJ20: ='4PO'!BR36 -> 0 | CK20: ='4PO'!BW45 -> 0 | CL20: ='4PO'!BX45 -> 0 | CM20: ='4PO'!BY45 -> 0 | CU20: ='4PO'!CC45 -> 0
A21: ='4PO'!A37 -> 0 | B21: ='4PO'!B37 -> 0 | C21: ='4PO'!C37 -> 0 | K21: ='4PO'!G37 -> 0 | L21: ='4PO'!J36 -> 0 | M21: ='4PO'!K37 -> 0 | N21: ='4PO'!L37 -> 0 | V21: ='4PO'!P36 -> 0 | AH21: ='4PO'!AB44 -> 0 | AI21: ='4PO'!AC44 -> 0 | AJ21: ='4PO'!AD44 -> 0 | AR21: ='4PO'!AH44 -> 0 | AS21: ='4PO'!AK46 -> 0 | AT21: ='4PO'!AL46 -> 0 | AU21: ='4PO'!AM46 -> 0 | BC21: ='4PO'!AQ46 -> 0 | BD21: ='4PO'!AT46 -> 0 | BE21: ='4PO'!AU46 -> 0 | BF21: ='4PO'!AV46 -> 0 | BN21: ='4PO'!AZ46 -> 0 | BO21: ='4PO'!BC37 -> 0 | BP21: ='4PO'!BD37 -> 0 | BQ21: ='4PO'!BE37 -> 0 | BY21: ='4PO'!BI37 -> 0 | BZ21: ='4PO'!BL46 -> 0 | CA21: ='4PO'!BM46 -> 0 | CB21: ='4PO'!BN46 -> 0 | CJ21: ='4PO'!BR46 -> 0 | CK21: ='4PO'!BW46 -> 0 | CL21: ='4PO'!BX46 -> 0 | CM21: ='4PO'!BY46 -> 0 | CU21: ='4PO'!CC46 -> 0
A22: ='4PO'!A38 -> 0 | B22: ='4PO'!B38 -> 0 | C22: ='4PO'!C38 -> 0 | K22: ='4PO'!G38 -> 0 | L22: ='4PO'!J37 -> 0 | M22: ='4PO'!K38 -> 0 | N22: ='4PO'!L37 -> 0 | V22: ='4PO'!P37 -> 0 | AH22: ='4PO'!AB45 -> 0 | AI22: ='4PO'!AC45 -> 0 | AJ22: ='4PO'!AD45 -> 0 | AR22: ='4PO'!AH45 -> 0 | AS22: ='4PO'!AK47 -> 0 | AT22: ='4PO'!AL47 -> 0 | AU22: ='4PO'!AM47 -> 0 | BC22: ='4PO'!AQ47 -> 0 | BD22: ='4PO'!AT47 -> 0 | BE22: ='4PO'!AU47 -> 0 | BF22: ='4PO'!AV47 -> 0 | BN22: ='4PO'!AZ47 -> 0 | BO22: ='4PO'!BC38 -> 0 | BP22: ='4PO'!BD38 -> 0 | BQ22: ='4PO'!BE38 -> 0 | BY22: ='4PO'!BI38 -> 0 | BZ22: ='4PO'!BL47 -> 0 | CA22: ='4PO'!BM47 -> 0 | CB22: ='4PO'!BN47 -> 0 | CJ22: ='4PO'!BR47 -> 0 | CK22: ='4PO'!BW47 -> 0 | CL22: ='4PO'!BX47 -> 0 | CM22: ='4PO'!BY47 -> 0 | CU22: ='4PO'!CC47 -> 0
A23: ='4PO'!A39 -> 0 | B23: ='4PO'!B39 -> 0 | C23: ='4PO'!C39 -> 0 | K23: ='4PO'!G39 -> 0 | L23: ='4PO'!J38 -> 0 | M23: ='4PO'!K39 -> 0 | N23: ='4PO'!L38 -> 0 | V23: ='4PO'!P38 -> 0 | AH23: ='4PO'!AB46 -> 0 | AI23: ='4PO'!AC46 -> 0 | AJ23: ='4PO'!AD46 -> 0 | AR23: ='4PO'!AH46 -> 0 | AS23: ='4PO'!AK48 -> 0 | AT23: ='4PO'!AL48 -> 0 | AU23: ='4PO'!AM48 -> 0 | BC23: ='4PO'!AQ48 -> 0 | BD23: ='4PO'!AT48 -> 0 | BE23: ='4PO'!AU48 -> 0 | BF23: ='4PO'!AV48 -> 0 | BN23: ='4PO'!AZ48 -> 0 | BO23: ='4PO'!BC39 -> 0 | BP23: ='4PO'!BD39 -> 0 | BQ23: ='4PO'!BE39 -> 0 | BY23: ='4PO'!BI39 -> 0 | BZ23: ='4PO'!BL48 -> 0 | CA23: ='4PO'!BM48 -> 0 | CB23: ='4PO'!BN48 -> 0 | CJ23: ='4PO'!BR48 -> 0 | CK23: ='4PO'!BW48 -> 0 | CL23: ='4PO'!BX48 -> 0 | CM23: ='4PO'!BY48 -> 0 | CU23: ='4PO'!CC48 -> 0
A24: ='4PO'!A40 -> 0 | B24: ='4PO'!B40 -> 0 | C24: ='4PO'!C40 -> 0 | K24: ='4PO'!G40 -> 0 | L24: ='4PO'!J39 -> 0 | M24: ='4PO'!K39 -> 0 | N24: ='4PO'!L39 -> 0 | V24: ='4PO'!P39 -> 0 | AH24: ='4PO'!AB49 -> 0 | AI24: ='4PO'!AC49 -> 0 | AJ24: ='4PO'!AD49 -> 0 | AR24: ='4PO'!AH49 -> 0 | AS24: ='4PO'!AK49 -> 0 | AT24: ='4PO'!AL49 -> 0 | AU24: ='4PO'!AM49 -> 0 | BC24: ='4PO'!AQ49 -> 0 | BD24: ='4PO'!AT49 -> 0 | BE24: ='4PO'!AU49 -> 0 | BF24: ='4PO'!AV49 -> 0 | BN24: ='4PO'!AZ49 -> 0 | BO24: ='4PO'!BC40 -> 0 | BP24: ='4PO'!BD40 -> 0 | BQ24: ='4PO'!BE40 -> 0 | BY24: ='4PO'!BI40 -> 0 | BZ24: ='4PO'!BL49 -> 0 | CA24: ='4PO'!BM49 -> 0 | CB24: ='4PO'!BN49 -> 0 | CJ24: ='4PO'!BR49 -> 0 | CK24: ='4PO'!BW49 -> 0 | CL24: ='4PO'!BX49 -> 0 | CM24: ='4PO'!BY49 -> 0 | CU24: ='4PO'!CC49 -> 0
A25: ='4PO'!A41 -> 0 | B25: ='4PO'!B41 -> 0 | C25: ='4PO'!C41 -> 0 | K25: ='4PO'!G41 -> 0 | L25: ='4PO'!J40 -> 0 | M25: ='4PO'!K40 -> 0 | N25: ='4PO'!L40 -> 0 | V25: ='4PO'!P40 -> 0 | AH25: ='4PO'!AB50 -> 0 | AI25: ='4PO'!AC50 -> 0 | AJ25: ='4PO'!AD50 -> 0 | AR25: ='4PO'!AH50 -> 0 | AS25: ='4PO'!AK50 -> 0 | AT25: ='4PO'!AL50 -> 0 | AU25: ='4PO'!AM50 -> 0 | BC25: ='4PO'!AQ50 -> 0 | BD25: ='4PO'!AT50 -> 0 | BE25: ='4PO'!AU50 -> 0 | BF25: ='4PO'!AV50 -> 0 | BN25: ='4PO'!AZ50 -> 0 | BO25: ='4PO'!BC41 -> 0 | BP25: ='4PO'!BD41 -> 0 | BQ25: ='4PO'!BE41 -> 0 | BY25: ='4PO'!BI41 -> 0 | BZ25: ='4PO'!BL50 -> 0 | CA25: ='4PO'!BM50 -> 0 | CB25: ='4PO'!BN50 -> 0 | CJ25: ='4PO'!BR50 -> 0 | CK25: ='4PO'!BW50 -> 0 | CL25: ='4PO'!BX50 -> 0 | CM25: ='4PO'!BY50 -> 0 | CU25: ='4PO'!CC50 -> 0
A26: ='4PO'!A42 -> 0 | B26: ='4PO'!B42 -> 0 | C26: ='4PO'!C42 -> 0 | K26: ='4PO'!G42 -> 0 | L26: ='4PO'!J41 -> 0 | M26: ='4PO'!K41 -> 0 | N26: ='4PO'!L41 -> 0 | V26: ='4PO'!P41 -> 0 | BO26: ='4PO'!BC42 -> 0 | BP26: ='4PO'!BD42 -> 0 | BQ26: ='4PO'!BE42 -> 0 | BY26: ='4PO'!BI42 -> 0
A27: ='4PO'!A43 -> 0 | B27: ='4PO'!B43 -> 0 | C27: ='4PO'!C43 -> 0 | K27: ='4PO'!G43 -> 0 | L27: ='4PO'!J42 -> 0 | M27: ='4PO'!K42 -> 0 | N27: ='4PO'!L42 -> 0 | V27: ='4PO'!P42 -> 0 | BO27: ='4PO'!BC43 -> 0 | BP27: ='4PO'!BD43 -> 0 | BQ27: ='4PO'!BE43 -> 0 | BY27: ='4PO'!BI43 -> 0
A28: ='4PO'!A44 -> 0 | B28: ='4PO'!B44 -> 0 | C28: ='4PO'!C44 -> 0 | K28: ='4PO'!G44 -> 0 | L28: ='4PO'!J43 -> 0 | M28: ='4PO'!K43 -> 0 | N28: ='4PO'!L43 -> 0 | V28: ='4PO'!P43 -> 0 | BO28: ='4PO'!BC44 -> 0 | BP28: ='4PO'!BD44 -> 0 | BQ28: ='4PO'!BE44 -> 0 | BY28: ='4PO'!BI44 -> 0
A29: ='4PO'!A45 -> 0 | B29: ='4PO'!B45 -> 0 | C29: ='4PO'!C45 -> 0 | K29: ='4PO'!G45 -> 0 | L29: ='4PO'!J44 -> 0 | M29: ='4PO'!K44 -> 0 | N29: ='4PO'!L44 -> 0 | V29: ='4PO'!P44 -> 0 | BO29: ='4PO'!BC45 -> 0 | BP29: ='4PO'!BD45 -> 0 | BQ29: ='4PO'!BE45 -> 0 | BY29: ='4PO'!BI45 -> 0
A30: ='4PO'!A46 -> 0 | B30: ='4PO'!B46 -> 0 | C30: ='4PO'!C46 -> 0 | K30: ='4PO'!G46 -> 0 | L30: ='4PO'!J45 -> 0 | M30: ='4PO'!K45 -> 0 | N30: ='4PO'!L45 -> 0 | V30: ='4PO'!P45 -> 0 | BO30: ='4PO'!BC46 -> 0 | BP30: ='4PO'!BD46 -> 0 | BQ30: ='4PO'!BE46 -> 0 | BY30: ='4PO'!BI46 -> 0
I38: TOTAL | K38: =SUM(K11:K37) -> 117 | T38: TOTAL | V38: =SUM(V11:V37) -> 8 | AE38: TOTAL | AG38: =SUM(AG11:AG37) -> 25 | AP38: TOTAL | AR38: =SUM(AR11:AR37) -> 10 | BA38: TOTAL | BC38: =SUM(BC11:BC37) -> 29 | BL38: TOTAL | BN38: =SUM(BN11:BN37) -> 1 | BW38: TOTAL | BY38: =SUM(BY11:BY37) -> 74.5 | CH38: TOTAL | CJ38: =SUM(CJ11:CJ37) -> 8 | CS38: TOTAL | CU38: =SUM(CU11:CU37) -> 1
A39: Date Inpected: | G39: Date Received: | L39: Date Inpected: | R39: Date Received: | W39: Date Inpected: | AC39: Date Received: | AH39: Date Inpected: | AN39: Date Received: | AS39: Date Inpected: | AY39: Date Received: | BD39: Date Inpected: | BJ39: Date Received: | BO39: Date Inpected: | BU39: Date Received: | BZ39: Date Inpected: | CF39: Date Received: | CK39: Date Inpected: | CQ39: Date Received:
B41: Inspected, Verified and found OK as to quantity | H41: Complete | M41: Inspected, Verified and found OK as to quantity | S41: Complete | X41: Inspected, Verified and found OK as to quantity | AD41: Complete | AI41: Inspected, Verified and found OK as to quantity | AO41: Complete | AT41: Inspected, Verified and found OK as to quantity | AZ41: Complete | BE41: Inspected, Verified and found OK as to quantity | BK41: Complete | BP41: Inspected, Verified and found OK as to quantity | BV41: Complete | CA41: Inspected, Verified and found OK as to quantity | CG41: Complete | CL41: Inspected, Verified and found OK as to quantity | CR41: Complete
B42: and specifications. | H42: Partial | M42: and specifications. | S42: Partial | X42: and specifications. | AD42: Partial | AI42: and specifications. | AO42: Partial | AT42: and specifications. | AZ42: Partial | BE42: and specifications. | BK42: Partial | BP42: and specifications. | BV42: Partial | CA42: and specifications. | CG42: Partial | CL42: and specifications. | CR42: Partial
B45: ERA W. ABING | I45: EVELYN S. ONGCO | M45: =$B$45 -> ERA W. ABING | T45: EVELYN S. ONGCO | X45: =$B$45 -> ERA W. ABING | AE45: EVELYN S. ONGCO | AI45: =$B$45 -> ERA W. ABING | AP45: EVELYN S. ONGCO | AT45: =$B$45 -> ERA W. ABING | BA45: EVELYN S. ONGCO | BE45: =$B$45 -> ERA W. ABING | BL45: EVELYN S. ONGCO | BP45: =$B$45 -> ERA W. ABING | BW45: EVELYN S. ONGCO | CA45: =$B$45 -> ERA W. ABING | CH45: EVELYN S. ONGCO | CL45: =$B$45 -> ERA W. ABING | CS45: EVELYN S. ONGCO
B46: Teacher I | I46: Teacher III | M46: =$B$46 -> Teacher I | T46: Teacher I | X46: =$B$46 -> Teacher I | AE46: Teacher I | AI46: =$B$46 -> Teacher I | AP46: Teacher I | AT46: =$B$46 -> Teacher I | BA46: Teacher I | BE46: =$B$46 -> Teacher I | BL46: Teacher I | BP46: =$B$46 -> Teacher I | BW46: Teacher I | CA46: =$B$46 -> Teacher I | CH46: Teacher I | CL46: =$B$46 -> Teacher I | CS46: Teacher I
B47: Inspection Officer | I47: School Property Custodian | M47: Inspection Officer | T47: School Property Custodian | X47: Inspection Officer | AE47: School Property Custodian | AI47: Inspection Officer | AP47: School Property Custodian | AT47: Inspection Officer | BA47: School Property Custodian | BE47: Inspection Officer | BL47: School Property Custodian | BP47: Inspection Officer | BW47: School Property Custodian | CA47: Inspection Officer | CH47: School Property Custodian | CL47: Inspection Officer | CS47: School Property Custodian
A49: 5 | L49: 5 | W49: 5 | AH49: 5 | AS49: 5 | BD49: 5 | BO49: 5 | BZ49: 5 | CK49: 5

Sheet 4PO
A1: Republic of the Philippines | F1: Project Ref. Number | J1: Republic of the Philippines | O1: Project Ref. Number | S1: Republic of the Philippines | X1: Project Ref. Number | AB1: Republic of the Philippines | AG1: Project Ref. Number | AK1: Republic of the Philippines | AP1: Project Ref. Number | AT1: Republic of the Philippines | AY1: Project Ref. Number | BC1: Republic of the Philippines | BH1: Project Ref. Number | BL1: Republic of the Philippines | BQ1: Project Ref. Number | BU1: Republic of the Philippines | BZ1: Project Ref. Number
A2: Department of Education | F2: Name of the Project | H2: Repair and Maintenance | J2: Department of Education | O2: Name of the Project | Q2: Repair and Maintenance | S2: Department of Education | X2: Name of the Project | Z2: Repair and Maintenance | AB2: Department of Education | AG2: Name of the Project | AI2: Office Supplies | AK2: Department of Education | AP2: Name of the Project | AR2: Office Supplies | AT2: Department of Education | AY2: Name of the Project | BA2: Office Supplies | BC2: Department of Education | BH2: Name of the Project | BJ2: Office Supplies | BL2: Department of Education | BQ2: Name of the Project | BS2: Repair and Maintenance | BU2: Department of Education | BZ2: Name of the Project | CB2: Repair and Maintenance
A3: Region VII, Central Visayas | F3: Location of the Project | H3: Marigondon ES | J3: Region VII, Central Visayas | O3: Location of the Project | Q3: Marigondon ES | S3: Region VII, Central Visayas | X3: Location of the Project | Z3: Marigondon ES | AB3: Region VII, Central Visayas | AG3: Location of the Project | AI3: Marigondon ES | AK3: Region VII, Central Visayas | AP3: Location of the Project | AR3: Marigondon ES | AT3: Region VII, Central Visayas | AY3: Location of the Project | BA3: Marigondon ES | BC3: Region VII, Central Visayas | BH3: Location of the Project | BJ3: Marigondon ES | BL3: Region VII, Central Visayas | BQ3: Location of the Project | BS3: Marigondon ES | BU3: Region VII, Central Visayas | BZ3: Location of the Project | CB3: Marigondon ES
A4: Division of Lapu-Lapu City | G4: DepEd-Division of LLC TIN | H4: '000-863-958-020 | J4: Division of Lapu-Lapu City | S4: Division of Lapu-Lapu City | AB4: Division of Lapu-Lapu City | AK4: Division of Lapu-Lapu City | AT4: Division of Lapu-Lapu City | BC4: Division of Lapu-Lapu City | BL4: Division of Lapu-Lapu City | BU4: Division of Lapu-Lapu City
A5: South District | J5: South District | S5: South District | AB5: South District | AK5: South District | AT5: South District | BC5: South District | BL5: South District | BU5: South District
A6: MARIGONDON ELEMENTARY SCHOOL | J6: =A6 -> MARIGONDON ELEMENTARY SCHOOL | S6: =J6 -> MARIGONDON ELEMENTARY SCHOOL | AB6: =S6 -> MARIGONDON ELEMENTARY SCHOOL | AK6: MARIGONDON ELEMENTARY SCHOOL | AT6: MARIGONDON ELEMENTARY SCHOOL | BC6: MARIGONDON ELEMENTARY SCHOOL | BL6: MARIGONDON ELEMENTARY SCHOOL | BU6: MARIGONDON ELEMENTARY SCHOOL
A12: PURCHASE ORDER | J12: PURCHASE ORDER | S12: PURCHASE ORDER | AB12: PURCHASE ORDER | AK12: PURCHASE ORDER | AT12: PURCHASE ORDER | BC12: PURCHASE ORDER | BL12: PURCHASE ORDER | BU12: PURCHASE ORDER
A13: Department of Education - Lapu-Lapu City | J13: Department of Education - Lapu-Lapu City | S13: Department of Education - Lapu-Lapu City | AB13: Department of Education - Lapu-Lapu City | AK13: Department of Education - Lapu-Lapu City | AT13: Department of Education - Lapu-Lapu City | BC13: Department of Education - Lapu-Lapu City | BL13: Department of Education - Lapu-Lapu City | BU13: Department of Education - Lapu-Lapu City
A15: Supplier: | B15: ROY ENTERPRISES | F15: P.O. No.: | H15: 2001001 | J15: Supplier: | K15: SAVER DEPOT | O15: P.O. No.: | Q15: =H15+1 -> 2001002 | S15: Supplier: | T15: Duane & Dwight | X15: P.O. No.: | Z15: =Q15+1 -> 2001003 | AB15: Supplier: | AC15: Savers Depot | AG15: P.O. No.: | AI15: =Z15+1 -> 2001004 | AK15: Supplier: | AL15: La Nueva Supermarket | AP15: P.O. No.: | AR15: =AI15+1 -> 2001005 | AT15: Supplier: | AU15: Vannix Computers | AY15: P.O. No.: | BA15: =AR15+1 -> 2001006 | BC15: Supplier: | BD15: Onecall Marketing | BH15: P.O. No.: | BJ15: =BA15+1 -> 2001007 | BL15: Supplier: | BM15: Northern Septic Tank Services | BQ15: P.O. No.: | BS15: =BJ15+1 -> 2001008 | BU15: Supplier: | BZ15: P.O. No.: | CB15: =BS15+1 -> 2001009
A16: Address: | B16: Pajo, Lapu-Lapu City | F16: Date: | H16: 2020-01-27 | J16: Address: | K16: Sudtunggan, Lapu-Lapu City | O16: Date: | Q16: 2020-01-27 | S16: Address: | T16: Marigondon LLC | X16: Date: | Z16: 2018-01-11 | AB16: Address: | AC16: Basak, Lapu-Lapu City | AG16: Date: | AI16: 2018-01-11 | AK16: Address: | AL16: Pajo, Lapu-Lapu City | AP16: Date: | AR16: 2018-01-11 | AT16: Address: | AU16: A.C. Cortes Ave. Mandaue City | AY16: Date: | BA16: 2018-01-11 | BC16: Address: | BD16: 7 Molave St, Brgy Camputhaw, Cebu City | BH16: Date: | BJ16: 2018-01-11 | BL16: Address: | BM16: Poblacion, Mandaue City | BQ16: Date: | BS16: 2018-01-15 | BU16: Address: | BZ16: Date: | CB16: 2017-01-23
A17: Email Add: | F17: Mode of Procurement | H17: Shopping | J17: Email Add: | O17: Mode of Procurement | Q17: Shopping | S17: Email Add: | X17: Mode of Procurement | Z17: Shopping | AB17: Email Add: | AG17: Mode of Procurement | AI17: Shopping | AK17: Email Add: | AP17: Mode of Procurement | AR17: Shopping | AT17: Email Add: | AY17: Mode of Procurement | BA17: Shopping | BC17: Email Add: | BH17: Mode of Procurement | BJ17: Shopping | BL17: Email Add: | BQ17: Mode of Procurement | BS17: Shopping | BU17: Email Add: | BZ17: Mode of Procurement | CB17: Shopping
A18: TIN | J18: TIN | S18: TIN | AB18: TIN | AK18: TIN | AT18: TIN | BC18: TIN | BL18: TIN | BU18: TIN
A20: Gentlemen: | J20: Gentlemen: | S20: Gentlemen: | AB20: Gentlemen: | AK20: Gentlemen: | AT20: Gentlemen: | BC20: Gentlemen: | BL20: Gentlemen: | BU20: Gentlemen:
B21: Please furnish this office articles subject to the terms and conditions contained herein | K21: Please furnish this office articles subject to the terms and conditions contained herein | T21: Please furnish this office articles subject to the terms and conditions contained herein | AC21: Please furnish this office articles subject to the terms and conditions contained herein | AL21: Please furnish this office articles subject to the terms and conditions contained herein | AU21: Please furnish this office articles subject to the terms and conditions contained herein | BD21: Please furnish this office articles subject to the terms and conditions contained herein | BM21: Please furnish this office articles subject to the terms and conditions contained herein | BV21: Please furnish this office articles subject to the terms and conditions contained herein
A23: Place of Delivery | C23: Marigondon Elementary School | G23: Delivery Term: | J23: Place of Delivery | L23: =C23 -> Marigondon Elementary School | P23: Delivery Term: | S23: Place of Delivery | U23: =L23 -> Marigondon Elementary School | Y23: Delivery Term: | Z23: Pick-up | AB23: Place of Delivery | AD23: =U23 -> Marigondon Elementary School | AH23: Delivery Term: | AI23: Pick-up | AK23: Place of Delivery | AM23: Marigondon Elementary School | AQ23: Delivery Term: | AT23: Place of Delivery | AV23: =AM23 -> Marigondon Elementary School | AZ23: Delivery Term: | BC23: Place of Delivery | BE23: =AV23 -> Marigondon Elementary School | BI23: Delivery Term: | BL23: Place of Delivery | BN23: =BE23 -> Marigondon Elementary School | BR23: Delivery Term: | BS23: Pick-up | BU23: Place of Delivery | BW23: =BN23 -> Marigondon Elementary School | CA23: Delivery Term: | CB23: Pick-up
A24: Date of Delivery | C24: =H16 -> 2020-01-27 | G24: Payment Term: | H24: Cash | J24: Date of Delivery | L24: =PODate2 -> 2020-01-27 | P24: Payment Term: | Q24: Cash | S24: Date of Delivery | U24: =PODate3 -> 2018-01-11 | Y24: Payment Term: | Z24: Cash | AB24: Date of Delivery | AD24: =PODate4 -> 2018-01-11 | AH24: Payment Term: | AI24: Cash | AK24: Date of Delivery | AM24: =AR16 -> 2018-01-11 | AQ24: Payment Term: | AR24: Cash | AT24: Date of Delivery | AV24: =BA16 -> 2018-01-11 | AZ24: Payment Term: | BA24: Cash | BC24: Date of Delivery | BE24: =PODate7 -> 2018-01-11 | BI24: Payment Term: | BJ24: Cash | BL24: Date of Delivery | BN24: =PODate8 -> 2018-01-15 | BR24: Payment Term: | BS24: Cash | BU24: Date of Delivery | BW24: =PODate8 -> 2018-01-15 | CA24: Payment Term: | CB24: Cash
A26: Stock No. | B26: Unit | C26: Item Description | G26: Quantity | H26: Unit Cost | I26: Amount | J26: Stock No. | K26: Unit | L26: Item Description | P26: Quantity | Q26: Unit Cost | R26: Amount | S26: Stock No. | T26: Unit | U26: Item Description | Y26: Quantity | Z26: Unit Cost | AA26: Amount | AB26: Stock No. | AC26: Unit | AD26: Item Description | AH26: Quantity | AI26: Unit Cost | AJ26: Amount | AK26: Stock No. | AL26: Unit | AM26: Item Description | AQ26: Quantity | AR26: Unit Cost | AS26: Amount | AT26: Stock No. | AU26: Unit | AV26: Item Description | AZ26: Quantity | BA26: Unit Cost | BB26: Amount | BC26: Stock No. | BD26: Unit | BE26: Item Description | BI26: Quantity | BJ26: Unit Cost | BK26: Amount | BL26: Stock No. | BM26: Unit | BN26: Item Description | BR26: Quantity | BS26: Unit Cost | BT26: Amount | BU26: Stock No. | BV26: Unit | BW26: Item Description | CA26: Quantity | CB26: Unit Cost | CC26: Amount
A27: 1 | B27: roll | C27: Loomex wire, #12 | G27: 1 | H27: 2200 | I27: =H27*G27 -> 2200 | J27: 3 | K27: set | L27: Flood light, Led 30w | P27: 3 | Q27: 1350 | R27: =Q27*P27 -> 4050 | S27: 8 | T27: bag | U27: Adhesive | X27: 17 | Y27: 13 | Z27: 235 | AA27: =Z27*Y27 -> 3055 | AB27: 4 | AC27: set | AD27: Flood light, Led 30w | AH27: 3 | AI27: 1800 | AJ27: =AH27*AI27 -> 5400 | AK27: 1 | AL27: ream | AM27: Bondpaper Long, Sub 20 | AQ27: 20 | AR27: 159 | AS27: =AR27*AQ27 -> 3180 | AT27: 1 | AU27: set | AV27: Printer, CMYK | AZ27: 1 | BA27: 4995 | BB27: =BA27*AZ27 -> 4995 | BC27: 1 | BD27: roll | BE27: Coaxial Cable | BI27: 1.5 | BJ27: 8100 | BK27: =BJ27*BI27 -> 12150 | BL27: 1 | BM27: tl | BN27: Septic vault suction | BR27: 8 | BS27: 3400 | BT27: =BS27*BR27 -> 27200 | CA27: 1 | CB27: 1420 | CC27: =CB27*CA27 -> 1420
A28: 2 | B28: pcs | C28: Safety breaker, Surface type (15amp) | G28: 5 | H28: 387.5 | I28: =H28*G28 -> 1937.5 | J28: 4 | K28: set | L28: Flood light, Led 50w | P28: 2 | Q28: 3000 | R28: =Q28*P28 -> 6000 | S28: 9 | T28: bag | U28: Cement | X28: 16 | Y28: 12 | Z28: 190 | AA28: =Z28*Y28 -> 2280 | AB28: 5 | AC28: set | AD28: Flood light, Led 50w | AH28: 2 | AI28: 2250 | AJ28: =AH28*AI28 -> 4500 | AK28: 2 | AL28: pcs | AM28: White board pen, (black, blue & red) | AQ28: 9 | AR28: 47.5 | AS28: =AR28*AQ28 -> 427.5 | BB28: =BA28*AZ28 -> 0 | BC28: 2 | BD28: pcs | BE28: DC Adapter 12v, 5A | BI28: 1 | BJ28: 605 | BK28: =BJ28*BI28 -> 605 | BT28: =BS28*BR28 -> 0 | CC28: =CB28*CA28 -> 0
A29: 5 | B29: roll | C29: Electrical Tape, Big | G29: 5 | H29: 45 | I29: 225 | J29: 10 | K29: pck | L29: Staple wire, Concrete | P29: 1 | Q29: 118.5 | R29: 118.5 | AA29: 0 | AB29: 6 | AC29: pc | AD29: Allen Wrench | AH29: 1 | AI29: 129 | AJ29: 129 | AS29: 0 | BB29: 0 | BC29: 3 | BD29: pcs | BE29: Camera | BI29: 5 | BJ29: 1595 | BK29: 7975 | BT29: =BS29*BR29 -> 0 | CC29: =CB29*CA29 -> 0
A30: 6 | B30: pcs | C30: Tiles, 60 x 60 | G30: 100 | H30: 158.08 | I30: 15808 | J30: 11 | K30: pck | L30: Tox w/ screw | P30: 1 | Q30: 65.5 | R30: 65.5 | AA30: 0 | AB30: 7 | AC30: pc | AD30: Soldering Iron | AH30: 1 | AI30: 99 | AJ30: 99 | AS30: 0 | BB30: 0 | BC30: 4 | BD30: pcs | BE30: BNC Cable, 30m | BI30: 3 | BJ30: 415 | BK30: 1245 | BT30: 0 | CC30: 0
A31: 9 | B31: bag | C31: Tile Grout | G31: 2 | H31: 65 | I31: 130 | J31: 12 | K31: pck | L31: Stainless, Plain washer 1/4 | P31: 1 | Q31: 16 | R31: 16 | AA31: 0 | AB31: 8 | AC31: pck | AD31: Staple wire, Concrete | AH31: 1 | AI31: 118.5 | AJ31: 118.5 | AS31: 0 | BB31: 0 | BC31: 5 | BD31: pcs | BE31: BNC, Adaptor, Male | BI31: 19 | BJ31: 70 | BK31: 1330 | BT31: 0 | CC31: 0
A32: 13 | B32: pcs | C32: Switch flush typew, 1 gang | G32: 1 | H32: 60 | I32: 60 | AA32: 0 | AB32: 9 | AC32: pck | AD32: Tox w/ screw | AH32: 1 | AI32: 65.5 | AJ32: 65.5 | AS32: 0 | BB32: 0 | BC32: 6 | BD32: pcs | BE32: BNC, Adaptor, Female | BI32: 19 | BJ32: 70 | BK32: 1330 | BT32: 0 | CC32: 0
A33: 14 | B33: pcs | C33: Floor drain | G33: 1 | H33: 20 | I33: 20 | AA33: 0 | AB33: 10 | AC33: pck | AD33: Stainless, Plain washer 1/4 | AH33: 1 | AI33: 16 | AJ33: =AH33*AI33 -> 16 | AS33: 0 | BB33: 0 | BC33: 7 | BD33: pcs | BE33: BNC, Barrel | BI33: 19 | BJ33: 60 | BK33: 1140 | BT33: 0 | CC33: 0
A34: 15 | B34: pcs | C34: Diamond cutting wheel | G34: 2 | H34: 140 | I34: 280 | AA34: 0 | AJ34: 0 | AS34: 0 | BB34: 0 | BC34: 8 | BD34: roll | BE34: Coaxial cable, 20m | BI34: 3 | BJ34: 315 | BK34: 945 | BT34: 0 | CC34: 0
I35: 0 | R35: 0 | AA35: 0 | AJ35: 0 | AS35: 0 | BB35: 0 | BC35: 9 | BD35: roll | BE35: Coaxial cable, 30m | BI35: 4 | BJ35: 415 | BK35: 1660 | BT35: 0 | CC35: 0
I36: 0 | R36: 0 | AA36: 0 | AJ36: 0 | AS36: 0 | BB36: 0 | BK36: 0 | BT36: 0 | CC36: 0
I37: 0 | R37: 0 | AA37: 0 | AJ37: 0 | AS37: 0 | BB37: 0 | BK37: 0 | BT37: 0 | CC37: 0
I38: 0 | R38: 0 | AA38: 0 | AJ38: 0 | AS38: 0 | BB38: 0 | BK38: 0 | BT38: 0 | CC38: 0
I39: 0 | R39: 0 | AA39: 0 | AJ39: 0 | AS39: 0 | BB39: 0 | BK39: 0 | BT39: 0 | CC39: 0
I40: 0 | R40: 0 | AA40: 0 | AJ40: 0 | AS40: 0 | BB40: 0 | BK40: 0 | BT40: 0 | CC40: 0
I41: 0 | R41: 0 | AA41: 0 | AJ41: 0 | AS41: 0 | BB41: 0 | BK41: 0 | BT41: 0 | CC41: 0
I42: 0 | R42: 0 | AA42: 0 | AJ42: 0 | AS42: 0 | BB42: 0 | BK42: 0 | BT42: 0 | CC42: 0
I43: 0 | R43: =Q43*P43 -> 0 | AA43: 0 | AJ43: 0 | AS43: 0 | BB43: 0 | BK43: 0 | BT43: 0 | CC43: 0
I44: 0 | R44: 0 | AA44: 0 | AJ44: 0 | AS44: 0 | BB44: 0 | BK44: 0 | BT44: 0 | CC44: 0
I45: 0 | R45: 0 | AA45: 0 | AJ45: 0 | AS45: 0 | BB45: 0 | BK45: 0 | BT45: 0 | CC45: 0
I46: 0 | R46: 0 | AA46: 0 | AJ46: 0 | AS46: 0 | BB46: 0 | BK46: 0 | BT46: 0 | CC46: 0
I47: 0 | R47: 0 | AA47: 0 | AJ47: 0 | AS47: 0 | BB47: 0 | BK47: 0 | BT47: 0 | CC47: 0
I48: 0 | R48: 0 | AA48: 0 | AJ48: 0 | AS48: 0 | BB48: 0 | BK48: 0 | BT48: 0 | CC48: 0
I49: 0 | R49: 0 | AA49: 0 | AJ49: 0 | AS49: 0 | BB49: 0 | BK49: 0 | BT49: 0 | CC49: 0
I50: 0 | R50: =SUM(R27:R49) -> 10250 | AA50: 0 | AJ50: 0 | AS50: 0 | BB50: 0 | BK50: 0 | BT50: 0 | CC50: 0
C51: TOTAL | I51: =SUM(I27:I50) -> 20660.5 | J51: (Amount in Words) | L51: =SpellNumber(R50) -> Ten Thousand Two Hundred Fifty Pesos Only | U51: TOTAL | AA51: =SUM(AA27:AA50) -> 5335 | AD51: TOTAL | AJ51: =SUM(AJ27:AJ50) -> 10328 | AM51: TOTAL | AS51: =SUM(AS27:AS50) -> 3607.5 | AV51: TOTAL | BB51: =SUM(BB27:BB50) -> 4995 | BE51: TOTAL | BK51: =SUM(BK27:BK50) -> 28380 | BN51: TOTAL | BT51: =SUM(BT27:BT50) -> 27200 | BW51: TOTAL | CC51: =SUM(CC27:CC50) -> 1420
A52: (Amount in Words) | C52: =SpellNumber(I51) -> Twenty Thousand Six Hundred Sixty Pesos and Fifty Centavos Only | J52: In case of failure to make the full delivery within the time specified above, a penalty of one-tenth (1/10) | U52: =SpellNumber(AA51) -> Five Thousand Three Hundred Thirty Five Pesos Only | AB52: (Amount in Words) | AD52: =SpellNumber(AJ51) -> Ten Thousand Three Hundred Twenty Eight Pesos Only | AK52: (Amount in Words) | AM52: =SpellNumber(AS51) -> Three Thousand Six Hundred Seven Pesos and Fifty Centavos Only | AT52: (Amount in Words) | AV52: =SpellNumber(BB51) -> Four Thousand Nine Hundred Ninety Five Pesos Only | BE52: =SpellNumber(BK51) -> Twenty Eight Thousand Three Hundred Eighty Pesos Only | BL52: (Amount in Words) | BN52: =SpellNumber(BT51) -> Twenty Seven Thousand Two Hundred Pesos Only | BU52: (Amount in Words) | BW52: =SpellNumber(CC51) -> One Thousand Four Hundred Twenty Pesos Only
A53: In case of failure to make the full delivery within the time specified above, a penalty of one-tenth (1/10) | J53: of the one(1) percent for every day of delay shall be imposed. | AB53: In case of failure to make the full delivery within the time specified above, a penalty of one-tenth (1/10) | AK53: In case of failure to make the full delivery within the time specified above, a penalty of one-tenth (1/10) | AT53: In case of failure to make the full delivery within the time specified above, a penalty of one-tenth (1/10) | BL53: In case of failure to make the full delivery within the time specified above, a penalty of one-tenth (1/10) | BU53: In case of failure to make the full delivery within the time specified above, a penalty of one-tenth (1/10)
A54: of the one(1) percent for every day of delay shall be imposed. | S54: of the one(1) percent for every day of delay shall be imposed. | AB54: of the one(1) percent for every day of delay shall be imposed. | AK54: of the one(1) percent for every day of delay shall be imposed. | AT54: of the one(1) percent for every day of delay shall be imposed. | BC54: of the one(1) percent for every day of delay shall be imposed. | BL54: of the one(1) percent for every day of delay shall be imposed. | BU54: of the one(1) percent for every day of delay shall be imposed.
P55: Very truly yours,
G56: Very truly yours, | J56: Conforme: | Y56: Very truly yours, | AH56: Very truly yours, | AQ56: Very truly yours, | AZ56: Very truly yours, | BI56: Very truly yours, | BR56: Very truly yours, | CA56: Very truly yours,
A57: Conforme: | L57: ____________________________ | Q57: REBECCA P. TORING | S57: Conforme: | AB57: Conforme: | AK57: Conforme: | AT57: Conforme: | BC57: Conforme: | BL57: Conforme: | BU57: Conforme:
C58: ____________________________ | H58: REBECCA P. TORING | L58: Signature Over Printed Name | Q58: Principal II | U58: ____________________________ | Z58: REBECCA P. TORING | AD58: ____________________________ | AI58: REBECCA P. TORING | AM58: ____________________________ | AR58: REBECCA P. TORING | AV58: ____________________________ | BA58: REBECCA P. TORING | BE58: ____________________________ | BJ58: REBECCA P. TORING | BN58: ____________________________ | BS58: REBECCA P. TORING | BW58: ____________________________ | CB58: REBECCA P. TORING
C59: Signature Over Printed Name | H59: Principal I | L59: ________________ | U59: Signature Over Printed Name | Z59: Principal II | AD59: Signature Over Printed Name | AI59: Principal II | AM59: Signature Over Printed Name | AR59: Principal II | AV59: Signature Over Printed Name | BA59: Principal II | BE59: Signature Over Printed Name | BJ59: Principal II | BN59: Signature Over Printed Name | BS59: Principal II | BW59: Signature Over Printed Name | CB59: Principal II
C60: ________________ | L60: Date | U60: ________________ | AD60: ________________ | AM60: ________________ | AV60: ________________ | BE60: ________________ | BN60: ________________ | BW60: ________________
C61: Date | J61: Funds Available: | U61: Date | AD61: Date | AM61: Date | AV61: Date | BE61: Date | BN61: Date | BW61: Date
A62: Funds Available: | O62: ALOBS No.: | S62: Funds Available: | AB62: Funds Available: | AK62: Funds Available: | AT62: Funds Available: | BC62: Funds Available: | BL62: Funds Available: | BU62: Funds Available:
F63: ALOBS No.: | L63: ='7DV'!$D$46 -> KO-JACK E. IBAÑO | O63: Amount: | X63: ALOBS No.: | AG63: ALOBS No.: | AP63: ALOBS No.: | AY63: ALOBS No.: | BH63: ALOBS No.: | BQ63: ALOBS No.: | BZ63: ALOBS No.:
C64: ='7DV'!$D$46 -> KO-JACK E. IBAÑO | F64: Amount: | L64: ='7DV'!$D$47 -> Teacher III, School Bookkeeper-Designate | U64: ='7DV'!$D$46 -> KO-JACK E. IBAÑO | X64: Amount: | AD64: ='7DV'!$D$46 -> KO-JACK E. IBAÑO | AG64: Amount: | AM64: ='7DV'!$D$46 -> KO-JACK E. IBAÑO | AP64: Amount: | AV64: ='7DV'!$D$46 -> KO-JACK E. IBAÑO | AY64: Amount: | BE64: ='7DV'!$D$46 -> KO-JACK E. IBAÑO | BH64: Amount: | BN64: ='7DV'!$D$46 -> KO-JACK E. IBAÑO | BQ64: Amount: | BW64: ='7DV'!$D$46 -> KO-JACK E. IBAÑO | BZ64: Amount:
C65: ='7DV'!$D$47 -> Teacher III, School Bookkeeper-Designate | J65: 4 | U65: ='7DV'!$D$47 -> Teacher III, School Bookkeeper-Designate | AD65: ='7DV'!$D$47 -> Teacher III, School Bookkeeper-Designate | AM65: ='7DV'!$D$47 -> Teacher III, School Bookkeeper-Designate | AV65: ='7DV'!$D$47 -> Teacher III, School Bookkeeper-Designate | BE65: ='7DV'!$D$47 -> Teacher III, School Bookkeeper-Designate | BN65: ='7DV'!$D$47 -> Teacher III, School Bookkeeper-Designate | BW65: ='7DV'!$D$47 -> Teacher III, School Bookkeeper-Designate
A66: 4 | S66: 4 | AB66: 4 | AK66: 4 | AT66: 4 | BC66: 4 | BL66: 4 | BU66: 4

Sheet 3Abs
A5: Republic of the Philippines
A6: Department of Education
A7: Region VII, Central Visayas
A8: DIVISION OF LAPU-LAPU CITY
A9: MARIGONDON ELEMENTARY SCHOOL
A11: ABSTRACT OF CANVASS TO FURNISH SUPPLIES/MATERIALS FOR MARIGONDON ELEMENTARY SCHOOL
A13: ='7DV'!J12 -> 2001001
A14: Item No | B14: Qty | C14: Unit | D14: ARTICLES AND DESCRIPTION | E14: Roy Enterprises | F14: Home Builders | G14: Duane and Dwight hardware | H14: Savers Depot | I14: Minimum | J14: Awarded to
A15: ='1PR'!G10 -> 1 | B15: ='1PR'!A10 -> 1 | C15: ='1PR'!B10 -> roll | D15: ='1PR'!C10 -> Loomex wire, #12 | E15: 2200 | F15: =E15+16 -> 2216 | G15: 2345 | H15: 5362 | I15: =MIN(E15:H15) -> 2200 | J15: =IF(I15=0,"",(IF(I15=E15,$E$14,IF(I15=F15,$F$14,IF(I15=G15,$G$14,$H$14))))) -> Roy Enterprises
A16: ='1PR'!G11 -> 2 | B16: ='1PR'!A11 -> 5 | C16: ='1PR'!B11 -> pcs | D16: ='1PR'!C11 -> Safety breaker, Surface type (15amp) | E16: 387.5 | F16: 403.5 | G16: =E16+20 -> 407.5 | H16: =E16+10 -> 397.5 | I16: =MIN(E16:H16) -> 387.5 | J16: Roy Enterprises
A17: ='1PR'!G12 -> 3 | B17: ='1PR'!A12 -> 3 | C17: ='1PR'!B12 -> set | D17: ='1PR'!C12 -> Flood light, Led 30w | E17: 1400 | F17: 1416 | G17: 1420 | H17: 1350 | I17: 1350 | J17: Savers Depot
A18: ='1PR'!G13 -> 4 | B18: ='1PR'!A13 -> 2 | C18: ='1PR'!B13 -> set | D18: ='1PR'!C13 -> Flood light, Led 50w | E18: 3100 | F18: 3116 | G18: 3120 | H18: 3000 | I18: 3000 | J18: Savers Depot
A19: ='1PR'!G14 -> 5 | B19: ='1PR'!A14 -> 5 | C19: ='1PR'!B14 -> roll | D19: ='1PR'!C14 -> Electrical Tape, Big | E19: 45 | F19: 61 | G19: 65 | H19: =E19+10 -> 55 | I19: 45 | J19: Roy Enterprises
A20: ='1PR'!G15 -> 6 | B20: ='1PR'!A15 -> 100 | C20: ='1PR'!B15 -> pcs | D20: ='1PR'!C15 -> Tiles, 60 x 60 | E20: 158.08 | F20: 161 | G20: 160 | H20: 165 | I20: 158.08 | J20: Roy Enterprises
A21: ='1PR'!G16 -> 7 | B21: ='1PR'!A16 -> 17 | C21: ='1PR'!B16 -> bag | D21: ='1PR'!C16 -> Adhesive | E21: 240 | F21: 245 | G21: 235 | H21: 250 | I21: 235 | J21: Duane and Dwight hardware
A22: ='1PR'!G17 -> 8 | B22: ='1PR'!A17 -> 16 | C22: ='1PR'!B17 -> bag | D22: ='1PR'!C17 -> Cement | E22: 195 | F22: 200 | G22: 190 | H22: 200 | I22: 190 | J22: Duane and Dwight hardware
A23: ='1PR'!G18 -> 9 | B23: ='1PR'!A18 -> 2 | C23: ='1PR'!B18 -> bag | D23: ='1PR'!C18 -> Tile Grout | E23: 65 | F23: 70 | G23: 70 | H23: 72 | I23: 65 | J23: Roy Enterprises
A24: ='1PR'!G19 -> 10 | B24: ='1PR'!A19 -> 1 | C24: ='1PR'!B19 -> pck | D24: ='1PR'!C19 -> Staple wire, Concrete | E24: =H24+7 -> 125.5 | F24: =H24+3 -> 121.5 | G24: =H24+8 -> 126.5 | H24: 118.5 | I24: 118.5 | J24: Savers Depot
A25: ='1PR'!G20 -> 11 | B25: ='1PR'!A20 -> 1 | C25: ='1PR'!B20 -> pck | D25: ='1PR'!C20 -> Tox w/ screw | E25: =H25+7 -> 72.5 | F25: =H25+3 -> 68.5 | G25: =H25+8 -> 73.5 | H25: 65.5 | I25: 65.5 | J25: Savers Depot
A26: ='1PR'!G21 -> 12 | B26: ='1PR'!A21 -> 1 | C26: ='1PR'!B21 -> pck | D26: ='1PR'!C21 -> Stainless, Plain washer 1/4 | E26: 23 | F26: 19 | G26: 24 | H26: 16 | I26: 16 | J26: Savers Depot
A27: ='1PR'!G22 -> 13 | B27: ='1PR'!A22 -> 1 | C27: ='1PR'!B22 -> pcs | D27: ='1PR'!C22 -> Switch flush typew, 1 gang | E27: 60 | F27: =E27+5 -> 65 | G27: =E27+4 -> 64 | H27: =E27+8 -> 68 | I27: 60 | J27: Roy Enterprises
A28: ='1PR'!G23 -> 14 | B28: ='1PR'!A23 -> 1 | C28: ='1PR'!B23 -> pcs | D28: ='1PR'!C23 -> Floor drain | E28: 20 | F28: =E28+5 -> 25 | G28: =E28+4 -> 24 | H28: =E28+8 -> 28 | I28: 20 | J28: Roy Enterprises
A29: ='1PR'!G24 -> 15 | B29: ='1PR'!A24 -> 2 | C29: ='1PR'!B24 -> pcs | D29: ='1PR'!C24 -> Diamond cutting wheel | E29: 140 | F29: 145 | G29: 144 | H29: =E29+8 -> 148 | I29: 140 | J29: Roy Enterprises
A30: ='1PR'!G25 -> 0 | B30: ='1PR'!A25 -> 0 | C30: ='1PR'!B25 -> 0 | D30: ='1PR'!C25 -> 0 | I30: 0 | J30: =IF(I30=0,"",(IF(I30=E30,"Dan Enrico Corporation",IF(I30=F30,"Mactan Centennial",IF(I30=G30,"Duane and Dwight hardware",IF(I30=H30,"JSY-Hardware","JSY-Hardware")))))) -> 
A31: ='1PR'!G26 -> 0 | B31: ='1PR'!A26 -> 0 | C31: ='1PR'!B26 -> 0 | D31: ='1PR'!C26 -> 0 | I31: 0
A32: ='1PR'!G27 -> 0 | B32: ='1PR'!A27 -> 0 | C32: ='1PR'!B27 -> 0 | D32: ='1PR'!C27 -> 0 | I32: 0
A33: ='1PR'!G28 -> 0 | B33: ='1PR'!A28 -> 0 | C33: ='1PR'!B28 -> 0 | D33: ='1PR'!C28 -> 0 | I33: 0
B34: WE HEREBY CERTIFY THAT we opened the proposed quotations for the above-listed articles at the time above-indicated and date
A35: and that the prices indicated herein are correct as appearing in the individual tenders hereto attached.
J38: REBECCA P. TORING
J39: Principal I
A46: Republic of the Philippines
A47: Department of Education
A48: Region VII, Central Visayas
A49: DIVISION OF LAPU-LAPU CITY
A50: MARIGONDON ELEMENTARY SCHOOL
A52: ABSTRACT OF CANVASS TO FURNISH SUPPLIES/MATERIALS FOR MARIGONDON ELEMENTARY SCHOOL
A54: ='7DV'!J53 -> 0
A55: Item No | B55: Qty | C55: Unit | D55: ARTICLES AND DESCRIPTION | E55: AAA | F55: BBB | G55: CCC | H55: DDD | I55: Minimum | J55: Awarded to
A56: ='1PR'!U10 -> 1 | B56: ='1PR'!O10 -> 20 | C56: ='1PR'!P10 -> ream | D56: ='1PR'!Q10 -> Bondpaper Long, Sub 20 | E56: 2200 | F56: =E56+16 -> 2216 | G56: 2345 | H56: 5362 | I56: =MIN(E56:H56) -> 2200 | J56: =IF(I56=0,"",(IF(I56=E56,$E$55,IF(I56=F56,$F$55,IF(I56=G56,$G$55,$H$55))))) -> AAA
A57: ='1PR'!U11 -> 2 | B57: ='1PR'!O11 -> 10 | C57: ='1PR'!P11 -> pcs | D57: ='1PR'!Q11 -> White board pen, (black, blue & red) | E57: 387.5 | F57: 403.5 | G57: =E57+20 -> 407.5 | H57: =E57+10 -> 397.5 | I57: 387.5 | J57: =IF(I57=0,"",(IF(I57=E57,$E$55,IF(I57=F57,$F$55,IF(I57=G57,$G$55,$H$55))))) -> AAA
A58: ='1PR'!U12 -> 3 | B58: ='1PR'!O12 -> 1 | C58: ='1PR'!P12 -> unit | D58: ='1PR'!Q12 -> Printer, CMYK | E58: 1400 | F58: 1416 | G58: 1420 | H58: 1350 | I58: 1350 | J58: DDD
A59: ='1PR'!U13 -> 0 | B59: ='1PR'!O13 -> 0 | C59: ='1PR'!P13 -> 0 | D59: ='1PR'!Q13 -> 0 | I59: 0
A60: ='1PR'!U14 -> 0 | B60: ='1PR'!O14 -> 0 | C60: ='1PR'!P14 -> 0 | D60: ='1PR'!Q14 -> 0 | I60: 0
A61: ='1PR'!U15 -> 0 | B61: ='1PR'!O15 -> 0 | C61: ='1PR'!P15 -> 0 | D61: ='1PR'!Q15 -> 0 | I61: 0
A62: ='1PR'!U16 -> 0 | B62: ='1PR'!O16 -> 0 | C62: ='1PR'!P16 -> 0 | D62: ='1PR'!Q16 -> 0 | I62: 0
A63: ='1PR'!U17 -> 0 | B63: ='1PR'!O17 -> 0 | C63: ='1PR'!P17 -> 0 | D63: ='1PR'!Q17 -> 0 | I63: 0
A64: ='1PR'!U18 -> 0 | B64: ='1PR'!O18 -> 0 | C64: ='1PR'!P18 -> 0 | D64: ='1PR'!Q18 -> 0 | I64: 0
A65: ='1PR'!U19 -> 0 | B65: ='1PR'!O19 -> 0 | C65: ='1PR'!P19 -> 0 | D65: ='1PR'!Q19 -> 0 | I65: 0
A66: ='1PR'!U20 -> 0 | B66: ='1PR'!O20 -> 0 | C66: ='1PR'!P20 -> 0 | D66: ='1PR'!Q20 -> 0 | I66: 0
A67: ='1PR'!U21 -> 0 | B67: ='1PR'!O21 -> 0 | C67: ='1PR'!P21 -> 0 | D67: ='1PR'!Q21 -> 0 | I67: 0
A68: ='1PR'!U22 -> 0 | B68: ='1PR'!O22 -> 0 | C68: ='1PR'!P22 -> 0 | D68: ='1PR'!Q22 -> 0 | I68: 0
A69: ='1PR'!U23 -> 0 | B69: ='1PR'!O23 -> 0 | C69: ='1PR'!P23 -> 0 | D69: ='1PR'!Q23 -> 0 | I69: 0
A70: ='1PR'!U24 -> 0 | B70: ='1PR'!O24 -> 0 | C70: ='1PR'!P24 -> 0 | D70: ='1PR'!Q24 -> 0 | I70: 0
A71: ='1PR'!U25 -> 0 | B71: ='1PR'!O25 -> 0 | C71: ='1PR'!P25 -> 0 | D71: ='1PR'!Q25 -> 0 | I71: 0
A72: ='1PR'!U26 -> 0 | B72: ='1PR'!O26 -> 0 | C72: ='1PR'!P26 -> 0 | D72: ='1PR'!Q26 -> 0 | I72: 0
A73: ='1PR'!U27 -> 0 | B73: ='1PR'!O27 -> 0 | C73: ='1PR'!P27 -> 0 | D73: ='1PR'!Q27 -> 0 | I73: 0
A74: ='1PR'!U28 -> 0 | B74: ='1PR'!O28 -> 0 | C74: ='1PR'!P28 -> 0 | D74: ='1PR'!Q28 -> 0 | I74: 0
B75: WE HEREBY CERTIFY THAT we opened the proposed quotations for the above-listed articles at the time above-indicated and date
A76: and that the prices indicated herein are correct as appearing in the individual tenders hereto attached.
J79: REBECCA P. TORING
J80: Principal I
A87: Republic of the Philippines
A88: Department of Education
A89: Region VII, Central Visayas
A90: DIVISION OF LAPU-LAPU CITY
A91: MARIGONDON ELEMENTARY SCHOOL
A93: ABSTRACT OF CANVASS TO FURNISH SUPPLIES/MATERIALS FOR MARIGONDON ELEMENTARY SCHOOL
A95: ='7DV'!J102 -> 0
A96: Item No | B96: Qty | C96: Unit | D96: ARTICLES AND DESCRIPTION | E96: EEE | F96: FFF | G96: GGG | H96: HHH | I96: Minimum | J96: Awarded to
A97: ='1PR'!AI10 -> 1 | B97: ='1PR'!AC10 -> 1.5 | C97: ='1PR'!AD10 -> roll | D97: ='1PR'!AE10 -> Coaxial Cable | I97: =MIN(E97:H97) -> 0 | J97: =IF(I97=0,"",(IF(I97=E97,$E$96,IF(I97=F97,$F$96,IF(I97=G97,$G$96,$H$96))))) -> 
A98: ='1PR'!AI11 -> 2 | B98: ='1PR'!AC11 -> 1 | C98: ='1PR'!AD11 -> pcs | D98: ='1PR'!AE11 -> DC Adapter 12v, 5A | I98: 0 | J98: =IF(I98=0,"",(IF(I98=E98,$E$96,IF(I98=F98,$F$96,IF(I98=G98,$G$96,$H$96))))) -> 
A99: ='1PR'!AI12 -> 3 | B99: ='1PR'!AC12 -> 5 | C99: ='1PR'!AD12 -> pcs | D99: ='1PR'!AE12 -> Camera | I99: 0
A100: ='1PR'!AI13 -> 4 | B100: ='1PR'!AC13 -> 3 | C100: ='1PR'!AD13 -> pcs | D100: ='1PR'!AE13 -> BNC Cable, 30m | I100: 0
A101: ='1PR'!AI14 -> 5 | B101: ='1PR'!AC14 -> 15 | C101: ='1PR'!AD14 -> pcs | D101: ='1PR'!AE14 -> BNC, Adaptor, Male | I101: 0
A102: ='1PR'!AI15 -> 6 | B102: ='1PR'!AC15 -> 15 | C102: ='1PR'!AD15 -> pcs | D102: ='1PR'!AE15 -> BNC, Adaptor, Female | I102: 0
A103: ='1PR'!AI16 -> 7 | B103: ='1PR'!AC16 -> 15 | C103: ='1PR'!AD16 -> pcs | D103: ='1PR'!AE16 -> BNC, Barrel | I103: 0
A104: ='1PR'!AI17 -> 8 | B104: ='1PR'!AC17 -> 4 | C104: ='1PR'!AD17 -> roll | D104: ='1PR'!AE17 -> Coaxial cable, 20m | I104: 0
A105: ='1PR'!AI18 -> 9 | B105: ='1PR'!AC18 -> 4 | C105: ='1PR'!AD18 -> roll | D105: ='1PR'!AE18 -> Coaxial cable, 30m | I105: 0
A106: ='1PR'!AI19 -> 0 | B106: ='1PR'!AC19 -> 0 | C106: ='1PR'!AD19 -> 0 | D106: ='1PR'!AE19 -> 0 | I106: 0
A107: ='1PR'!AI20 -> 0 | B107: ='1PR'!AC20 -> 0 | C107: ='1PR'!AD20 -> 0 | D107: ='1PR'!AE20 -> 0 | I107: 0
A108: ='1PR'!AI21 -> 0 | B108: ='1PR'!AC21 -> 0 | C108: ='1PR'!AD21 -> 0 | D108: ='1PR'!AE21 -> 0 | I108: 0
A109: ='1PR'!AI22 -> 0 | B109: ='1PR'!AC22 -> 0 | C109: ='1PR'!AD22 -> 0 | D109: ='1PR'!AE22 -> 0 | I109: 0
A110: ='1PR'!AI23 -> 0 | B110: ='1PR'!AC23 -> 0 | C110: ='1PR'!AD23 -> 0 | D110: ='1PR'!AE23 -> 0 | I110: 0
A111: ='1PR'!AI24 -> 0 | B111: ='1PR'!AC24 -> 0 | C111: ='1PR'!AD24 -> 0 | D111: ='1PR'!AE24 -> 0 | I111: 0
A112: ='1PR'!AI25 -> 0 | B112: ='1PR'!AC25 -> 0 | C112: ='1PR'!AD25 -> 0 | D112: ='1PR'!AE25 -> 0 | I112: 0
A113: ='1PR'!AI26 -> 0 | B113: ='1PR'!AC26 -> 0 | C113: ='1PR'!AD26 -> 0 | D113: ='1PR'!AE26 -> 0 | I113: 0
A114: ='1PR'!AI27 -> 0 | B114: ='1PR'!AC27 -> 0 | C114: ='1PR'!AD27 -> 0 | D114: ='1PR'!AE27 -> 0 | I114: 0
A115: ='1PR'!AI28 -> 0 | B115: ='1PR'!AC28 -> 0 | C115: ='1PR'!AD28 -> 0 | D115: ='1PR'!AE28 -> 0 | I115: 0
B116: WE HEREBY CERTIFY THAT we opened the proposed quotations for the above-listed articles at the time above-indicated and date
A117: and that the prices indicated herein are correct as appearing in the individual tenders hereto attached.
J120: REBECCA P. TORING
J121: Principal I
A128: Republic of the Philippines
A129: Department of Education
A130: Region VII, Central Visayas
A131: DIVISION OF LAPU-LAPU CITY
A132: MARIGONDON ELEMENTARY SCHOOL
A134: ABSTRACT OF CANVASS TO FURNISH SUPPLIES/MATERIALS FOR MARIGONDON ELEMENTARY SCHOOL
A136: ='7DV'!J143 -> 0
A137: Item No | B137: Qty | C137: Unit | D137: ARTICLES AND DESCRIPTION | E137: III | F137: JJJ | G137: KKK | H137: LLL | I137: Minimum | J137: Awarded to
A138: ='1PR'!AW10 -> 1 | B138: ='1PR'!AQ10 -> 8 | C138: ='1PR'!AR10 -> tl | D138: ='1PR'!AS10 -> Septic vault suction | E138: 2200 | F138: =E138+16 -> 2216 | G138: 2345 | H138: 5362 | I138: =MIN(E138:H138) -> 2200 | J138: =IF(I138=0,"",(IF(I138=E138,$E$137,IF(I138=F138,$F$137,IF(I138=G138,$G$137,$H$137))))) -> III
A139: ='1PR'!AW11 -> 0 | B139: ='1PR'!AQ11 -> 0 | C139: ='1PR'!AR11 -> 0 | D139: ='1PR'!AS11 -> 0 | I139: 0 | J139: =IF(I139=0,"",(IF(I139=E139,$E$137,IF(I139=F139,$F$137,IF(I139=G139,$G$137,$H$137))))) -> 
A140: ='1PR'!AW12 -> 0 | B140: ='1PR'!AQ12 -> 0 | C140: ='1PR'!AR12 -> 0 | D140: ='1PR'!AS12 -> 0 | I140: 0
A141: ='1PR'!AW13 -> 0 | B141: ='1PR'!AQ13 -> 0 | C141: ='1PR'!AR13 -> 0 | D141: ='1PR'!AS13 -> 0 | I141: 0
A142: ='1PR'!AW14 -> 0 | B142: ='1PR'!AQ14 -> 0 | C142: ='1PR'!AR14 -> 0 | D142: ='1PR'!AS14 -> 0 | I142: 0
A143: ='1PR'!AW15 -> 0 | B143: ='1PR'!AQ15 -> 0 | C143: ='1PR'!AR15 -> 0 | D143: ='1PR'!AS15 -> 0 | I143: 0
A144: ='1PR'!AW16 -> 0 | B144: ='1PR'!AQ16 -> 0 | C144: ='1PR'!AR16 -> 0 | D144: ='1PR'!AS16 -> 0 | I144: 0
A145: ='1PR'!AW17 -> 0 | B145: ='1PR'!AQ17 -> 0 | C145: ='1PR'!AR17 -> 0 | D145: ='1PR'!AS17 -> 0 | I145: 0
A146: ='1PR'!AW18 -> 0 | B146: ='1PR'!AQ18 -> 0 | C146: ='1PR'!AR18 -> 0 | D146: ='1PR'!AS18 -> 0 | I146: 0
A147: ='1PR'!AW19 -> 0 | B147: ='1PR'!AQ19 -> 0 | C147: ='1PR'!AR19 -> 0 | D147: ='1PR'!AS19 -> 0 | I147: 0
A148: ='1PR'!AW20 -> 0 | B148: ='1PR'!AQ20 -> 0 | C148: ='1PR'!AR20 -> 0 | D148: ='1PR'!AS20 -> 0 | I148: 0
A149: ='1PR'!AW21 -> 0 | B149: ='1PR'!AQ21 -> 0 | C149: ='1PR'!AR21 -> 0 | D149: ='1PR'!AS21 -> 0 | I149: 0
A150: ='1PR'!AW22 -> 0 | B150: ='1PR'!AQ22 -> 0 | C150: ='1PR'!AR22 -> 0 | D150: ='1PR'!AS22 -> 0 | I150: 0
A151: ='1PR'!AW23 -> 0 | B151: ='1PR'!AQ23 -> 0 | C151: ='1PR'!AR23 -> 0 | D151: ='1PR'!AS23 -> 0 | I151: 0
A152: ='1PR'!AW24 -> 0 | B152: ='1PR'!AQ24 -> 0 | C152: ='1PR'!AR24 -> 0 | D152: ='1PR'!AS24 -> 0 | I152: 0
A153: ='1PR'!AW25 -> 0 | B153: ='1PR'!AQ25 -> 0 | C153: ='1PR'!AR25 -> 0 | D153: ='1PR'!AS25 -> 0 | I153: 0
A154: ='1PR'!AW26 -> 0 | B154: ='1PR'!AQ26 -> 0 | C154: ='1PR'!AR26 -> 0 | D154: ='1PR'!AS26 -> 0 | I154: 0
A155: ='1PR'!AW27 -> 0 | B155: ='1PR'!AQ27 -> 0 | C155: ='1PR'!AR27 -> 0 | D155: ='1PR'!AS27 -> 0 | I155: 0
A156: ='1PR'!AW28 -> 0 | B156: ='1PR'!AQ28 -> 0 | C156: ='1PR'!AR28 -> 0 | D156: ='1PR'!AS28 -> 0 | I156: 0
B157: WE HEREBY CERTIFY THAT we opened the proposed quotations for the above-listed articles at the time above-indicated and date
A158: and that the prices indicated herein are correct as appearing in the individual tenders hereto attached.
J161: REBECCA P. TORING
J162: Principal I
A168: Republic of the Philippines
A169: Department of Education
A170: Region VII, Central Visayas
A171: DIVISION OF LAPU-LAPU CITY
A172: MARIGONDON ELEMENTARY SCHOOL
A174: ABSTRACT OF CANVASS TO FURNISH SUPPLIES/MATERIALS FOR MARIGONDON ELEMENTARY SCHOOL
A176: ='7DV'!J183 -> 0
A177: Item No | B177: Qty | C177: Unit | D177: ARTICLES AND DESCRIPTION | E177: MMM | F177: NNN | G177: OOOO | H177: PPP | I177: Minimum | J177: Awarded to
A178: ='1PR'!BK10 -> 0 | B178: ='1PR'!BE10 -> 0 | C178: ='1PR'!BF10 -> 0 | D178: ='1PR'!BG10 -> 0 | I178: =MIN(E178:H178) -> 0 | J178: =IF(I178=0,"",(IF(I178=E178,$E$177,IF(I178=F178,$F$177,IF(I178=G178,$G$177,$H$177))))) -> 
A179: ='1PR'!BK11 -> 0 | B179: ='1PR'!BE11 -> 0 | C179: ='1PR'!BF11 -> 0 | D179: ='1PR'!BG11 -> 0 | I179: 0 | J179: =IF(I179=0,"",(IF(I179=E179,$E$177,IF(I179=F179,$F$177,IF(I179=G179,$G$177,$H$177))))) -> 
A180: ='1PR'!BK12 -> 0 | B180: ='1PR'!BE12 -> 0 | C180: ='1PR'!BF12 -> 0 | D180: ='1PR'!BG12 -> 0 | I180: 0
A181: ='1PR'!BK13 -> 0 | B181: ='1PR'!BE13 -> 0 | C181: ='1PR'!BF13 -> 0 | D181: ='1PR'!BG13 -> 0 | I181: 0
A182: ='1PR'!BK14 -> 0 | B182: ='1PR'!BE14 -> 0 | C182: ='1PR'!BF14 -> 0 | D182: ='1PR'!BG14 -> 0 | I182: 0
A183: ='1PR'!BK15 -> 0 | B183: ='1PR'!BE15 -> 0 | C183: ='1PR'!BF15 -> 0 | D183: ='1PR'!BG15 -> 0 | I183: 0
A184: ='1PR'!BK16 -> 0 | B184: ='1PR'!BE16 -> 0 | C184: ='1PR'!BF16 -> 0 | D184: ='1PR'!BG16 -> 0 | I184: 0
A185: ='1PR'!BK17 -> 0 | B185: ='1PR'!BE17 -> 0 | C185: ='1PR'!BF17 -> 0 | D185: ='1PR'!BG17 -> 0 | I185: 0
A186: ='1PR'!BK18 -> 0 | B186: ='1PR'!BE18 -> 0 | C186: ='1PR'!BF18 -> 0 | D186: ='1PR'!BG18 -> 0 | I186: 0
A187: ='1PR'!BK19 -> 0 | B187: ='1PR'!BE19 -> 0 | C187: ='1PR'!BF19 -> 0 | D187: ='1PR'!BG19 -> 0 | I187: 0
A188: ='1PR'!BK20 -> 0 | B188: ='1PR'!BE20 -> 0 | C188: ='1PR'!BF20 -> 0 | D188: ='1PR'!BG20 -> 0 | I188: 0
A189: ='1PR'!BK21 -> 0 | B189: ='1PR'!BE21 -> 0 | C189: ='1PR'!BF21 -> 0 | D189: ='1PR'!BG21 -> 0 | I189: 0
A190: ='1PR'!BK22 -> 0 | B190: ='1PR'!BE22 -> 0 | C190: ='1PR'!BF22 -> 0 | D190: ='1PR'!BG22 -> 0 | I190: 0
A191: ='1PR'!BK23 -> 0 | B191: ='1PR'!BE23 -> 0 | C191: ='1PR'!BF23 -> 0 | D191: ='1PR'!BG23 -> 0 | I191: 0
A192: ='1PR'!BK24 -> 0 | B192: ='1PR'!BE24 -> 0 | C192: ='1PR'!BF24 -> 0 | D192: ='1PR'!BG24 -> 0 | I192: 0
A193: ='1PR'!BK25 -> 0 | B193: ='1PR'!BE25 -> 0 | C193: ='1PR'!BF25 -> 0 | D193: ='1PR'!BG25 -> 0 | I193: 0
A194: ='1PR'!BK26 -> 0 | B194: ='1PR'!BE26 -> 0 | C194: ='1PR'!BF26 -> 0 | D194: ='1PR'!BG26 -> 0 | I194: 0
A195: ='1PR'!BK27 -> 0 | B195: ='1PR'!BE27 -> 0 | C195: ='1PR'!BF27 -> 0 | D195: ='1PR'!BG27 -> 0 | I195: 0
A196: ='1PR'!BK28 -> 0 | B196: ='1PR'!BE28 -> 0 | C196: ='1PR'!BF28 -> 0 | D196: ='1PR'!BG28 -> 0 | I196: 0
B197: WE HEREBY CERTIFY THAT we opened the proposed quotations for the above-listed articles at the time above-indicated and date
A198: and that the prices indicated herein are correct as appearing in the individual tenders hereto attached.
J201: REBECCA P. TORING
J202: Principal I

Sheet 2Canvas
A1: Republic of the Philippines | G1: Project Reference Number: | H1: 1601001 | I1: Republic of the Philippines | O1: Project Reference Number: | P1: =H1+1 -> 1601002 | Q1: Republic of the Philippines | W1: Project Reference Number: | X1: =P1+1 -> 1601003 | Y1: Republic of the Philippines | AE1: Project Reference Number: | AF1: =X1+1 -> 1601004 | AG1: Republic of the Philippines | AM1: Project Reference Number: | AN1: =AF1+1 -> 1601005
A2: Department of Education | F2: Name of Project: | G2: Repair and Maintenance | I2: Department of Education | N2: Name of Project: | O2: Security Services | Q2: Department of Education | V2: Name of Project: | W2: Office Supplies | Y2: Department of Education | AD2: Name of Project: | AE2: Office Supplies | AG2: Department of Education | AL2: Name of Project: | AM2: Office Supplies
A3: Region VII, Central Visayas | F3: Location of Project: | G3: Marigondon ES | I3: Region VII, Central Visayas | N3: Location of Project: | O3: Marigondon ES | Q3: Region VII, Central Visayas | V3: Location of Project: | W3: Marigondon ES | Y3: Region VII, Central Visayas | AD3: Location of Project: | AE3: Marigondon ES | AG3: Region VII, Central Visayas | AL3: Location of Project: | AM3: Marigondon ES
A4: Division of Lapu-Lapu City | G4: Marigondon, LLC | I4: Division of Lapu-Lapu City | O4: Marigondon, LLC | Q4: Division of Lapu-Lapu City | W4: Marigondon, LLC | Y4: Division of Lapu-Lapu City | AE4: Marigondon, LLC | AG4: Division of Lapu-Lapu City | AM4: Marigondon, LLC
A5: South District | I5: South District | Q5: South District | Y5: South District | AG5: South District
A6: MARIGONDON ELEMENTARY SCHOOL | I6: MARIGONDON ELEMENTARY SCHOOL | Q6: MARIGONDON ELEMENTARY SCHOOL | Y6: MARIGONDON ELEMENTARY SCHOOL | AG6: MARIGONDON ELEMENTARY SCHOOL
A7: Marigondon, Lapu-Lapu City | I7: Marigondon, Lapu-Lapu City | Q7: Marigondon, Lapu-Lapu City | Y7: Marigondon, Lapu-Lapu City | AG7: Marigondon, Lapu-Lapu City
A8: Telefax No. (032) 495-6265 | I8: Telefax No. (032) 495-6265 | Q8: Telefax No. (032) 495-6265 | Y8: Telefax No. (032) 495-6265 | AG8: Telefax No. (032) 495-6265
F9: Date: | N9: Date: | V9: Date: | AD9: Date: | AL9: Date:
A10: Standard Form Number: SF-GOOD-60 | H10: Quotation Number: _________ | I10: Standard Form Number: SF-GOOD-60 | P10: Quotation Number: _________ | Q10: Standard Form Number: SF-GOOD-60 | X10: Quotation Number: _________ | Y10: Standard Form Number: SF-GOOD-60 | AF10: Quotation Number: _________ | AG10: Standard Form Number: SF-GOOD-60 | AN10: Quotation Number: _________
A11: Revised on: May 24, 2004 | I11: Revised on: May 24, 2004 | Q11: Revised on: May 24, 2004 | Y11: Revised on: May 24, 2004 | AG11: Revised on: May 24, 2004
A12: Standard Form Title: Request for Quotations | I12: Standard Form Title: Request for Quotations | Q12: Standard Form Title: Request for Quotations | Y12: Standard Form Title: Request for Quotations | AG12: Standard Form Title: Request for Quotations
B18: Please quote your lowest price on the item/s listed below, subject to the General Conditions on the last page | J18: Please quote your lowest price on the item/s listed below, subject to the General Conditions on the last page | R18: Please quote your lowest price on the item/s listed below, subject to the General Conditions on the last page | Z18: Please quote your lowest price on the item/s listed below, subject to the General Conditions on the last page | AH18: Please quote your lowest price on the item/s listed below, subject to the General Conditions on the last page
A19: stating the shortest time delivery and submit your quotation duly signed your representative not later than ______________ | I19: stating the shortest time delivery and submit your quotation duly signed your representative not later than ______________ | Q19: stating the shortest time delivery and submit your quotation duly signed your representative not later than ______________ | Y19: stating the shortest time delivery and submit your quotation duly signed your representative not later than ______________ | AG19: stating the shortest time delivery and submit your quotation duly signed your representative not later than ______________
A20: in the return envelope attached herewith. | I20: in the return envelope attached herewith. | Q20: in the return envelope attached herewith. | Y20: in the return envelope attached herewith. | AG20: in the return envelope attached herewith.
A22: Note: | B22: 1. All entries must be typewritten. | G22: ='1PR'!C40 -> EVELYN S. ONGCO | I22: Note: | J22: 1. All entries must be typewritten. | O22: =$G$22 -> EVELYN S. ONGCO | Q22: Note: | R22: 1. All entries must be typewritten. | W22: =$G$22 -> EVELYN S. ONGCO | Y22: Note: | Z22: 1. All entries must be typewritten. | AE22: =$G$22 -> EVELYN S. ONGCO | AG22: Note: | AH22: 1. All entries must be typewritten. | AM22: =$G$22 -> EVELYN S. ONGCO
B23: 2. Delivery period within _____ calendar days | G23: Procurement Officer | J23: 2. Delivery period within _____ calendar days | O23: Procurement Officer | R23: 2. Delivery period within _____ calendar days | W23: Procurement Officer | Z23: 2. Delivery period within _____ calendar days | AE23: Procurement Officer | AH23: 2. Delivery period within _____ calendar days | AM23: Procurement Officer
B24: 3. Warranty shall be for a period of six(6) months for supplies and materials, one(1) year for equipment, | J24: 3. Warranty shall be for a period of six(6) months for supplies and materials, one(1) year for equipment, | R24: 3. Warranty shall be for a period of six(6) months for supplies and materials, one(1) year for equipment, | Z24: 3. Warranty shall be for a period of six(6) months for supplies and materials, one(1) year for equipment, | AH24: 3. Warranty shall be for a period of six(6) months for supplies and materials, one(1) year for equipment,
B25: from date of acceptance by the procuring entity. | J25: from date of acceptance by the procuring entity. | R25: from date of acceptance by the procuring entity. | Z25: from date of acceptance by the procuring entity. | AH25: from date of acceptance by the procuring entity.
B26: 4. Price validity shall be for a period of _____ calendar days. | J26: 4. Price validity shall be for a period of _____ calendar days. | R26: 4. Price validity shall be for a period of _____ calendar days. | Z26: 4. Price validity shall be for a period of _____ calendar days. | AH26: 4. Price validity shall be for a period of _____ calendar days.
B27: 5. G-EPS registration certificate shall be attached upon submission of the quotation. | J27: 5. G-EPS registration certificate shall be attached upon submission of the quotation. | R27: 5. G-EPS registration certificate shall be attached upon submission of the quotation. | Z27: 5. G-EPS registration certificate shall be attached upon submission of the quotation. | AH27: 5. G-EPS registration certificate shall be attached upon submission of the quotation.
B28: 6. Bidders shall submit original brochures showing certfications of the product being offered. | J28: 6. Bidders shall submit original brochures showing certfications of the product being offered. | R28: 6. Bidders shall submit original brochures showing certfications of the product being offered. | Z28: 6. Bidders shall submit original brochures showing certfications of the product being offered. | AH28: 6. Bidders shall submit original brochures showing certfications of the product being offered.
A29: Item | B29: ITEM AND DESCRIPTION | F29: UNIT | G29: QTY | H29: Unit | I29: Item | J29: ITEM AND DESCRIPTION | N29: UNIT | O29: QTY | P29: Unit | Q29: Item | R29: ITEM AND DESCRIPTION | V29: UNIT | W29: QTY | X29: Unit | Y29: Item | Z29: ITEM AND DESCRIPTION | AD29: UNIT | AE29: QTY | AF29: Unit | AG29: Item | AH29: ITEM AND DESCRIPTION | AL29: UNIT | AM29: QTY | AN29: Unit
A30: No. | H30: Price | I30: No. | P30: Price | Q30: No. | X30: Price | Y30: No. | AF30: Price | AG30: No. | AN30: Price
A31: ='1PR'!G10 -> 1 | B31: ='1PR'!C10 -> Loomex wire, #12 | F31: ='1PR'!B10 -> roll | G31: ='1PR'!A10 -> 1 | I31: ='1PR'!U10 -> 1 | J31: ='1PR'!Q10 -> Bondpaper Long, Sub 20 | N31: ='1PR'!P10 -> ream | O31: ='1PR'!O10 -> 20 | Q31: ='1PR'!AI10 -> 1 | R31: ='1PR'!AE10 -> Coaxial Cable | V31: ='1PR'!AD10 -> roll | W31: ='1PR'!AC10 -> 1.5 | Y31: ='1PR'!AW10 -> 1 | Z31: ='1PR'!AS10 -> Septic vault suction | AD31: ='1PR'!AR10 -> tl | AE31: ='1PR'!AQ10 -> 8 | AG31: ='1PR'!BK10 -> 0 | AH31: ='1PR'!BG10 -> 0 | AL31: ='1PR'!BF10 -> 0 | AM31: ='1PR'!BE10 -> 0
A32: ='1PR'!G11 -> 2 | B32: ='1PR'!C11 -> Safety breaker, Surface type (15amp) | F32: ='1PR'!B11 -> pcs | G32: ='1PR'!A11 -> 5 | I32: ='1PR'!U11 -> 2 | J32: ='1PR'!Q11 -> White board pen, (black, blue & red) | N32: ='1PR'!P11 -> pcs | O32: ='1PR'!O11 -> 10 | Q32: ='1PR'!AI11 -> 2 | R32: ='1PR'!AE11 -> DC Adapter 12v, 5A | V32: ='1PR'!AD11 -> pcs | W32: ='1PR'!AC11 -> 1 | Y32: ='1PR'!AW11 -> 0 | Z32: ='1PR'!AS11 -> 0 | AD32: ='1PR'!AR11 -> 0 | AE32: ='1PR'!AQ11 -> 0 | AG32: ='1PR'!BK11 -> 0 | AH32: ='1PR'!BG11 -> 0 | AL32: ='1PR'!BF11 -> 0 | AM32: ='1PR'!BE11 -> 0
A33: ='1PR'!G12 -> 3 | B33: ='1PR'!C12 -> Flood light, Led 30w | F33: ='1PR'!B12 -> set | G33: ='1PR'!A12 -> 3 | I33: ='1PR'!U12 -> 3 | J33: ='1PR'!Q12 -> Printer, CMYK | N33: ='1PR'!P12 -> unit | O33: ='1PR'!O12 -> 1 | Q33: ='1PR'!AI12 -> 3 | R33: ='1PR'!AE12 -> Camera | V33: ='1PR'!AD12 -> pcs | W33: ='1PR'!AC12 -> 5 | Y33: ='1PR'!AW12 -> 0 | Z33: ='1PR'!AS12 -> 0 | AD33: ='1PR'!AR12 -> 0 | AE33: ='1PR'!AQ12 -> 0 | AG33: ='1PR'!BK12 -> 0 | AH33: ='1PR'!BG12 -> 0 | AL33: ='1PR'!BF12 -> 0 | AM33: ='1PR'!BE12 -> 0
A34: ='1PR'!G13 -> 4 | B34: ='1PR'!C13 -> Flood light, Led 50w | F34: ='1PR'!B13 -> set | G34: ='1PR'!A13 -> 2 | I34: ='1PR'!U13 -> 0 | J34: ='1PR'!Q13 -> 0 | N34: ='1PR'!P13 -> 0 | O34: ='1PR'!O13 -> 0 | Q34: ='1PR'!AI13 -> 4 | R34: ='1PR'!AE13 -> BNC Cable, 30m | V34: ='1PR'!AD13 -> pcs | W34: ='1PR'!AC13 -> 3 | Y34: ='1PR'!AW13 -> 0 | Z34: ='1PR'!AS13 -> 0 | AD34: ='1PR'!AR13 -> 0 | AE34: ='1PR'!AQ13 -> 0 | AG34: ='1PR'!BK13 -> 0 | AH34: ='1PR'!BG13 -> 0 | AL34: ='1PR'!BF13 -> 0 | AM34: ='1PR'!BE13 -> 0
A35: ='1PR'!G14 -> 5 | B35: ='1PR'!C14 -> Electrical Tape, Big | F35: ='1PR'!B14 -> roll | G35: ='1PR'!A14 -> 5 | I35: ='1PR'!U14 -> 0 | J35: ='1PR'!Q14 -> 0 | N35: ='1PR'!P14 -> 0 | O35: ='1PR'!O14 -> 0 | Q35: ='1PR'!AI14 -> 5 | R35: ='1PR'!AE14 -> BNC, Adaptor, Male | V35: ='1PR'!AD14 -> pcs | W35: ='1PR'!AC14 -> 15 | Y35: ='1PR'!AW14 -> 0 | Z35: ='1PR'!AS14 -> 0 | AD35: ='1PR'!AR14 -> 0 | AE35: ='1PR'!AQ14 -> 0 | AG35: ='1PR'!BK14 -> 0 | AH35: ='1PR'!BG14 -> 0 | AL35: ='1PR'!BF14 -> 0 | AM35: ='1PR'!BE14 -> 0
A36: ='1PR'!G15 -> 6 | B36: ='1PR'!C15 -> Tiles, 60 x 60 | F36: ='1PR'!B15 -> pcs | G36: ='1PR'!A15 -> 100 | I36: ='1PR'!U15 -> 0 | J36: ='1PR'!Q15 -> 0 | N36: ='1PR'!P15 -> 0 | O36: ='1PR'!O15 -> 0 | Q36: ='1PR'!AI15 -> 6 | R36: ='1PR'!AE15 -> BNC, Adaptor, Female | V36: ='1PR'!AD15 -> pcs | W36: ='1PR'!AC15 -> 15 | Y36: ='1PR'!AW15 -> 0 | Z36: ='1PR'!AS15 -> 0 | AD36: ='1PR'!AR15 -> 0 | AE36: ='1PR'!AQ15 -> 0 | AG36: ='1PR'!BK15 -> 0 | AH36: ='1PR'!BG15 -> 0 | AL36: ='1PR'!BF15 -> 0 | AM36: ='1PR'!BE15 -> 0
A37: ='1PR'!G16 -> 7 | B37: ='1PR'!C16 -> Adhesive | F37: ='1PR'!B16 -> bag | G37: ='1PR'!A16 -> 17 | I37: ='1PR'!U16 -> 0 | J37: ='1PR'!Q16 -> 0 | N37: ='1PR'!P16 -> 0 | O37: ='1PR'!O16 -> 0 | Q37: ='1PR'!AI16 -> 7 | R37: ='1PR'!AE16 -> BNC, Barrel | V37: ='1PR'!AD16 -> pcs | W37: ='1PR'!AC16 -> 15 | Y37: ='1PR'!AW16 -> 0 | Z37: ='1PR'!AS16 -> 0 | AD37: ='1PR'!AR16 -> 0 | AE37: ='1PR'!AQ16 -> 0 | AG37: ='1PR'!BK16 -> 0 | AH37: ='1PR'!BG16 -> 0 | AL37: ='1PR'!BF16 -> 0 | AM37: ='1PR'!BE16 -> 0
A38: ='1PR'!G17 -> 8 | B38: ='1PR'!C17 -> Cement | F38: ='1PR'!B17 -> bag | G38: ='1PR'!A17 -> 16 | I38: ='1PR'!U17 -> 0 | J38: ='1PR'!Q17 -> 0 | N38: ='1PR'!P17 -> 0 | O38: ='1PR'!O17 -> 0 | Q38: ='1PR'!AI17 -> 8 | R38: ='1PR'!AE17 -> Coaxial cable, 20m | V38: ='1PR'!AD17 -> roll | W38: ='1PR'!AC17 -> 4 | Y38: ='1PR'!AW17 -> 0 | Z38: ='1PR'!AS17 -> 0 | AD38: ='1PR'!AR17 -> 0 | AE38: ='1PR'!AQ17 -> 0 | AG38: ='1PR'!BK17 -> 0 | AH38: ='1PR'!BG17 -> 0 | AL38: ='1PR'!BF17 -> 0 | AM38: ='1PR'!BE17 -> 0
A39: ='1PR'!G18 -> 9 | B39: ='1PR'!C18 -> Tile Grout | F39: ='1PR'!B18 -> bag | G39: ='1PR'!A18 -> 2 | I39: ='1PR'!U18 -> 0 | J39: ='1PR'!Q18 -> 0 | N39: ='1PR'!P18 -> 0 | O39: ='1PR'!O18 -> 0 | Q39: ='1PR'!AI18 -> 9 | R39: ='1PR'!AE18 -> Coaxial cable, 30m | V39: ='1PR'!AD18 -> roll | W39: ='1PR'!AC18 -> 4 | Y39: ='1PR'!AW18 -> 0 | Z39: ='1PR'!AS18 -> 0 | AD39: ='1PR'!AR18 -> 0 | AE39: ='1PR'!AQ18 -> 0 | AG39: ='1PR'!BK18 -> 0 | AH39: ='1PR'!BG18 -> 0 | AL39: ='1PR'!BF18 -> 0 | AM39: ='1PR'!BE18 -> 0
A40: ='1PR'!G19 -> 10 | B40: ='1PR'!C19 -> Staple wire, Concrete | F40: ='1PR'!B19 -> pck | G40: ='1PR'!A19 -> 1 | I40: ='1PR'!U19 -> 0 | J40: ='1PR'!Q19 -> 0 | N40: ='1PR'!P19 -> 0 | O40: ='1PR'!O19 -> 0 | Q40: ='1PR'!AI19 -> 0 | R40: ='1PR'!AE19 -> 0 | V40: ='1PR'!AD19 -> 0 | W40: ='1PR'!AC19 -> 0 | Y40: ='1PR'!AW19 -> 0 | Z40: ='1PR'!AS19 -> 0 | AD40: ='1PR'!AR19 -> 0 | AE40: ='1PR'!AQ19 -> 0 | AG40: ='1PR'!BK19 -> 0 | AH40: ='1PR'!BG19 -> 0 | AL40: ='1PR'!BF19 -> 0 | AM40: ='1PR'!BE19 -> 0
A41: ='1PR'!G20 -> 11 | B41: ='1PR'!C20 -> Tox w/ screw | F41: ='1PR'!B20 -> pck | G41: ='1PR'!A20 -> 1 | I41: ='1PR'!U20 -> 0 | J41: ='1PR'!Q20 -> 0 | N41: ='1PR'!P20 -> 0 | O41: ='1PR'!O20 -> 0 | Q41: ='1PR'!AI20 -> 0 | R41: ='1PR'!AE20 -> 0 | V41: ='1PR'!AD20 -> 0 | W41: ='1PR'!AC20 -> 0 | Y41: ='1PR'!AW20 -> 0 | Z41: ='1PR'!AS20 -> 0 | AD41: ='1PR'!AR20 -> 0 | AE41: ='1PR'!AQ20 -> 0 | AG41: ='1PR'!BK20 -> 0 | AH41: ='1PR'!BG20 -> 0 | AL41: ='1PR'!BF20 -> 0 | AM41: ='1PR'!BE20 -> 0
A42: ='1PR'!G21 -> 12 | B42: ='1PR'!C21 -> Stainless, Plain washer 1/4 | F42: ='1PR'!B21 -> pck | G42: ='1PR'!A21 -> 1 | I42: ='1PR'!U21 -> 0 | J42: ='1PR'!Q21 -> 0 | N42: ='1PR'!P21 -> 0 | O42: ='1PR'!O21 -> 0 | Q42: ='1PR'!AI21 -> 0 | R42: ='1PR'!AE21 -> 0 | V42: ='1PR'!AD21 -> 0 | W42: ='1PR'!AC21 -> 0 | Y42: ='1PR'!AW21 -> 0 | Z42: ='1PR'!AS21 -> 0 | AD42: ='1PR'!AR21 -> 0 | AE42: ='1PR'!AQ21 -> 0 | AG42: ='1PR'!BK21 -> 0 | AH42: ='1PR'!BG21 -> 0 | AL42: ='1PR'!BF21 -> 0 | AM42: ='1PR'!BE21 -> 0
A43: ='1PR'!G22 -> 13 | B43: ='1PR'!C22 -> Switch flush typew, 1 gang | F43: ='1PR'!B22 -> pcs | G43: ='1PR'!A22 -> 1 | I43: ='1PR'!U22 -> 0 | J43: ='1PR'!Q22 -> 0 | N43: ='1PR'!P22 -> 0 | O43: ='1PR'!O22 -> 0 | Q43: ='1PR'!AI22 -> 0 | R43: ='1PR'!AE22 -> 0 | V43: ='1PR'!AD22 -> 0 | W43: ='1PR'!AC22 -> 0 | Y43: ='1PR'!AW22 -> 0 | Z43: ='1PR'!AS22 -> 0 | AD43: ='1PR'!AR22 -> 0 | AE43: ='1PR'!AQ22 -> 0 | AG43: ='1PR'!BK22 -> 0 | AH43: ='1PR'!BG22 -> 0 | AL43: ='1PR'!BF22 -> 0 | AM43: ='1PR'!BE22 -> 0
A44: ='1PR'!G23 -> 14 | B44: ='1PR'!C23 -> Floor drain | F44: ='1PR'!B23 -> pcs | G44: ='1PR'!A23 -> 1 | I44: ='1PR'!U23 -> 0 | J44: ='1PR'!Q23 -> 0 | N44: ='1PR'!P23 -> 0 | O44: ='1PR'!O23 -> 0 | Q44: ='1PR'!AI23 -> 0 | R44: ='1PR'!AE23 -> 0 | V44: ='1PR'!AD23 -> 0 | W44: ='1PR'!AC23 -> 0 | Y44: ='1PR'!AW23 -> 0 | Z44: ='1PR'!AS23 -> 0 | AD44: ='1PR'!AR23 -> 0 | AE44: ='1PR'!AQ23 -> 0 | AG44: ='1PR'!BK23 -> 0 | AH44: ='1PR'!BG23 -> 0 | AL44: ='1PR'!BF23 -> 0 | AM44: ='1PR'!BE23 -> 0
A45: ='1PR'!G24 -> 15 | B45: ='1PR'!C24 -> Diamond cutting wheel | F45: ='1PR'!B24 -> pcs | G45: ='1PR'!A24 -> 2 | I45: ='1PR'!U24 -> 0 | J45: ='1PR'!Q24 -> 0 | N45: ='1PR'!P24 -> 0 | O45: ='1PR'!O24 -> 0 | Q45: ='1PR'!AI24 -> 0 | R45: ='1PR'!AE24 -> 0 | V45: ='1PR'!AD24 -> 0 | W45: ='1PR'!AC24 -> 0 | Y45: ='1PR'!AW24 -> 0 | Z45: ='1PR'!AS24 -> 0 | AD45: ='1PR'!AR24 -> 0 | AE45: ='1PR'!AQ24 -> 0 | AG45: ='1PR'!BK24 -> 0 | AH45: ='1PR'!BG24 -> 0 | AL45: ='1PR'!BF24 -> 0 | AM45: ='1PR'!BE24 -> 0
A46: ='1PR'!G25 -> 0 | B46: ='1PR'!C25 -> 0 | F46: ='1PR'!B25 -> 0 | G46: ='1PR'!A25 -> 0 | I46: ='1PR'!U25 -> 0 | J46: ='1PR'!Q25 -> 0 | N46: ='1PR'!P25 -> 0 | O46: ='1PR'!O25 -> 0 | Q46: ='1PR'!AI25 -> 0 | R46: ='1PR'!AE25 -> 0 | V46: ='1PR'!AD25 -> 0 | W46: ='1PR'!AC25 -> 0 | Y46: ='1PR'!AW25 -> 0 | Z46: ='1PR'!AS25 -> 0 | AD46: ='1PR'!AR25 -> 0 | AE46: ='1PR'!AQ25 -> 0 | AG46: ='1PR'!BK25 -> 0 | AH46: ='1PR'!BG25 -> 0 | AL46: ='1PR'!BF25 -> 0 | AM46: ='1PR'!BE25 -> 0
A47: ='1PR'!G26 -> 0 | B47: ='1PR'!C26 -> 0 | F47: ='1PR'!B26 -> 0 | G47: ='1PR'!A26 -> 0 | I47: ='1PR'!U26 -> 0 | J47: ='1PR'!Q26 -> 0 | N47: ='1PR'!P26 -> 0 | O47: ='1PR'!O26 -> 0 | Q47: ='1PR'!AI26 -> 0 | R47: ='1PR'!AE26 -> 0 | V47: ='1PR'!AD26 -> 0 | W47: ='1PR'!AC26 -> 0 | Y47: ='1PR'!AW26 -> 0 | Z47: ='1PR'!AS26 -> 0 | AD47: ='1PR'!AR26 -> 0 | AE47: ='1PR'!AQ26 -> 0 | AG47: ='1PR'!BK26 -> 0 | AH47: ='1PR'!BG26 -> 0 | AL47: ='1PR'!BF26 -> 0 | AM47: ='1PR'!BE26 -> 0
A48: ='1PR'!G27 -> 0 | B48: ='1PR'!C27 -> 0 | F48: ='1PR'!B27 -> 0 | G48: ='1PR'!A27 -> 0 | I48: ='1PR'!U27 -> 0 | J48: ='1PR'!Q27 -> 0 | N48: ='1PR'!P27 -> 0 | O48: ='1PR'!O27 -> 0 | Q48: ='1PR'!AI27 -> 0 | R48: ='1PR'!AE27 -> 0 | V48: ='1PR'!AD27 -> 0 | W48: ='1PR'!AC27 -> 0 | Y48: ='1PR'!AW27 -> 0 | Z48: ='1PR'!AS27 -> 0 | AD48: ='1PR'!AR27 -> 0 | AE48: ='1PR'!AQ27 -> 0 | AG48: ='1PR'!BK27 -> 0 | AH48: ='1PR'!BG27 -> 0 | AL48: ='1PR'!BF27 -> 0 | AM48: ='1PR'!BE27 -> 0
A49: ='1PR'!G28 -> 0 | B49: ='1PR'!C28 -> 0 | F49: ='1PR'!B28 -> 0 | G49: ='1PR'!A28 -> 0 | I49: ='1PR'!U28 -> 0 | J49: ='1PR'!Q28 -> 0 | N49: ='1PR'!P28 -> 0 | O49: ='1PR'!O28 -> 0 | Q49: ='1PR'!AI28 -> 0 | R49: ='1PR'!AE28 -> 0 | V49: ='1PR'!AD28 -> 0 | W49: ='1PR'!AC28 -> 0 | Y49: ='1PR'!AW28 -> 0 | Z49: ='1PR'!AS28 -> 0 | AD49: ='1PR'!AR28 -> 0 | AE49: ='1PR'!AQ28 -> 0 | AG49: ='1PR'!BK28 -> 0 | AH49: ='1PR'!BG28 -> 0 | AL49: ='1PR'!BF28 -> 0 | AM49: ='1PR'!BE28 -> 0
E50: Brand and Model | F50: : ___________________ | M50: Brand and Model | N50: : ___________________ | U50: Brand and Model | V50: : ___________________ | AC50: Brand and Model | AD50: : ___________________ | AK50: Brand and Model | AL50: : ___________________
E51: Delivery Period | F51: : ___________________ | M51: Delivery Period | N51: : ___________________ | U51: Delivery Period | V51: : ___________________ | AC51: Delivery Period | AD51: : ___________________ | AK51: Delivery Period | AL51: : ___________________
E52: Warranty | F52: : ___________________ | M52: Warranty | N52: : ___________________ | U52: Warranty | V52: : ___________________ | AC52: Warranty | AD52: : ___________________ | AK52: Warranty | AL52: : ___________________
E53: Price Validity | F53: : ___________________ | M53: Price Validity | N53: : ___________________ | U53: Price Validity | V53: : ___________________ | AC53: Price Validity | AD53: : ___________________ | AK53: Price Validity | AL53: : ___________________
B54: After having carefully read and accepted your General Conditions, I/We quote you on the item at | J54: After having carefully read and accepted your General Conditions, I/We quote you on the item at | R54: After having carefully read and accepted your General Conditions, I/We quote you on the item at | Z54: After having carefully read and accepted your General Conditions, I/We quote you on the item at | AH54: After having carefully read and accepted your General Conditions, I/We quote you on the item at
A55: prices noted above. | I55: prices noted above. | Q55: prices noted above. | Y55: prices noted above. | AG55: prices noted above.
E57: Printed Name over Signature: | M57: Printed Name over Signature: | U57: Printed Name over Signature: | AC57: Printed Name over Signature: | AK57: Printed Name over Signature:
E58: Tel. No./Cellphone No./E-mail: | M58: Tel. No./Cellphone No./E-mail: | U58: Tel. No./Cellphone No./E-mail: | AC58: Tel. No./Cellphone No./E-mail: | AK58: Tel. No./Cellphone No./E-mail:
A59: 2 | E59: Date: | I59: 2 | M59: Date: | Q59: 2 | U59: Date: | Y59: 2 | AC59: Date: | AG59: 2 | AK59: Date:
I72: 1 | J72: pc | K72: Printer, CMYK

Sheet 1PR
A1: PURCHASE REQUEST | O1: PURCHASE REQUEST | AC1: PURCHASE REQUEST | AQ1: PURCHASE REQUEST | BE1: PURCHASE REQUEST
A2: Department of Education | O2: Department of Education | AC2: Department of Education | AQ2: Department of Education | BE2: Department of Education
A4: Department | B4: DEPED-Division of Lapu-Lapu City | F4: PR No.: | G4: ='7DV'!J12 -> 2001001 | J4: Date: | L4: 2016-11-04 | O4: Department | P4: DEPED-Division of Lapu-Lapu City | T4: PR No.: | U4: =G4+1 -> 2001002 | X4: Date: | Z4: =L4 -> 2016-11-04 | AC4: Department | AD4: DEPED-Division of Lapu-Lapu City | AH4: PR No.: | AI4: =U4+1 -> 2001003 | AL4: Date: | AN4: =Z4 -> 2016-11-04 | AQ4: Department | AR4: DEPED-Division of Lapu-Lapu City | AV4: PR No.: | AW4: =U4+1 -> 2001003 | AZ4: Date: | BB4: 2016-07-03 | BE4: Department | BF4: DEPED-Division of Lapu-Lapu City | BJ4: PR No.: | BK4: =AI4+1 -> 2001004 | BN4: Date: | BP4: 2016-07-03
A5: Section | B5: Marigondon Elementary School | F5: SAI No.: | J5: Date: | O5: Section | P5: Marigondon Elementary School | T5: SAI No.: | X5: Date: | AC5: Section | AD5: Marigondon Elementary School | AH5: SAI No.: | AL5: Date: | AQ5: Section | AR5: Marigondon Elementary School | AV5: SAI No.: | AZ5: Date: | BE5: Section | BF5: Marigondon Elementary School | BJ5: SAI No.: | BN5: Date:
F6: ALOBS No.: | J6: Date: | T6: ALOBS No.: | X6: Date: | AH6: ALOBS No.: | AL6: Date: | AV6: ALOBS No.: | AZ6: Date: | BJ6: ALOBS No.: | BN6: Date:
A8: Quantity | B8: Unit of Issue | C8: Item Description | G8: Stock No. | I8: Estimated Unit Cost | L8: Estimated Cost | O8: Quantity | P8: Unit of Issue | Q8: Item Description | U8: Stock No. | W8: Estimated Unit Cost | Z8: Estimated Cost | AC8: Quantity | AD8: Unit of Issue | AE8: Item Description | AI8: Stock No. | AK8: Estimated Unit Cost | AN8: Estimated Cost | AQ8: Quantity | AR8: Unit of Issue | AS8: Item Description | AW8: Stock No. | AY8: Estimated Unit Cost | BB8: Estimated Cost | BE8: Quantity | BF8: Unit of Issue | BG8: Item Description | BK8: Stock No. | BM8: Estimated Unit Cost | BP8: Estimated Cost
A10: 1 | B10: roll | C10: Loomex wire, #12 | G10: 1 | I10: 2200 | L10: =I10*A10 -> 2200 | O10: 20 | P10: ream | Q10: Bondpaper Long, Sub 20 | U10: 1 | W10: 159 | Z10: =W10*O10 -> 3180 | AC10: 1.5 | AD10: roll | AE10: Coaxial Cable | AI10: 1 | AK10: 8025 | AN10: =AK10*AC10 -> 12037.5 | AQ10: 8 | AR10: tl | AS10: Septic vault suction | AW10: 1 | AY10: 3400 | BB10: =AY10*AQ10 -> 27200
A11: 5 | B11: pcs | C11: Safety breaker, Surface type (15amp) | G11: 2 | I11: 387.5 | L11: =I11*A11 -> 1937.5 | O11: 10 | P11: pcs | Q11: White board pen, (black, blue & red) | U11: 2 | W11: 35 | Z11: =W11*O11 -> 350 | AC11: 1 | AD11: pcs | AE11: DC Adapter 12v, 5A | AI11: 2 | AK11: 50 | AN11: =AK11*AC11 -> 50 | BB11: =AY11*AQ11 -> 0
A12: 3 | B12: set | C12: Flood light, Led 30w | G12: 3 | I12: 1350 | L12: 4050 | O12: 1 | P12: unit | Q12: Printer, CMYK | U12: 3 | W12: 4995 | Z12: =W12*O12 -> 4995 | AC12: 5 | AD12: pcs | AE12: Camera | AI12: 3 | AK12: 1595 | AN12: 7975 | BB12: =AY12*AQ12 -> 0
A13: 2 | B13: set | C13: Flood light, Led 50w | G13: 4 | I13: 3000 | L13: 6000 | W13: 0 | Z13: =W13*O13 -> 0 | AC13: 3 | AD13: pcs | AE13: BNC Cable, 30m | AI13: 4 | AK13: 350 | AN13: 1050
A14: 5 | B14: roll | C14: Electrical Tape, Big | G14: 5 | I14: 45 | L14: 225 | W14: 0 | Z14: =W14*O14 -> 0 | AC14: 15 | AD14: pcs | AE14: BNC, Adaptor, Male | AI14: 5 | AK14: 70 | AN14: 1050
A15: 100 | B15: pcs | C15: Tiles, 60 x 60 | G15: 6 | I15: 158.08 | L15: 15808 | Z15: 0 | AC15: 15 | AD15: pcs | AE15: BNC, Adaptor, Female | AI15: 6 | AK15: 70 | AN15: 1050
A16: 17 | B16: bag | C16: Adhesive | G16: 7 | I16: 235 | L16: 3995 | Z16: 0 | AC16: 15 | AD16: pcs | AE16: BNC, Barrel | AI16: 7 | AK16: 60 | AN16: 900
A17: 16 | B17: bag | C17: Cement | G17: 8 | I17: 190 | L17: 3040 | Z17: 0 | AC17: 4 | AD17: roll | AE17: Coaxial cable, 20m | AI17: 8 | AK17: 315 | AN17: 1260
A18: 2 | B18: bag | C18: Tile Grout | G18: 9 | I18: 65 | L18: 130 | Z18: 0 | AC18: 4 | AD18: roll | AE18: Coaxial cable, 30m | AI18: 9 | AK18: 415 | AN18: 1660
A19: 1 | B19: pck | C19: Staple wire, Concrete | G19: 10 | I19: 118.5 | L19: 118.5 | Z19: 0
A20: 1 | B20: pck | C20: Tox w/ screw | G20: 11 | I20: 65.5 | L20: 65.5 | Z20: 0
A21: 1 | B21: pck | C21: Stainless, Plain washer 1/4 | G21: 12 | I21: 16 | L21: 16 | Z21: 0
A22: 1 | B22: pcs | C22: Switch flush typew, 1 gang | G22: 13 | I22: 60 | L22: 60 | Z22: 0
A23: 1 | B23: pcs | C23: Floor drain | G23: 14 | I23: 20 | L23: 20 | Z23: 0
A24: 2 | B24: pcs | C24: Diamond cutting wheel | G24: 15 | I24: 140 | L24: 280 | Z24: 0
C29: Funds Available: | Q29: Funds Available: | AE29: Funds Available:
AS30: ='7DV'!$D$46 -> KO-JACK E. IBAÑO | BG30: ='7DV'!$D$46 -> KO-JACK E. IBAÑO
C31: ='7DV'!$D$46 -> KO-JACK E. IBAÑO | Q31: ='7DV'!$D$46 -> KO-JACK E. IBAÑO | AE31: ='7DV'!$D$46 -> KO-JACK E. IBAÑO | AS31: ='7DV'!$D$47 -> Teacher III, School Bookkeeper-Designate | BG31: ='7DV'!$D$47 -> Teacher III, School Bookkeeper-Designate
C32: ='7DV'!$D$47 -> Teacher III, School Bookkeeper-Designate | Q32: ='7DV'!$D$47 -> Teacher III, School Bookkeeper-Designate | AE32: ='7DV'!$D$47 -> Teacher III, School Bookkeeper-Designate
I34: Total | L34: =SUM(L10:N33) -> 37945.5 | W34: Total | Z34: =SUM(Z10:AB33) -> 8525 | AK34: Total | AN34: =SUM(AN10:AP33) -> 27032.5 | AY34: Total | BB34: =SUM(BB10:BD33) -> 27200 | BM34: Total | BP34: =SUM(BP10:BR33) -> 0
A36: Purpose: | B36: Repair and Maintenance | O36: Purpose: | P36: Office Supplies | AC36: Purpose: | AD36: CCTV repair & Installation | AQ36: Purpose: | AR36: Repair and Maintenance | BE36: Purpose: | BF36: E-Classroom
C38: Requested by: | G38: Approved by: | Q38: Requested by: | U38: Approved by: | AE38: Requested by: | AI38: Approved by: | AS38: Requested by: | AW38: Approved by: | BG38: Requested by: | BK38: Approved by:
A39: Signature: | O39: Signature: | AC39: Signature: | AQ39: Signature: | BE39: Signature:
A40: Printed Name: | C40: EVELYN S. ONGCO | G40: REBECCA P. TORING | O40: Printed Name: | Q40: EVELYN S. ONGCO | U40: REBECCA P. TORING | AC40: Printed Name: | AE40: EVELYN S. ONGCO | AI40: REBECCA P. TORING | AQ40: Printed Name: | AS40: EVELYN S. ONGCO | AW40: REBECCA P. TORING | BE40: Printed Name: | BG40: EVELYN S. ONGCO | BK40: REBECCA P. TORING
A41: Designation: | C41: Teacher IIII, Property Custodian | G41: Principal I | O41: Designation: | Q41: Teacher IIII, Property Custodian | U41: Principal I | AC41: Designation: | AE41: Teacher I, Property Custodian | AI41: Principal I | AQ41: Designation: | AS41: Teacher I, Property Custodian | AW41: Principal III | BE41: Designation: | BG41: Teacher I, Property Custodian | BK41: Principal III
A42: 1 | O42: 1 | AC42: 1 | AQ42: 1 | BE42: 1

Sheet P1
E1: DEPED, LAPU-LAPU CITY PAYROLL | O1: Payroll No.: | P1: 1601001
E2: =P!A22 -> Repair and Maintenance
A4: ="We hereby acknowlegde to have received from "&'7DV'!D46&", "&'7DV'!D47&" of Marigondon Elementary School, the sums herein" -> We hereby acknowlegde to have received from KO-JACK E. IBAÑO, Teacher III, School Bookkeeper-Designate of Marigondon Elementary School, the sums herein
A5: specified opposite our respective names, the sums being full compensation for our services rendered during the period stated below, to the correctness of which we hereby certify.
B7: Name of Payee | E7: Designation | F7: Period of Service | H7: No. of Days | I7: Daily Rate | J7: Daily Rate Kto12 Summit | K7: Amount Accrued | L7: Withholding Tax | M7: Amount Due | N7: Amount Paid | P7: Signature of Payee
F8: From | G8: To
A9: 1 | B9: 2 | E9: 3 | F9: 4 | G9: =+F9+1 -> 5 | H9: =G9+1 -> 6 | I9: 7 | J9: 8 | K9: 9 | L9: 10 | M9: 11 | N9: 12 | O9: 13 | P9: 14
A10: 1 | B10: Pioquinto | C10: Jonathan | D10: D. | E10: Technician/Electrician | F10: 2018-02-10 | G10: =F10+H10 -> 2018-02-23 | H10: 13 | I10: 450 | K10: =H10*I10 -> 5850 | N10: =K10 -> 5850 | O10: 1
A11: =+A10+1 -> 2 | B11: Pioquinto | C11: Jerry | E11: Technician/Electrician | F11: 2018-02-10 | G11: 2018-02-23 | H11: 13 | I11: 450 | K11: =H11*I11 -> 5850 | N11: =K11 -> 5850 | O11: =A11 -> 2
A12: =+A11+1 -> 3 | B12: Ochea | C12: Garry | E12: Carpenter/Mason | F12: 2018-02-10 | G12: 2018-02-21 | H12: 11 | I12: 450 | K12: 4950 | N12: 4950 | O12: =A12 -> 3
A13: 4 | B13: Ochea | C13: Peter | E13: Carpenter/Mason | F13: 2018-02-10 | G13: 2018-02-19 | H13: 9 | I13: 300 | K13: 2700 | N13: 2700 | O13: 4
A14: 5 | B14: Nuñez | C14: Niel | E14: Carpenter/Mason | F14: 2018-02-10 | G14: 2018-02-19 | H14: 9 | I14: 300 | K14: 2700 | N14: =K14 -> 2700 | O14: 5 | Q14: =N14-168.44 -> 2531.56
A15: 6 | B15: Ponio | C15: Leve | E15: Carpenter/Mason | F15: 2018-02-10 | G15: 2018-02-19 | H15: 9 | I15: 300 | K15: =H15*I15 -> 2700 | N15: =K15 -> 2700 | O15: 6 | T15: =N30-168.44 -> 24581.56
A16: 7 | O16: 7
A17: 8 | O17: 8
A18: 9 | O18: 9
A19: 10 | O19: 10
A20: 11 | O20: 11
A21: 12 | O21: 12
A22: 13 | O22: 13
A23: 14 | O23: 14
A24: 15 | O24: 15
A25: 16 | O25: 16
A26: 17 | O26: 17
A27: 18 | O27: 18
A28: 19 | O28: 19
A29: 20 | O29: 20
K30: =SUM(K10:K29) -> 24750 | N30: =SUM(N10:N29) -> 24750
A31: Funds Available: | F31: Services Rendered: | L31: Approved for Payment:
A33: ='7DV'!D46 -> KO-JACK E. IBAÑO | F33: ZIGMUND JESS J. CID | L33: REBECCA P. TORING
A34: ='7DV'!D47 -> Teacher III, School Bookkeeper-Designate | F34: Teacher I, Property Custodian | L34: Principal I

Sheet Sheet1
A2: REPUBLIC OF THE PHILIPPINES
A3: DEPARTMENT OF EDUCATION
A4: REGION VII, CENTRAL VISAYAS
A5: DIVISION OF LAPU-LAPU CITY
A6: Tel. No. (032) 340-7887; 340-5031;
A7: Telefax No. (032) 495-4655
A10: CERTIFICATION OF EXPENSES NOT REQUIRING RECEIPTS
A11: Pursuant to COA Circular No. 2017-001 dated June 19, 2017
A13: Name of Employee | B13: KO-JACK E. IBAÑO | D13: Employee No. | E13: 479-2178
A16: Office | B16: MARIGONDON ELEMENTARY SCHOOL
A18: Division | B18: LAPU-LAPU CITY DIVISION
A20: Particulars | E20: Amount (₱)
A39: TOTAL
A41: Purpose
A42: ECONOMY FARE in the payment of Electricity,and purchase of supplies and materials of Marigondon Elementary School on January 8 to February 1, 2018.
A48: I hereby certify that the above expenses are incurred as they are necessary for the above cited
A49: purpose,that above good and services were acquired from partied not issuing receipts. And that I
A50: am fully aware that willful falsification of statements is punishable by law.
B51: Certified correct: | E51: Noted by:
A54: Signature
A57: Printed Name
B60: Employee | E60: School Heads
B61: Date | E61: Date

Sheet CheqDetail
A1: Republic of the Philippines
A2: Department of Education, Culture and Sports
A3: Region VII, Central Visayas
A4: Division of Lapu-Lapu City
A5: District 5
A6: MARIGONDON ELEMENTARY SCHOOL
A8: LIQUIDATION REPORT
A9: MOOE
A11: Check No.: | C11: 123516
A12: Date | C12: 2018-01-31
A13: Amount | C13: 217666
A15: Account No | C15: 002135-9001-87
A16: TIN | C16: 000-863-958-020
A17: Fund | C17: 101
A18: Area | C18: 0795
A19: Allot Obj. Class | C19: 200-873
A20: Date Received | C20: 2018-02-02
A24: Prepared by:
B25: KO-JACK E. IBANO
B26: SCHOOL HEAD

Sheet ICS
A1: INVENTORY CUSTODIAN SLIP
A2: Marigondon Elementary School
A3: ICS No:_______
A6: Name of Accountable Officer/Teacher: | E6: ______________________________________________
A8: Qty | B8: Unit | C8: Description | F8: Serial No | G8: Unit cost | H8: Remarks
O15: 450 | P15: 10 | Q15: =O15*P15 -> 4500
P17: 3560
A34: Received by: | F34: Received from:
A36: _____________________________ | F36: ZIGMUND JESS J. CID
F37: Teacher I, School Property Custodian
A39: __________________________ ___________ | F39: __________________
A40: Designation Date | F40: Date

Sheet Travel1
A1: Republic of the Philippines | H1: Republic of the Philippines | Z1: APPENDIX B
A2: Department of Education | H2: Department of Education | Z2: Division of Lapu-Lapu City
A3: Region VII, Central Visayas | H3: Region VII, Central Visayas | Z3: =R8 -> DepED-Division of Lapu-Lapu City
A4: DIVISION OF LAPU-LAPU CITY | H4: DIVISION OF LAPU-LAPU CITY
Z5: CERTIFICATE OF TRAVEL COMPLETED
E6: 2014-08-11 | H6: ACTUAL ITINERARY OF TRAVEL
R7: The School Division Superintendent
H8: Name: | I8: =C11 -> REYNOLD Q. VELOS | R8: DepED-Division of Lapu-Lapu City
A9: TRAVEL ORDER | H9: Position: | I9: =C12 -> Principal III | R9: B.M. Dimataga, St. Poblacion, Lapu-Lapu City | AF9: =I10 -> MARIGONDON ELEMENTARY SCHOOL
H10: District: | I10: =C14 -> MARIGONDON ELEMENTARY SCHOOL | AF10: Station
A11: Name: | B11: : | C11: REYNOLD Q. VELOS | H11: Purpose of Travel: | J11: =C15 -> Attend the Debriefing of the RO and SDO Database Team at Royal Mandaya Hotel, Davao City on August 27-29, 2014.
A12: Position/Designation | B12: : | C12: Principal III | T12: I certify that I have completed the travel authorized in the Itinerary of Travel
A13: Salary Per Annum | B13: : | R13: No. ____, dated August 24, 2009, under conditions indicated below:
A14: Station | B14: : | C14: MARIGONDON ELEMENTARY SCHOOL | H14: Date 2014 | I14: DESTINATION | K14: TIME | M14: Means of Transpor tation | N14: Amount | O14: Per Diem | P14: Total Amount
A15: Purpose of Travel | B15: : | C15: Attend the Debriefing of the RO and SDO Database Team at Royal Mandaya Hotel, Davao City on August 27-29, 2014. | I15: From | J15: To | K15: Departure | L15: Arrival | S15: o | T15: Strictly in accordance with the approved itinerary
H16: 2014-08-27 | I16: Residence | J16: Taxi Terminal | K16: 05:00:00 | L16: 05:15:00 | M16: Tricycle | N16: 8 | P16: =N16+O16 -> 8 | S16: o | T16: Cut short as explained below. Excess payment in the amount of P ________ was
I17: =J16 -> Taxi Terminal | J17: Mactan Airport | K17: =L16 -> 05:15:00 | L17: 05:40:00 | M17: Taxi | N17: 75 | P17: =N17+O17 -> 75 | U17: refunded or O.R. No. ___ dated ______________________
I18: =J17 -> Mactan Airport | J18: Davao City Airport | K18: 07:20:00 | L18: 08:15:00 | M18: Plane | N18: =8235.04/2 -> 4117.52 | P18: 4117.52 | S18: o | T18: Extended is explained below. Additional itinerary was submitted.
A19: Departure Date | B19: : | C19: August 27-29, 2014 | I19: =J18 -> Davao City Airport | J19: Grand Men Seng Hotel | K19: 08:30:00 | L19: 09:20:00 | M19: Taxi | N19: 75 | P19: 75 | S19: o | T19: Other deviation as explained below.
A20: Report to | B20: : | C20: Royal Mandaya Hotel, Davao City | P20: 0
A21: Expenses Allowed | B21: : | C21: Travelling Expenses | H21: 2014-08-29 | I21: =J19 -> Grand Men Seng Hotel | J21: =I19 -> Davao City Airport | K21: 15:00:00 | L21: 15:45:00 | M21: =M19 -> Taxi | N21: 75 | P21: 75 | S21: Explanation or Justification:
C22: Subject to availability of funds and the usual accounting rules and regulations. | I22: =J18 -> Davao City Airport | J22: =I18 -> Mactan Airport | K22: 17:30:00 | L22: 18:30:00 | M22: =M18 -> Plane | P22: 0
I23: =J17 -> Mactan Airport | J23: =I16 -> Residence | K23: 19:00:00 | L23: 19:40:00 | M23: =M17 -> Taxi | N23: 75 | P23: 75 | S23: Evidence of Travel attached hereto: | Z23: Memorandum, Receipt and Travel Order
A24: Appropriation to which travel should be charged: | D24: Local Funds/School MOOE | J24: Terminal Fee | N24: 200 | P24: 200
A25: Authority/Reference | B25: :
AC26: Respectfully submitted:
A27: Remarks of Special Instruction:
AE28: =UPPER(I8) -> REYNOLD Q. VELOS
A29: Important Requirement: Written reports or feedback to the Schools Division Superintendent is hereby required immediately upon return to the office or immediately after completion of the travel on official business or on official time. | AE29: =I9 -> Principal III
P30: =N30+O30 -> 0
P31: =N31+O31 -> 0 | T31: On evidence and information of which I have knowledge the travel was actually
S32: undertaken.
F34: EDUARDO A. OMPAD, Ed.D. | AE34: =N42 -> EDUARDO A. OMPAD
F35: Officer In-Charge | I35: GRAND TOTAL | N35: =SUM(N16:N34) -> 4625.52 | P35: =SUM(P16:P34) -> 4625.52 | AE35: =N43 -> Schools Division Superintendent
F36: Office of the Schools Division Superintendent | H36: I hereby certify that (1) I have reviewed the following itinerary to the service (2) the expenses claimed are proper.
A37: Conform:
N38: =UPPER(I8) -> REYNOLD Q. VELOS
B39: ___________________________ | N39: Employee/Official
H40: Recommending Approval: | L40: Approved:
I42: RESEMARIE A. LASMARIAS | N42: EDUARDO A. OMPAD
I43: Administrative Officer V | N43: Schools Division Superintendent

Sheet ARE
A1: ACKNOWLEDGMENT RECEIPT FOR EQUIPMENT
A2: DEPARTMENT OF EDUCATION
A3: Agency
A6: QTY | B6: UNIT | C6: DESCRIPTION (Serial No. if Any) | E6: Unit Cost | F6: Prop. No.
A7: 1 | B7: set | C7: Router, Edimax BR-6228NS, 150 MBps | E7: 999
A28: Received by: | D28: Received From:
A30: _______________________________ | D30: RUFO P. LAPAY
A31: Signature Over Printed Name | D31: Teacher III, School Property Custodian
A32: ____________________
A33: Position/Office | D33: ____________________
A34: _______________ | D34: Date
A35: Date

Sheet Code
A2: Account Code | B2: Account Name
A3: 767 | B3: Electricity
A4: 766 | B4: Water
A5: 772 | B5: Telephone
A6: 774 | B6: Telephone with Internet
A7: 773 | B7: Telephone Expenses Mobile
A8: 892 | B8: Fidelity Bond
A9: 797 | B9: Security Services
A10: 784 | B10: Transportation, Delivery Charge, Mobilization
A11: 823 | B11: Repair and Maintenance
A12: 165 | B12: Printer, Electric Fan
A13: 969 | B13: Other MOOE
A14: 758 | B14: Food Supplies Expense

Sheet Tel No
A1: Store | B1: Tel No.
A2: Division Accounting | B2: 340-5031 | I2: 340-8193 LLC hardware
A3: Southern Synergy | B3: 420-7338 - April | I3: =A3&" "&B3 -> Southern Synergy 420-7338 - April
A4: Star Paper Corporation | B4: 345-1334,344-0317 | I4: =A4&" "&B4 -> Star Paper Corporation 345-1334,344-0317
A5: Cebu Tristar Corporation | B5: 346-0781,3460560,3461626 | I5: =A5&" "&B5 -> Cebu Tristar Corporation 346-0781,3460560,3461626
A6: La Nueva Supermarket | B6: 340-6200 | I6: La Nueva Supermarket 340-6200
A7: Marnikko School and Office Supplies | B7: 495-4012 | I7: Marnikko School and Office Supplies 495-4012
A8: Peoples Educl Supply | B8: 2550169, 2542041 | I8: Peoples Educl Supply 2550169, 2542041
A9: Phillipine Duplicators, Inc., Banilad, Cebu City | B9: 231-1363/4/6 | I9: Phillipine Duplicators, Inc., Banilad, Cebu City 231-1363/4/6
A10: Visayan Educ Supply | B10: 3444528 3444529 | I10: Visayan Educ Supply 3444528 3444529
A11: JSY Lumber and General Merchandise | B11: 4940767/3606933 | I11: JSY Lumber and General Merchandise 4940767/3606933
A12: Budget Builders, Inc | B12: 340-0026 | I12: =A12&" "&B12 -> Budget Builders, Inc 340-0026
A13: Discaya Trade Center | B13: 495-6739 | I13: Discaya Trade Center 495-6739
A14: ELYANOR Enterprises | B14: 495-6262/505-7540 | I14: ELYANOR Enterprises 495-6262/505-7540
A15: Emman | B15: 495-7861 | I15: Emman 495-7861
A16: Gun-ob Glass | B16: 495-9778 | I16: Gun-ob Glass 495-9778
A17: Home Builders, Inc | B17: 341-5804-06 | I17: Home Builders, Inc 341-5804-06
A18: Jovens Glass-Fe | B18: 493-4309/494-0123 | C18: 24 x 71" | E18: 600 | I18: Jovens Glass-Fe 493-4309/494-0123
A19: JCT Construction Supply | B19: 340-4266 | E19: 720 | I19: JCT Construction Supply 340-4266
A20: Kima Glass | B20: 495-7172 | I20: Kima Glass 495-7172
A21: Lapu-Lapu Glass | B21: 341-5981 | I21: Lapu-Lapu Glass 341-5981 | J21: Basak Auto Glass | K21: 4229270
A22: Mactan Centennial Hardware | B22: 495-6791 | I22: =A22&" "&B22 -> Mactan Centennial Hardware 495-6791
A23: Mactan Trade Center | B23: 340-2236 | I23: Mactan Trade Center 340-2236
A24: Rean Enterprises | B24: 4952160 | I24: Rean Enterprises 4952160
A25: Rubi Enterprises | B25: 520-3280/505-0714 | I25: Rubi Enterprises 520-3280/505-0714
A26: Savers Home Depot | B26: 494-2801 | I26: Savers Home Depot 494-2801
A27: Sta Rosa Property Ventures | B27: 341-1068, 493-5797 | I27: Sta Rosa Property Ventures 341-1068, 493-5797
A28: SUDBAS Enterprises | B28: 341-1381 | I28: SUDBAS Enterprises 341-1381
A30: Jober Electronic Parts & Electrcal Supplies | B30: 3402231 | I30: =A30&" "&B30 -> Jober Electronic Parts & Electrcal Supplies 3402231
A31: Asian Home Appliance Center | B31: 3405423/2689849 Grandm | I31: Asian Home Appliance Center 3405423/2689849 Grandm
A32: Citi Appliance | B32: 3402890/3403019 | D32: 20 | E32: 4219 | F32: s20b300nh | I32: Citi Appliance 3402890/3403019
A33: TTI SM | B33: 4121040/2341788 | D33: 22 | E33: 6450 | F33: ls22f350fhexxp | I33: TTI SM 4121040/2341788
A34: Vanix Computer Center | B34: 420-5778/0932-5230136 | I34: Vanix Computer Center 420-5778/0932-5230136
A35: Perfect Star | B35: 495-4006 | E35: ips 23 | I35: Perfect Star 495-4006
A36: Fast Win Grand Mall - 505-8899
A37: CBX Corporation -231-4369 | D37: aoc | E37: 8250 | F37: i2381fh | G37: dir600m | H37: dlink | I37: 1200 Jumel
A38: Electroworld Inc. - 236-2857
A39: Fast Win Computer Enterprises - 2363333
A40: Metro PC Technology - 4209120 - 24 | B40: Chekie/banje | C40: MSI ECS | D40: acer | E40: 7500 | F40: ipsb23hl
A41: NUTECH Marketing 253-5451/Pajo-2366854 | E41: 7700
A42: PC Quickbuys 238-8108 | D42: philips 21 | E42: 6150 | F42: 224e5qsb
A43: XComp Computer Sales and Services 255-6115 | I43: 236-1396
A44: SECC Computer 346-2263 | I44: 1200 asus rtn12
A45: Fotoline Express 233-1799 | I45: lenxis a1200 2100
A46: Nutech Solutions 268-3408/256-0546/236-6854
A47: Pcquickbuys 2388108/318-0224 | B47: 3800 | E47: 7900
A48: Silicon Valley 5052896/2387193 | I48: =7700*2 -> 15400
A49: Ink Now 268-6456 colon 268-3702 | B49: junrey
A50: Inkpro Mandaue 3436970
A51: Insotec Computers 340-3294
A52: CBR Digital Ware Humay-humay 236-1300
A53: RK Eustaquio Enterprises | B53: 254-3773/261-8964 | C53: TN 2360/2380 | D53: 2900
A54: Octagon Computers | B54: 236-9307/2366537 techn | C54: DCPL2540DW | E54: 9600
A55: TekZone | B55: 238-3766/343-3396 | C55: Joy/Banbros
A56: 340-7887 omar | I56: =120*4 -> 480
A57: 340-5031 Accounting
A58: Asia Pacific Computers Sales and Services | B58: 345-2465/eden | C58: Philips 21.5 | E58: 6670

Sheet Computer Stores
A1: List of Major Computer Stores in Cebu, Philippines
A3: 1. Asia Pacific Computers Sales and Services
A4: their main office/store (address) is located in A.S. Fortuna St., Banilad, Mandaue City
A5: they have a new branch at the 2nd floor of Emall
A6: you can contact them in their telephone numbers: (032) 345-2465 and 66, 415-8275,
A7: Mobile/cellphone number: 09228338879
A8: 2. CBX Corporation
A9: their main office/store (address) is located in J. de Vera St. Off Juan Luna Ave., North Reclamation Area (NRA), Cebu City (Across SM City Cebu)
A10: you can contact them in their telephone numbers: (032) 231-4369 / 231-3714 / 232-4314 / 412-9668 to 69
A11: Fax number: (032) 231-4690
A12: Mobile/Cellphone number: 09176281595 / 09228229267
A13: 3. Fast Win Computer Enterprises
A14: main office/store address: Subangdaku, Mandaue City, Cebu
A15: contact/telephone number: (032) 236-3333
A16: 4. HMR Phils Inc.
A17: store address is located in Cor. P. Burgos, Magallanes, Cebu City, contact/telephone number: (032) 254-6587 / 253-6609, mobile/cellphone number: 09176003343
A18: 5. PC Quickbuys
A19: they have branches in SM City Cebu, contact/telephone number: (032) 238-8108
A20: Sanciangko St., in front of University of Cebu (UC) main, contact/telephone number: (032) 412-9792
A21: 6. NUTECH Marketing
A22: main office/store is located in Sanciangko-Borromeo Sts. Corner, Cebu City, contact/telephone number: (032) 253-5451, fax number: 256-0540
A23: they have branches at the 2nd floor in Emall and SM City Cebu
A24: 7. SECC Computer Sales and Services
A25: office/store address is located in C and F Ramirez Bldg., S B Cabahug, Mandaue City, Cebu, contact/telephone number: (032) 345-3328 / 346-2263 / 516-8004 / 516-8003, fax number: 345-6015 / 422-8991
A26: 8. Thinking Tools Inc.
A27: main office/store address is located in TTI Building, Junquera Ext. cor. R.R.Landon St., Cebu City, contact/telephone number: (32) 254-2227, fax number: (32) 254-9791
A28: they have branches in SM City Cebu, Mandaue and Ayala Center Cebu
A29: 9. V.G.M. Computerworks Systems
A30: its main office/store address in Cebu is located in #7 Molave Street, Brgy. Camputhaw, Cebu City
A31: contact/telephone number: (032) 232-4990 / 232-4908, fax number: (032) 232-4947, (032) 415-5819
A32: 10. MDR Microware Sales Inc. | P32: 512-2286
A33: main office/store address is located in Ouano Avenue, NRA, Mandaue City
A34: contact/telephone number: (032) 420-9120 / 255-4415 / 420-9121 to 24 | P34: j220 | Q34: 5495
A35: 11. LYK Microsystems Service Center
A36: main office/store address is located in 48-A Juana Osmeña, Cebu City
A37: contact/telephone number: (032) 255-6264
A38: fax number: (032) 255-6265
A39: 12. SP Technology Inc.
A40: main office/store address is located in Door 3 Catunggal Bldg., Catungal Compound, (fronting Doña Rita Village), Nasipit Rd., Talamban, Cebu City
A41: contact/telephone number: (032) 343-8866, 344-3662
A42: email address: sptech@pacific.net.ph
A43: 13. World Digital Computer Center
A44: main office/store address is located in North Bacalso Avenue, Hi-way Mambaling, Cebu City
A45: contact/telephone number: (032) 413-9126 / 417-8613 / 417-4915
A46: fax number: 417-8203
A47: email address: worldigital2002@yahoo.com
A48: 14. XComp Computer Sales and Services
A49: main office/store address is located R. Duterte cor. V. Rama Ave., Guadalupe, Cebu City
A50: contact/telephone number: (032) 253-8801, 255-6115, 255-1586, 262-5155 to 57, 516-8155
A51: they have branch office/store in D. Jakosalem cor G. Maxilom Ave., contact/telephone no.: (032)416-7324, 412-4665, 416-4375
A52: branch in Andres Abellana, contact/telephone no.: (032)262-5155, 262-5156
A53: 15. DOOHICKEY Trading Inc.
A54: main office/store address is located in No. 82 España St., (near UV), Pari-an, Cebu City
A55: contact/telephone no.: (032) 238-7808, 516-7695, 238-0211, 414-9068
A56: email address: edna_dooky@yahoo.com / askmedooky@yahoo.com
A57: 16. Infonet Solutions Inc.
A58: main office/store address is located at the 2nd floor Leonisa Bldg., N. Escario St, Cebu City
A59: contact/telephone no.:(032)254-9851, fax no.: (032)254-9849
A60: 17. Electroworld Inc.
A61: they have branch office/store at the 3rd Level SM City Cebu, Reclamation Area, Cebu /// contact/telephone no.: 032-236-2857, /// email address: ewvsmcebu@electroworld.com.ph
A62: branch office/store located a the 3rd Level Ayala Center Business Park Cebu /// contact/telephone number: 032-233-4296 and 032-232-5965 /// email address: ewvayala@electroworld.com.ph
A63: 18. NGenius IT Hub
A64: they have a branch office/store located in SM City Cebu /// contact/telephone number: (+6332) 412-0068
A65: they have also branches in Asiatown IT Park and in Ayala Center Cebu
A66: 19. PC Express
A67: branch office/store address located at the Ground floor CIFC Towers, J. Luna Ave., North Reclamation Area (NRA) /// contact/telephone no.: 032 2344377, 032 234-4388
A68: branch office/store address located in G&D Santiago bldg. Osmeña Blvd. Cor. Visitacion St. Cebu City /// contact/telephone no.: (032)-2543746 / (032)-2543885
A69: 20. Octagon
A70: boasted themselves as the biggest computer store in the Philippines.
A71: they have branch office/store at the 3rd floor of SM City Cebu, North Reclamation Area (NRA), San Jose Dela Montana /// contact/telephone no.: (032) 231-7354, (032)231-7356
A72: they also a new branch at the 3rd floor of Emall, Sanciangko St., Cebu City.
A73: 21. Wired Systems Corporation
A75: Computer Shop, Computer Store and Information Technology Provider. Cebu City, Philippines
A76: Address: Unit 14 St. Patricks Square, Don Ramon Aboitiz Street, Cebu City 6000 Philippines
A77: Telephone Number: (032) 255-5282 / 255-5283 / 412-6771 to 73
A78: Fax Number: (032) 412-6532
A79: Website: http://www.wiredsystems.com
A80: 22. Cool Rigz Computer Solutions
A81: Address: 2nd Floor, Lugay Bldg M.L. Quezon St. Maguikay, Mandaue City (Fronting Golden Harvester International)
A82: Telefax No.: 032-422-3411
A83: Mobile No.: +639222368709
A84: Website: www.coolrigzcs.webs.com
A85: 23. DJPCWise Corporation
A86: Address: 2nd Level Shopwise Cebu, North Bacalso St., Cebu City
A87: Telephone Number: (032)253-1068 / 253-0311 / 416-1017
A88: Cellphone No.: 09228909101
A89: 24. Argosy WCSI
A90: Address: #34 Gorordo Ave., Cebu City (across Camp Sotero Cabahug)
A91: Sales Telephone No.: (032) 231-5091 ; Email Address: inquire@argosyoinfo.net
A92: Technical Telephone No.: (032) 512-8645 ; Email Address: support @argosyinfor.net
A93: Website: www.argosyinfo.net
A94: 25. Fineupgrades Computer and Gadgets Distribution
A95: Address: #680 Magallanes Street, Cebu City, Philippines
A96: Telephone No.: (032) 253-5648
A97: Fax No.: (032) 255-4765
A98: Cellphone No.: 09231433954 / 09473426649
A99: Email address: fineupgrades_christian@yahoo.com
A100: Website: fineupgrades.com
A101: 26. Cool Rigz Computer Solutions
A102: Address: 2nd Floor, Lugay Bldg. M.L. Quezon St., Maguikay, Mandaue City (in front of Golden Harvester International)
A103: Telefax No.: 032-422-3411
A104: Cellphone No.: 09222368709
A105: Website: www.coolrgizcs.webs.com
A106: 27. Onietech Computer Solution
A107: Address: Door No. 2, Gen. Maxilom Avenue, Cebu City
A108: Telephone No.: (032)239-1940
A109: Services/Product: Manufacturer/Maker of Coin-Operated Computer Machine (casing with built-in coin slot and timer) / Hulog-Hulog piso computer.
A110: 28. Gaisano Interpace Computer Systems
A111: They have many branches in Cebu and in other parts of the Philippines. Their Cebu branches include:
A112: Gaisano Interpace Cebu City Branch - located at Ground Floor, Gaisano Country Mall, Banilad, Cebu City / Telephone Number: (032) 233-3023, (032) 232-9664 /
A113: Gaisano Interpace NRA Branch - located at Ground Floor, APM Shopping Mall (beside SM Cebu), A. Soriano Jr. Avenue, New Reclamation Area, Cebu / Telephone Number: (032) 505-9529, (032) 505-9530
A114: Gaisano Interpace Tabunok Branch - located at 2nd floor, B6 and B7 Gaisano Grand Fiesta Mall, Tabunok, Talisay City, Cebu / Telephone Number: (032) 520-3664
A115: Gaisano Interpace Mandaue Branch - located at Warehouse 6, Rositas Compound, Ouano Avenue, New Reclamation Area, Mandaue City, Cebu / Telephone Number: (032) 505-4977, 505-4904, 420-9063
A116: 29. Perfect Star PC Shoppe
A117: Main Office Address: No. 20 P.Del Rosario St. Cebu City
A118: Telephone Number: (032) 253-9449/51/53 / (032)412-9991/92/93
A119: They have many branches in Cebu such as:
A120: Banilad Branch - telephone number (032) 236-8601, (032) 233-3571
A121: Mactan Branch - telephone number (032) 495-3462, (032) 318-2995
A122: Toledo Branch - telephone number (032) 466-1488, (032) 512-6311
A123: Danao Branch - telephone number (032) 318-2994
A124: 30. Enigma Technologies
A125: Address: Shoppe 229 Raintree Mall, General Maxilom Avenue, Cebu City
A126: Telephone Number: (032)254-9659/236-1230
A127: Cellphone: 0923-742-0054
A128: 31. NAB Computers
A129: Address: 2/F, Lopena Bldg., South Road, Tabunok Talisay City, Cebu
A130: Telephone Number: 032-236-8464
A131: Cellphone Number: 09323575517 / 09073385359
A132: Email Address: nessa_nab@yahoo.com.ph
A133: Yahoo Messenger: nessa_nab
A137: Read more: http://www.affordablecebu.com/load/business/list_of_computer_stores_in_cebu_philippines/6-1-0-799#ixzz2CplgOJsX

Sheet RER
D2: REIMBURSEMENT EXPENSES RECEIPT
A3: Date: | B3: 2015-10-02 | E3: No.: | F3: 91501
B6: Received from __________________________________________ | D6: MARIGONDON ELEMENTARY SCHOOL
F7: ____the amount of
C8: (Official Designation)
A9: =SpellNumber(G9) -> Seventy Pesos Only | G9: 70
C10: (In Word) | F10: (In figure)
A11: in payment for ___________________________________________________ | C11: ECONOMY FARE in the payment of Electricity,
D12: (Payments for subsistence, services)
A13: and purchase of supplies and materials of Marigondon
D14: rental or transportation should show inclusive dates,
A15: Elementary School on September 30 to October 1, 2015
D16: purpose, distance, inclusive points of travel, etc.
D19: P A Y E E
A20: Name/Signature__________________________________________________
A21: Address_________________________________________________________
A22: Residence Cert. No. ______________________________________________
A23: Date of Issue____________________________________________________
A24: Place of Issue___________________________________________________
D27: W I T N E S S
A29: Name/Signature__________________________________________________
A30: Address________________________________________________________
A31: Residence Cert. No. ______________________________________________
A32: Date of Issue____________________________________________________
A33: Place of Issue___________________________________________________

Sheet 2Canvas (2)
A1: Republic of the Philippines | G1: Project Reference Number: | H1: 1601001 | I1: Republic of the Philippines | O1: Project Reference Number: | P1: =H1+1 -> 1601002 | Q1: Republic of the Philippines | W1: Project Reference Number: | X1: =P1+1 -> 1601003
A2: Department of Education | F2: Name of Project: | G2: Repair and Maintenance | I2: Department of Education | N2: Name of Project: | O2: Security Services | Q2: Department of Education | V2: Name of Project: | W2: Office Supplies
A3: Region VII, Central Visayas | F3: Location of Project: | G3: Marigondon ES | I3: Region VII, Central Visayas | N3: Location of Project: | O3: Marigondon ES | Q3: Region VII, Central Visayas | V3: Location of Project: | W3: Marigondon ES
A4: Division of Lapu-Lapu City | G4: Marigondon, LLC | I4: Division of Lapu-Lapu City | O4: Marigondon, LLC | Q4: Division of Lapu-Lapu City | W4: Marigondon, LLC
A5: South District | I5: South District | Q5: South District
A6: MARIGONDON ELEMENTARY SCHOOL | I6: MARIGONDON ELEMENTARY SCHOOL | Q6: MARIGONDON ELEMENTARY SCHOOL
A7: Marigondon, Lapu-Lapu City | I7: Marigondon, Lapu-Lapu City | Q7: Marigondon, Lapu-Lapu City
A8: Telefax No. (032) 495-6265 | I8: Telefax No. (032) 495-6265 | Q8: Telefax No. (032) 495-6265
F9: Date: | N9: Date: | V9: Date:
A10: Standard Form Number: SF-GOOD-60 | H10: Quotation Number: _________ | I10: Standard Form Number: SF-GOOD-60 | P10: Quotation Number: _________ | Q10: Standard Form Number: SF-GOOD-60 | X10: Quotation Number: _________
A11: Revised on: May 24, 2004 | I11: Revised on: May 24, 2004 | Q11: Revised on: May 24, 2004
A12: Standard Form Title: Request for Quotations | I12: Standard Form Title: Request for Quotations | Q12: Standard Form Title: Request for Quotations
B18: Please quote your lowest price on the item/s listed below, subject to the General Conditions on the last page | J18: Please quote your lowest price on the item/s listed below, subject to the General Conditions on the last page | R18: Please quote your lowest price on the item/s listed below, subject to the General Conditions on the last page
A19: stating the shortest time delivery and submit your quotation duly signed your representative not later than ______________ | I19: stating the shortest time delivery and submit your quotation duly signed your representative not later than ______________ | Q19: stating the shortest time delivery and submit your quotation duly signed your representative not later than ______________
A20: in the return envelope attached herewith. | I20: in the return envelope attached herewith. | Q20: in the return envelope attached herewith.
A22: Note: | B22: 1. All entries must be typewritten. | G22: ='1PR'!C40 -> EVELYN S. ONGCO | I22: Note: | J22: 1. All entries must be typewritten. | O22: =G22 -> EVELYN S. ONGCO | Q22: Note: | R22: 1. All entries must be typewritten. | W22: =O22 -> EVELYN S. ONGCO
B23: 2. Delivery period within _____ calendar days | G23: Procurement Officer | J23: 2. Delivery period within _____ calendar days | O23: Procurement Officer | R23: 2. Delivery period within _____ calendar days | W23: Procurement Officer
B24: 3. Warranty shall be for a period of six(6) months for supplies and materials, one(1) year for equipment, | J24: 3. Warranty shall be for a period of six(6) months for supplies and materials, one(1) year for equipment, | R24: 3. Warranty shall be for a period of six(6) months for supplies and materials, one(1) year for equipment,
B25: from date of acceptance by the procuring entity. | J25: from date of acceptance by the procuring entity. | R25: from date of acceptance by the procuring entity.
B26: 4. Price validity shall be for a period of _____ calendar days. | J26: 4. Price validity shall be for a period of _____ calendar days. | R26: 4. Price validity shall be for a period of _____ calendar days.
B27: 5. G-EPS registration certificate shall be attached upon submission of the quotation. | J27: 5. G-EPS registration certificate shall be attached upon submission of the quotation. | R27: 5. G-EPS registration certificate shall be attached upon submission of the quotation.
B28: 6. Bidders shall submit original brochures showing certfications of the product being offered. | J28: 6. Bidders shall submit original brochures showing certfications of the product being offered. | R28: 6. Bidders shall submit original brochures showing certfications of the product being offered.
A29: Item | B29: ITEM AND DESCRIPTION | F29: UNIT | G29: QTY | H29: Unit | I29: Item | J29: ITEM AND DESCRIPTION | N29: UNIT | O29: QTY | P29: Unit | Q29: Item | R29: ITEM AND DESCRIPTION | V29: UNIT | W29: QTY | X29: Unit
A30: No. | H30: Price | I30: No. | P30: Price | Q30: No. | X30: Price
A31: 1 | I31: 1 | J31: Provision of four (4) security guards for the | N31: unit | O31: 4
A32: 2 | J32: two(2) sites of Marigondon Elementary School,
A33: 3 | J33: Marigondon, Lapu-Lapu City
A34: 4
A35: 5
A36: 6
A37: 7
A38: 8
A39: 9
A40: 10
A41: 11
A42: 12
A43: 13
A44: 14
A45: 15
A46: 16
A47: 17
A48: 18
A49: 19
A50: 20
A51: 21
A52: 22
A53: 23
A54: 24
A55: 25
A56: 26
A57: 27
A58: 28
E60: Brand and Model | F60: : ___________________ | M60: Brand and Model | N60: : ___________________ | U60: Brand and Model | V60: : ___________________
E61: Delivery Period | F61: : ___________________ | M61: Delivery Period | N61: : ___________________ | U61: Delivery Period | V61: : ___________________
E62: Warranty | F62: : ___________________ | M62: Warranty | N62: : ___________________ | U62: Warranty | V62: : ___________________
E63: Price Validity | F63: : ___________________ | M63: Price Validity | N63: : ___________________ | U63: Price Validity | V63: : ___________________
B64: After having carefully read and accepted your General Conditions, I/We quote you on the item at | J64: After having carefully read and accepted your General Conditions, I/We quote you on the item at | R64: After having carefully read and accepted your General Conditions, I/We quote you on the item at
A65: prices noted above. | I65: prices noted above. | Q65: prices noted above.
E67: Printed Name over Signature: | M67: Printed Name over Signature: | U67: Printed Name over Signature:
E68: Tel. No./Cellphone No./E-mail: | M68: Tel. No./Cellphone No./E-mail: | U68: Tel. No./Cellphone No./E-mail:
A69: 2 | E69: Date: | I69: 2 | M69: Date: | Q69: 2 | U69: Date:
